{"text_format":"1","workbook":"xlsx","n_sheets":2,"sheets":["Исходные данные","Как надо"],"not_rendered":{"charts":0,"images":0,"macros":0,"external_links":0,"defined_names":0,"comments":0,"pivot_tables":0},"unopened":[],"bounds":{"document_bytes":16777216,"sheet_cells":100000,"rows_first":2000,"rows_last":500,"rows_between":2000,"halvings":0,"cell_chars":16384,"cell_head_chars":4096},"cells_cut":0,"cells_raw":0,"read":"whole","date_system":"1900"}

{"sheet":"Исходные данные","index":0,"n_rows":586,"n_cols":6,"rows_kept":586,"cut":false,"hidden":false,"merged":[]}
["Spot Name","Spot TVCompany","Date","Spot type","Advertiser","GRP"]
["Total",null,null,null,null,410514.3]
["ALPEN GOLD ОСОБЫЙ ТЕМНЫЙ шоколад (тауар) КАЗ (2 девушки с бобами) Ерекше уйлесимдилик, бирегей дам","КАЗАХСТАН","2013-01-01","Ролик","КРАФТ ФУДС КАЗАХСТАН",1.3]
["ALPEN GOLD ОСОБЫЙ ТЕМНЫЙ шоколад (тауар) КАЗ (2 девушки с бобами) Ерекше уйлесимдилик, бирегей дам","КАЗАХСТАН","2013-01-01","Ролик","КРАФТ ФУДС КАЗАХСТАН",0]
["ALPEN GOLD ОСОБЫЙ ТЕМНЫЙ шоколад (тауар) КАЗ (2 девушки с бобами) Ерекше уйлесимдилик, бирегей дам","КАЗАХСТАН","2013-01-01","Ролик","КРАФТ ФУДС КАЗАХСТАН",0]
["ALPEN GOLD ОСОБЫЙ ТЕМНЫЙ шоколад (тауар) КАЗ (2 девушки с бобами) Ерекше уйлесимдилик, бирегей дам","КАЗАХСТАН","2013-01-01","Ролик","КРАФТ ФУДС КАЗАХСТАН",0]
["ALPEN GOLD ОСОБЫЙ ТЕМНЫЙ шоколад (тауар) КАЗ (2 девушки с бобами) Ерекше уйлесимдилик, бирегей дам","КАЗАХСТАН","2013-01-01","Ролик","КРАФТ ФУДС КАЗАХСТАН",1.6]
["А.КОРКУНОВ шоколад в упаковке (КАЗ) В лесу (спонсор)","31 КАНАЛ","2013-01-01","Спонсор. ролик","А.КОРКУНОВ",1.6]
["M&M'S шоколадные конфеты (КАЗ) Елка (спонсор)","31 КАНАЛ","2013-01-01","Спонсор. ролик","MARS",1.6]
["M&M'S шоколадные конфеты (Желтый в шляпе и с волшебной палочкой) спонсор","31 КАНАЛ","2013-01-01","Спонсор. ролик","MARS",1.6]
["M&M'S шоколадные конфеты (КАЗ) Конфеты на диване (спонсор)","31 КАНАЛ","2013-01-01","Спонсор. ролик","MARS",1.6]
["А.КОРКУНОВ шоколад в упаковке (В лесу) спонсор.","31 КАНАЛ","2013-01-01","Спонсор. ролик","А.КОРКУНОВ",1.6]
["M&M'S шоколадные конфеты (Елка) спонсор","31 КАНАЛ","2013-01-01","Спонсор. ролик","MARS",1.6]
["M&M'S шоколадные конфеты (КАЗ) Конфета со стаканом (спонсор)","31 КАНАЛ","2013-01-01","Спонсор. ролик","MARS",1.6]
["M&M'S шоколадные конфеты (У желтого хвост павлина) спонсор","31 КАНАЛ","2013-01-01","Спонсор. ролик","MARS",0]
["А.КОРКУНОВ шоколад в упаковке (КАЗ) В лесу (спонсор)","31 КАНАЛ","2013-01-01","Спонсор. ролик","А.КОРКУНОВ",1.6]
["M&M'S шоколадные конфеты (КАЗ) Желтый в шляпе и с волшебной палочкой (спонсор)","31 КАНАЛ","2013-01-01","Спонсор. ролик","MARS",1.6]
["M&M'S шоколадные конфеты (Желтый в шляпе и с волшебной палочкой) спонсор","31 КАНАЛ","2013-01-01","Спонсор. ролик","MARS",1.6]
["M&M'S шоколадные конфеты (КАЗ) У желтого хвост павлина (спонсор)","31 КАНАЛ","2013-01-01","Спонсор. ролик","MARS",1.6]
["А.КОРКУНОВ шоколад в упаковке (В лесу) спонсор.","31 КАНАЛ","2013-01-01","Спонсор. ролик","А.КОРКУНОВ",1.6]
["M&M'S шоколадные конфеты (Желтый в шляпе и с волшебной палочкой) спонсор","31 КАНАЛ","2013-01-01","Спонсор. ролик","MARS",1.6]
["M&M'S шоколадные конфеты (КАЗ) Конфета со стаканом (спонсор)","31 КАНАЛ","2013-01-01","Спонсор. ролик","MARS",1.8]
["M&M'S шоколадные конфеты (Конфеты на диване) спонсор","31 КАНАЛ","2013-01-01","Спонсор. ролик","MARS",2.6]
["M&M'S шоколадные конфеты (КАЗ) Желтый в шляпе и с волшебной палочкой (спонсор)","31 КАНАЛ","2013-01-01","Спонсор. ролик","MARS",0]
["А.КОРКУНОВ шоколад в упаковке (КАЗ) В лесу (спонсор)","31 КАНАЛ","2013-01-01","Спонсор. ролик","А.КОРКУНОВ",6.1]
["M&M'S шоколадные конфеты (КАЗ) Желтый в шляпе и с волшебной палочкой (спонсор)","31 КАНАЛ","2013-01-01","Спонсор. ролик","MARS",5.0999999999999996]
["M&M'S шоколадные конфеты (КАЗ) Елка (спонсор)","31 КАНАЛ","2013-01-01","Спонсор. ролик","MARS",5.2]
["M&M'S шоколадные конфеты (Желтый в шляпе и с волшебной палочкой) спонсор","31 КАНАЛ","2013-01-01","Спонсор. ролик","MARS",3.9]
["M&M'S шоколадные конфеты (КАЗ) Конфеты на диване (спонсор)","31 КАНАЛ","2013-01-01","Спонсор. ролик","MARS",4.4000000000000004]
["А.КОРКУНОВ шоколад в упаковке (В лесу) спонсор.","31 КАНАЛ","2013-01-01","Спонсор. ролик","А.КОРКУНОВ",6.6]
["M&M'S шоколадные конфеты (Елка) спонсор","31 КАНАЛ","2013-01-01","Спонсор. ролик","MARS",4]
["M&M'S шоколадные конфеты (КАЗ) Конфета со стаканом (спонсор)","31 КАНАЛ","2013-01-01","Спонсор. ролик","MARS",3.6]
["M&M'S шоколадные конфеты (У желтого хвост павлина) спонсор","31 КАНАЛ","2013-01-01","Спонсор. ролик","MARS",7.2]
["А.КОРКУНОВ шоколад в упаковке (КАЗ) В лесу (спонсор)","31 КАНАЛ","2013-01-01","Спонсор. ролик","А.КОРКУНОВ",5.2]
["M&M'S шоколадные конфеты (КАЗ) Желтый в шляпе и с волшебной палочкой (спонсор)","31 КАНАЛ","2013-01-01","Спонсор. ролик","MARS",14.3]
["M&M'S шоколадные конфеты (Желтый в шляпе и с волшебной палочкой) спонсор","31 КАНАЛ","2013-01-01","Спонсор. ролик","MARS",17.8]
["M&M'S шоколадные конфеты (КАЗ) У желтого хвост павлина (спонсор)","31 КАНАЛ","2013-01-01","Спонсор. ролик","MARS",14.3]
["А.КОРКУНОВ шоколад в упаковке (В лесу) спонсор.","31 КАНАЛ","2013-01-01","Спонсор. ролик","А.КОРКУНОВ",14.4]
["M&M'S шоколадные конфеты (Желтый в шляпе и с волшебной палочкой) спонсор","31 КАНАЛ","2013-01-01","Спонсор. ролик","MARS",7.5]
["M&M'S шоколадные конфеты (КАЗ) Конфета со стаканом (спонсор)","31 КАНАЛ","2013-01-01","Спонсор. ролик","MARS",9.3000000000000007]
["M&M'S шоколадные конфеты (Конфеты на диване) спонсор","31 КАНАЛ","2013-01-01","Спонсор. ролик","MARS",5.0999999999999996]
["А.КОРКУНОВ шоколад в упаковке (КАЗ) В лесу (спонсор)","31 КАНАЛ","2013-01-01","Спонсор. ролик","А.КОРКУНОВ",7.2]
["M&M'S шоколадные конфеты (Конфеты на диване) спонсор","31 КАНАЛ","2013-01-01","Спонсор. ролик","MARS",5.8]
["M&M'S шоколадные конфеты (КАЗ) Елка (спонсор)","31 КАНАЛ","2013-01-01","Спонсор. ролик","MARS",11.7]
["M&M'S шоколадные конфеты (Желтый в шляпе и с волшебной палочкой) спонсор","31 КАНАЛ","2013-01-01","Спонсор. ролик","MARS",11.7]
["M&M'S шоколадные конфеты (КАЗ) Конфеты на диване (спонсор)","31 КАНАЛ","2013-01-01","Спонсор. ролик","MARS",8.8000000000000007]
["А.КОРКУНОВ шоколад в упаковке (В лесу) спонсор.","31 КАНАЛ","2013-01-01","Спонсор. ролик","А.КОРКУНОВ",9.8000000000000007]
["M&M'S шоколадные конфеты (Елка) спонсор","31 КАНАЛ","2013-01-01","Спонсор. ролик","MARS",6.4]
["M&M'S шоколадные конфеты (КАЗ) Конфета со стаканом (спонсор)","31 КАНАЛ","2013-01-01","Спонсор. ролик","MARS",8.1]
["M&M'S шоколадные конфеты (У желтого хвост павлина) спонсор","31 КАНАЛ","2013-01-01","Спонсор. ролик","MARS",1.6]
["А.КОРКУНОВ шоколад в упаковке (КАЗ) В лесу (спонсор)","31 КАНАЛ","2013-01-01","Спонсор. ролик","А.КОРКУНОВ",7.2]
["M&M'S шоколадные конфеты (КАЗ) Желтый в шляпе и с волшебной палочкой (спонсор)","31 КАНАЛ","2013-01-01","Спонсор. ролик","MARS",1.6]
["M&M'S шоколадные конфеты (Желтый в шляпе и с волшебной палочкой) спонсор","31 КАНАЛ","2013-01-01","Спонсор. ролик","MARS",7.2]
["M&M'S шоколадные конфеты (КАЗ) У желтого хвост павлина (спонсор)","31 КАНАЛ","2013-01-01","Спонсор. ролик","MARS",5.8]
["А.КОРКУНОВ шоколад в упаковке (В лесу) спонсор.","31 КАНАЛ","2013-01-01","Спонсор. ролик","А.КОРКУНОВ",0]
["M&M'S шоколадные конфеты (Желтый в шляпе и с волшебной палочкой) спонсор","31 КАНАЛ","2013-01-01","Спонсор. ролик","MARS",0]
["M&M'S шоколадные конфеты (КАЗ) У желтого хвост павлина исчезает (спонсор)","31 КАНАЛ","2013-01-01","Спонсор. ролик","MARS",0.6]
["M&M'S шоколадные конфеты (КАЗ) Конфета со стаканом (спонсор)","31 КАНАЛ","2013-01-01","Спонсор. ролик","MARS",5.2]
["M&M'S шоколадные конфеты (Конфеты на диване) спонсор","31 КАНАЛ","2013-01-01","Спонсор. ролик","MARS",0]
["А.КОРКУНОВ шоколад в упаковке (КАЗ) В лесу (спонсор)","31 КАНАЛ","2013-01-01","Спонсор. ролик","А.КОРКУНОВ",1.8]
["M&M'S шоколадные конфеты (КАЗ) Елка (спонсор)","31 КАНАЛ","2013-01-01","Спонсор. ролик","MARS",0]
["M&M'S шоколадные конфеты (Желтый в шляпе и с волшебной палочкой) спонсор","31 КАНАЛ","2013-01-01","Спонсор. ролик","MARS",1.8]
["M&M'S шоколадные конфеты (КАЗ) Конфеты на диване (спонсор)","31 КАНАЛ","2013-01-01","Спонсор. ролик","MARS",0]
["А.КОРКУНОВ шоколад в упаковке (В лесу) спонсор.","31 КАНАЛ","2013-01-01","Спонсор. ролик","А.КОРКУНОВ",1.6]
["M&M'S шоколадные конфеты (Елка) спонсор","31 КАНАЛ","2013-01-01","Спонсор. ролик","MARS",8.6999999999999993]
["M&M'S шоколадные конфеты (КАЗ) Конфета со стаканом (спонсор)","31 КАНАЛ","2013-01-01","Спонсор. ролик","MARS",7.1]
["M&M'S шоколадные конфеты (У желтого хвост павлина) спонсор","31 КАНАЛ","2013-01-01","Спонсор. ролик","MARS",7.1]
["А.КОРКУНОВ шоколад в упаковке (КАЗ) В лесу (спонсор)","31 КАНАЛ","2013-01-01","Спонсор. ролик","А.КОРКУНОВ",5.2]
["M&M'S шоколадные конфеты (КАЗ) Желтый в шляпе и с волшебной палочкой (спонсор)","31 КАНАЛ","2013-01-01","Спонсор. ролик","MARS",4.2]
["M&M'S шоколадные конфеты (Желтый в шляпе и с волшебной палочкой) спонсор","31 КАНАЛ","2013-01-01","Спонсор. ролик","MARS",3.4]
["M&M'S шоколадные конфеты (КАЗ) У желтого хвост павлина (спонсор)","31 КАНАЛ","2013-01-01","Спонсор. ролик","MARS",1.6]
["А.КОРКУНОВ шоколад в упаковке (В лесу) спонсор.","31 КАНАЛ","2013-01-01","Спонсор. ролик","А.КОРКУНОВ",11.7]
["M&M'S шоколадные конфеты (Желтый в шляпе и с волшебной палочкой) спонсор","31 КАНАЛ","2013-01-01","Спонсор. ролик","MARS",9.1999999999999993]
["M&M'S шоколадные конфеты (КАЗ) Конфета со стаканом (спонсор)","31 КАНАЛ","2013-01-01","Спонсор. ролик","MARS",11.6]
["M&M'S шоколадные конфеты (Конфеты на диване) спонсор","31 КАНАЛ","2013-01-01","Спонсор. ролик","MARS",14.6]
["А.КОРКУНОВ шоколад в упаковке (КАЗ) В лесу (спонсор)","31 КАНАЛ","2013-01-01","Спонсор. ролик","А.КОРКУНОВ",6.4]
["M&M'S шоколадные конфеты (КАЗ) Елка (спонсор)","31 КАНАЛ","2013-01-01","Спонсор. ролик","MARS",7.1]
["M&M'S шоколадные конфеты (КАЗ) Желтый в шляпе и с волшебной палочкой (спонсор)","31 КАНАЛ","2013-01-01","Спонсор. ролик","MARS",0.2]
["M&M'S шоколадные конфеты (Желтый в шляпе и с волшебной палочкой) спонсор","31 КАНАЛ","2013-01-01","Спонсор. ролик","MARS",1.8]
["M&M'S шоколадные конфеты (КАЗ) Конфеты на диване (спонсор)","31 КАНАЛ","2013-01-01","Спонсор. ролик","MARS",1.8]
["А.КОРКУНОВ шоколад в упаковке (В лесу) спонсор.","31 КАНАЛ","2013-01-01","Спонсор. ролик","А.КОРКУНОВ",1.3]
["M&M'S шоколадные конфеты (Елка) спонсор","31 КАНАЛ","2013-01-01","Спонсор. ролик","MARS",1.3]
["M&M'S шоколадные конфеты (КАЗ) Конфета со стаканом (спонсор)","31 КАНАЛ","2013-01-01","Спонсор. ролик","MARS",2.7]
["M&M'S конфеты (КАЗ) тауар (Жана Жылынызбен) Дед Мороз","КТК","2013-01-01","Ролик","MARS",4.9000000000000004]
["NESTLE шоколад (серт) Женщина и мужчина (А как ты разделишь удовольствие?)","КТК","2013-01-01","Ролик","NESTLE",3.1]
["KIT KAT шоколадный батончик (КАЗ) тауар (Узилис бар, Kit Kat бар ) Парень с сумками (укор.)","КТК","2013-01-01","Ролик","NESTLE",5.3]
["KIT KAT шоколадный батончик (КАЗ) тауар (Узилис бар, Kit Kat бар ) Парень с сумками (укор.)","КТК","2013-01-01","Ролик","NESTLE",2.2000000000000002]
["NESTLE шоколад (серт) Девушка, парень и женщина (А как ты разделишь удовольствие)","КТК","2013-01-01","Ролик","NESTLE",0.8]
["M&M'S конфеты (серт) С Новым годом (Дед Мороз)","КТК","2013-01-01","Ролик","MARS",6.5]
["SNICKERS шоколадный батончик (тауар) КАЗ (Белка)","КТК","2013-01-01","Ролик","MARS",0]
["NESTLE шоколад (серт) Женщина и мужчина (А как ты разделишь удовольствие?)","КТК","2013-01-01","Ролик","NESTLE",5]
["M&M'S конфеты (КАЗ) тауар (Жана Жылынызбен) Дед Мороз","КТК","2013-01-01","Ролик","MARS",7.8]
["SNICKERS шоколадный батончик (серт) Белка (Больше арахиса)","КТК","2013-01-01","Ролик","MARS",11.9]
["KIT KAT шоколадный батончик (серт) Есть перерыв, есть Kit Kat (Парень с сумками) укор.","КТК","2013-01-01","Ролик","NESTLE",5.8]
["ALPEN GOLD ОСОБЫЙ ТЕМНЫЙ шоколад (тауар) КАЗ (2 девушки с бобами) Ерекше уйлесимдилик, бирегей дам","ПЕРВЫЙ КАНАЛ ЕВРАЗИЯ/ЕВРАЗИЯ/ОРТ-КАЗ","2013-01-01","Ролик","КРАФТ ФУДС КАЗАХСТАН",3.8]
["KIT KAT шоколадный батончик (КАЗ) тауар (Узилис бар, Kit Kat бар ) Парень с сумками (укор.)","ПЕРВЫЙ КАНАЛ ЕВРАЗИЯ/ЕВРАЗИЯ/ОРТ-КАЗ","2013-01-01","Ролик","NESTLE",5]
["NESTLE шоколад (серт) Женщина и мужчина (А как ты разделишь удовольствие?)","ПЕРВЫЙ КАНАЛ ЕВРАЗИЯ/ЕВРАЗИЯ/ОРТ-КАЗ","2013-01-01","Ролик","NESTLE",7.2]
["SNICKERS шоколадный батончик (серт) Белка (Больше арахиса)","ПЕРВЫЙ КАНАЛ ЕВРАЗИЯ/ЕВРАЗИЯ/ОРТ-КАЗ","2013-01-01","Ролик","MARS",6.8]
["KIT KAT шоколадный батончик (КАЗ) тауар (Узилис бар, Kit Kat бар ) Парень с сумками (укор.)","ПЕРВЫЙ КАНАЛ ЕВРАЗИЯ/ЕВРАЗИЯ/ОРТ-КАЗ","2013-01-01","Ролик","NESTLE",1.8]
["SNICKERS шоколадный батончик (серт) Белка (Больше арахиса)","ПЕРВЫЙ КАНАЛ ЕВРАЗИЯ/ЕВРАЗИЯ/ОРТ-КАЗ","2013-01-01","Ролик","MARS",6.8]
["M&M'S конфеты (серт) С Новым годом (Дед Мороз)","ПЕРВЫЙ КАНАЛ ЕВРАЗИЯ/ЕВРАЗИЯ/ОРТ-КАЗ","2013-01-01","Ролик","MARS",4]
["SNICKERS шоколадный батончик (тауар) КАЗ (Белка)","ПЕРВЫЙ КАНАЛ ЕВРАЗИЯ/ЕВРАЗИЯ/ОРТ-КАЗ","2013-01-01","Ролик","MARS",0]
["M&M'S конфеты (КАЗ) тауар (Жана Жылынызбен) Дед Мороз","ПЕРВЫЙ КАНАЛ ЕВРАЗИЯ/ЕВРАЗИЯ/ОРТ-КАЗ","2013-01-01","Ролик","MARS",0]
["KIT KAT шоколадный батончик (КАЗ) тауар (Узилис бар, Kit Kat бар ) Парень с сумками (укор.)","ПЕРВЫЙ КАНАЛ ЕВРАЗИЯ/ЕВРАЗИЯ/ОРТ-КАЗ","2013-01-01","Ролик","NESTLE",3.1]
["M&M'S конфеты (серт) С Новым годом (Дед Мороз)","ПЕРВЫЙ КАНАЛ ЕВРАЗИЯ/ЕВРАЗИЯ/ОРТ-КАЗ","2013-01-01","Ролик","MARS",0.9]
["SNICKERS шоколадный батончик (тауар) КАЗ (Белка)","ПЕРВЫЙ КАНАЛ ЕВРАЗИЯ/ЕВРАЗИЯ/ОРТ-КАЗ","2013-01-01","Ролик","MARS",2.7]
["NESTLE шоколад (серт) Девушка, парень и женщина (А как ты разделишь удовольствие)","ПЕРВЫЙ КАНАЛ ЕВРАЗИЯ/ЕВРАЗИЯ/ОРТ-КАЗ","2013-01-01","Ролик","NESTLE",3.4]
["M&M'S конфеты (серт) С Новым годом (Дед Мороз)","ПЕРВЫЙ КАНАЛ ЕВРАЗИЯ/ЕВРАЗИЯ/ОРТ-КАЗ","2013-01-01","Ролик","MARS",6.1]
["M&M'S конфеты (КАЗ) тауар (Жана Жылынызбен) Дед Мороз","ПЕРВЫЙ КАНАЛ ЕВРАЗИЯ/ЕВРАЗИЯ/ОРТ-КАЗ","2013-01-01","Ролик","MARS",1.3]
["ALPEN GOLD ОСОБЫЙ ТЕМНЫЙ шоколад (серт) 2 девушки с бобами (Особое сочетание. Уникальный вкус)","НТК","2013-01-01","Ролик","КРАФТ ФУДС КАЗАХСТАН",2.5]
["KIT KAT шоколадный батончик (серт) Есть перерыв, есть Kit Kat (Парень с сумками) укор.","НТК","2013-01-01","Ролик","NESTLE",0.4]
["M&M'S конфеты (серт) С Новым годом (Дед Мороз)","НТК","2013-01-01","Ролик","MARS",5.2]
["SNICKERS шоколадный батончик (тауар) КАЗ (Белка)","НТК","2013-01-01","Ролик","MARS",5.2]
["NESTLE шоколад (КАЗ) тауар (Девушка, парень и женщина) Ал сен рахатынмен калай болисенин?","НТК","2013-01-01","Ролик","NESTLE",3.4]
["SNICKERS шоколадный батончик (серт) Белка (Больше арахиса)","НТК","2013-01-01","Ролик","MARS",0]
["KIT KAT шоколадный батончик (КАЗ) тауар (Узилис бар, Kit Kat бар ) Парень с сумками (укор.)","НТК","2013-01-01","Ролик","NESTLE",0]
["ALPEN GOLD ОСОБЫЙ ТЕМНЫЙ шоколад (серт) 2 девушки с бобами (Особое сочетание. Уникальный вкус)","НТК","2013-01-01","Ролик","КРАФТ ФУДС КАЗАХСТАН",0]
["M&M'S конфеты (КАЗ) тауар (Жана Жылынызбен) Дед Мороз","НТК","2013-01-01","Ролик","MARS",0]
["NESTLE шоколад (серт) Девушка, парень и женщина (А как ты разделишь удовольствие)","НТК","2013-01-01","Ролик","NESTLE",0]
["SNICKERS шоколадный батончик (серт) Белка (Больше арахиса)","НТК","2013-01-01","Ролик","MARS",0.5]
["M&M'S конфеты (серт) С Новым годом (Дед Мороз)","НТК","2013-01-01","Ролик","MARS",3.9]
["SNICKERS шоколадный батончик (тауар) КАЗ (Белка)","НТК","2013-01-01","Ролик","MARS",5.0999999999999996]
["ALPEN GOLD ОСОБЫЙ ТЕМНЫЙ шоколад (серт) 2 девушки с бобами (Особое сочетание. Уникальный вкус)","НТК","2013-01-01","Ролик","КРАФТ ФУДС КАЗАХСТАН",5.0999999999999996]
["SNICKERS шоколадный батончик (тауар) КАЗ (Белка)","НТК","2013-01-01","Ролик","MARS",1.6]
["M&M'S конфеты (КАЗ) тауар (Жана Жылынызбен) Дед Мороз","НТК","2013-01-01","Ролик","MARS",1.6]
["NESTLE шоколад (серт) Женщина и мужчина (А как ты разделишь удовольствие?)","НТК","2013-01-01","Ролик","NESTLE",5]
["KIT KAT шоколадный батончик (КАЗ) тауар (Узилис бар, Kit Kat бар ) Парень с сумками (укор.)","НТК","2013-01-01","Ролик","NESTLE",2.9]
["M&M'S конфеты (КАЗ) тауар (Жана Жылынызбен) Дед Мороз","НТК","2013-01-01","Ролик","MARS",0]
["ALPEN GOLD ОСОБЫЙ ТЕМНЫЙ шоколад (серт) 2 девушки с бобами (Особое сочетание. Уникальный вкус)","НТК","2013-01-01","Ролик","КРАФТ ФУДС КАЗАХСТАН",0]
["M&M'S конфеты (серт) С Новым годом (Дед Мороз)","НТК","2013-01-01","Ролик","MARS",0]
["SNICKERS шоколадный батончик (серт) Белка (Больше арахиса)","НТК","2013-01-01","Ролик","MARS",0]
["SNICKERS шоколадный батончик (тауар) КАЗ (Белка)","АСТАНА","2013-01-01","Ролик","MARS",0]
["M&M'S конфеты (КАЗ) тауар (Жана Жылынызбен) Дед Мороз","АСТАНА","2013-01-01","Ролик","MARS",0]
["ALPEN GOLD ОСОБЫЙ ТЕМНЫЙ шоколад (серт) 2 девушки с бобами (Особое сочетание. Уникальный вкус)","СЕДЬМОЙ КАНАЛ","2013-01-01","Ролик","КРАФТ ФУДС КАЗАХСТАН",1.6]
["NESTLE шоколад (серт) Девушка, парень и женщина (А как ты разделишь удовольствие)","СЕДЬМОЙ КАНАЛ","2013-01-01","Ролик","NESTLE",7.7]
["ALPEN GOLD ОСОБЫЙ ТЕМНЫЙ шоколад (тауар) КАЗ (2 девушки с бобами) Ерекше уйлесимдилик, бирегей дам","СЕДЬМОЙ КАНАЛ","2013-01-01","Ролик","КРАФТ ФУДС КАЗАХСТАН",8.6]
["SNICKERS шоколадный батончик (тауар) КАЗ (Белка)","СЕДЬМОЙ КАНАЛ","2013-01-01","Ролик","MARS",2.4]
["M&M'S конфеты (КАЗ) тауар (Жана Жылынызбен) Дед Мороз","СЕДЬМОЙ КАНАЛ","2013-01-01","Ролик","MARS",6.2]
["NESTLE шоколад (серт) Женщина и мужчина (А как ты разделишь удовольствие?)","СЕДЬМОЙ КАНАЛ","2013-01-01","Ролик","NESTLE",1.8]
["ALPEN GOLD ОСОБЫЙ ТЕМНЫЙ шоколад (тауар) КАЗ (2 девушки с бобами) Ерекше уйлесимдилик, бирегей дам","СЕДЬМОЙ КАНАЛ","2013-01-01","Ролик","КРАФТ ФУДС КАЗАХСТАН",3.1]
["ALPEN GOLD ОСОБЫЙ ТЕМНЫЙ шоколад (тауар) КАЗ (2 девушки с бобами) Ерекше уйлесимдилик, бирегей дам","КАЗАХСТАН","2013-01-02","Ролик","КРАФТ ФУДС КАЗАХСТАН",2.9]
["ALPEN GOLD ОСОБЫЙ ТЕМНЫЙ шоколад (тауар) КАЗ (2 девушки с бобами) Ерекше уйлесимдилик, бирегей дам","КАЗАХСТАН","2013-01-02","Ролик","КРАФТ ФУДС КАЗАХСТАН",0]
["ALPEN GOLD ОСОБЫЙ ТЕМНЫЙ шоколад (тауар) КАЗ (2 девушки с бобами) Ерекше уйлесимдилик, бирегей дам","КАЗАХСТАН","2013-01-02","Ролик","КРАФТ ФУДС КАЗАХСТАН",1.7]
["ALPEN GOLD ОСОБЫЙ ТЕМНЫЙ шоколад (тауар) КАЗ (2 девушки с бобами) Ерекше уйлесимдилик, бирегей дам","КАЗАХСТАН","2013-01-02","Ролик","КРАФТ ФУДС КАЗАХСТАН",0]
["ALPEN GOLD ОСОБЫЙ ТЕМНЫЙ шоколад (тауар) КАЗ (2 девушки с бобами) Ерекше уйлесимдилик, бирегей дам","31 КАНАЛ","2013-01-02","Ролик","КРАФТ ФУДС КАЗАХСТАН",2]
["KIT KAT шоколадный батончик (КАЗ) тауар (Колын калт етсе, жеп ал! (Молодежь на дискотеке)","31 КАНАЛ","2013-01-02","Ролик","NESTLE",9.1999999999999993]
["NESTLE шоколад (серт) Девушка, парень и женщина (А как ты разделишь удовольствие)","31 КАНАЛ","2013-01-02","Ролик","NESTLE",4.5999999999999996]
["NESTLE шоколад (КАЗ) тауар (Женщина и мужчина) Ал сен рахатынмен калай болисенин?","31 КАНАЛ","2013-01-02","Ролик","NESTLE",0]
["KIT KAT шоколадный батончик (серт) Есть перерыв? Есть Kit Kat (Молодежь на дискотеке)","31 КАНАЛ","2013-01-02","Ролик","NESTLE",7.7]
["SNICKERS шоколадный батончик (тауар) КАЗ (Белка)","31 КАНАЛ","2013-01-02","Ролик","MARS",10.1]
["M&M'S конфеты (КАЗ) тауар (Жана Жылынызбен) Дед Мороз","31 КАНАЛ","2013-01-02","Ролик","MARS",13.3]
["NESTLE шоколад (серт) Девушка, парень и женщина (А как ты разделишь удовольствие)","31 КАНАЛ","2013-01-02","Ролик","NESTLE",16]
["ALPEN GOLD ОСОБЫЙ ТЕМНЫЙ шоколад (серт) 2 девушки с бобами (Особое сочетание. Уникальный вкус)","31 КАНАЛ","2013-01-02","Ролик","КРАФТ ФУДС КАЗАХСТАН",14.8]
["SNICKERS шоколадный батончик (серт) Белка (Больше арахиса)","КТК","2013-01-02","Ролик","MARS",2.8]
["NESTLE шоколад (серт) Девушка, парень и женщина (А как ты разделишь удовольствие)","КТК","2013-01-02","Ролик","NESTLE",4.5999999999999996]
["KIT KAT шоколадный батончик (серт) Есть перерыв, есть Kit Kat (Парень с сумками) укор.","КТК","2013-01-02","Ролик","NESTLE",2.9]
["NESTLE шоколад (серт) Женщина и мужчина (А как ты разделишь удовольствие?)","КТК","2013-01-02","Ролик","NESTLE",6.7]
["M&M'S конфеты (серт) С Новым годом (Дед Мороз)","КТК","2013-01-02","Ролик","MARS",1.7]
["KIT KAT шоколадный батончик (КАЗ) тауар (Узилис бар, Kit Kat бар ) Парень с сумками (укор.)","КТК","2013-01-02","Ролик","NESTLE",0]
["NESTLE шоколад (серт) Женщина и мужчина (А как ты разделишь удовольствие?)","КТК","2013-01-02","Ролик","NESTLE",5.0999999999999996]
["KIT KAT шоколадный батончик (серт) Есть перерыв, есть Kit Kat (Парень с сумками) укор.","КТК","2013-01-02","Ролик","NESTLE",4.0999999999999996]
["SNICKERS шоколадный батончик (серт) Белка (Больше арахиса)","КТК","2013-01-02","Ролик","MARS",4.4000000000000004]
["M&M'S конфеты (КАЗ) тауар (Жана Жылынызбен) Дед Мороз","КТК","2013-01-02","Ролик","MARS",0.4]
["SNICKERS шоколадный батончик (тауар) КАЗ (Белка)","КТК","2013-01-02","Ролик","MARS",1.7]
["M&M'S конфеты (серт) С Новым годом (Дед Мороз)","ПЕРВЫЙ КАНАЛ ЕВРАЗИЯ/ЕВРАЗИЯ/ОРТ-КАЗ","2013-01-02","Ролик","MARS",12.5]
["NESTLE шоколад (КАЗ) тауар (Девушка, парень и женщина) Ал сен рахатынмен калай болисенин?","ПЕРВЫЙ КАНАЛ ЕВРАЗИЯ/ЕВРАЗИЯ/ОРТ-КАЗ","2013-01-02","Ролик","NESTLE",2.4]
["KIT KAT шоколадный батончик (КАЗ) тауар (Узилис бар, Kit Kat бар ) Парень с сумками (укор.)","ПЕРВЫЙ КАНАЛ ЕВРАЗИЯ/ЕВРАЗИЯ/ОРТ-КАЗ","2013-01-02","Ролик","NESTLE",4.7]
["SNICKERS шоколадный батончик (тауар) КАЗ (Белка)","ПЕРВЫЙ КАНАЛ ЕВРАЗИЯ/ЕВРАЗИЯ/ОРТ-КАЗ","2013-01-02","Ролик","MARS",5.3]
["ALPEN GOLD ОСОБЫЙ ТЕМНЫЙ шоколад (тауар) КАЗ (2 девушки с бобами) Ерекше уйлесимдилик, бирегей дам","ПЕРВЫЙ КАНАЛ ЕВРАЗИЯ/ЕВРАЗИЯ/ОРТ-КАЗ","2013-01-02","Ролик","КРАФТ ФУДС КАЗАХСТАН",4.0999999999999996]
["SNICKERS шоколадный батончик (серт) Белка (Больше арахиса)","ПЕРВЫЙ КАНАЛ ЕВРАЗИЯ/ЕВРАЗИЯ/ОРТ-КАЗ","2013-01-02","Ролик","MARS",12.7]
["SNICKERS шоколадный батончик (серт) Белка (Больше арахиса)","ПЕРВЫЙ КАНАЛ ЕВРАЗИЯ/ЕВРАЗИЯ/ОРТ-КАЗ","2013-01-02","Ролик","MARS",7.4]
["SNICKERS шоколадный батончик (серт) Белка (Больше арахиса)","ПЕРВЫЙ КАНАЛ ЕВРАЗИЯ/ЕВРАЗИЯ/ОРТ-КАЗ","2013-01-02","Ролик","MARS",11.4]
["M&M'S конфеты (серт) С Новым годом (Дед Мороз)","ПЕРВЫЙ КАНАЛ ЕВРАЗИЯ/ЕВРАЗИЯ/ОРТ-КАЗ","2013-01-02","Ролик","MARS",7.4]
["KIT KAT шоколадный батончик (серт) Есть перерыв, есть Kit Kat (Парень с сумками) укор.","ПЕРВЫЙ КАНАЛ ЕВРАЗИЯ/ЕВРАЗИЯ/ОРТ-КАЗ","2013-01-02","Ролик","NESTLE",4.8]
["SNICKERS шоколадный батончик (серт) Белка (Больше арахиса)","ПЕРВЫЙ КАНАЛ ЕВРАЗИЯ/ЕВРАЗИЯ/ОРТ-КАЗ","2013-01-02","Ролик","MARS",4]
["M&M'S конфеты (КАЗ) тауар (Жана Жылынызбен) Дед Мороз","ПЕРВЫЙ КАНАЛ ЕВРАЗИЯ/ЕВРАЗИЯ/ОРТ-КАЗ","2013-01-02","Ролик","MARS",1.7]
["NESTLE МОЛОЧНЫЙ шоколад (КАЗ) тауар (Семья за столом) Ал сен... (Шоколад с разными вкусами)","НТК","2013-01-02","Ролик","NESTLE",0]
["NESTLE шоколад (КАЗ) тауар (Девушка, парень и женщина) Ал сен рахатынмен калай болисенин?","НТК","2013-01-02","Ролик","NESTLE",4.8]
["KIT KAT шоколадный батончик (серт) Есть перерыв, есть Kit Kat (Парень с сумками) укор.","НТК","2013-01-02","Ролик","NESTLE",4.8]
["ALPEN GOLD ОСОБЫЙ ТЕМНЫЙ шоколад (тауар) КАЗ (2 девушки с бобами) Ерекше уйлесимдилик, бирегей дам","НТК","2013-01-02","Ролик","КРАФТ ФУДС КАЗАХСТАН",1.9]
["M&M'S конфеты (КАЗ) тауар (Жана Жылынызбен) Дед Мороз","НТК","2013-01-02","Ролик","MARS",3.4]
["ALPEN GOLD ОСОБЫЙ ТЕМНЫЙ шоколад (серт) 2 девушки с бобами (Особое сочетание. Уникальный вкус)","НТК","2013-01-02","Ролик","КРАФТ ФУДС КАЗАХСТАН",3.4]
["SNICKERS шоколадный батончик (серт) Белка (Больше арахиса)","НТК","2013-01-02","Ролик","MARS",1.3]
["KIT KAT шоколадный батончик (серт) Есть перерыв, есть Kit Kat (Парень с сумками) укор.","НТК","2013-01-02","Ролик","NESTLE",0]
["KIT KAT шоколадный батончик (серт) Есть перерыв, есть Kit Kat (Парень с сумками) укор.","НТК","2013-01-02","Ролик","NESTLE",1]
["M&M'S конфеты (КАЗ) тауар (Жана Жылынызбен) Дед Мороз","НТК","2013-01-02","Ролик","MARS",4]
["SNICKERS шоколадный батончик (тауар) КАЗ (Белка)","НТК","2013-01-02","Ролик","MARS",4.8]
["NESTLE МОЛОЧНЫЙ шоколад (серт) Семья за столом (А как ты...) Шоколад с разными вкусами","НТК","2013-01-02","Ролик","NESTLE",1.7]
["NESTLE шоколад (серт) Девушка, парень и женщина (А как ты разделишь удовольствие)","НТК","2013-01-02","Ролик","NESTLE",0]
["ALPEN GOLD ОСОБЫЙ ТЕМНЫЙ шоколад (серт) 2 девушки с бобами (Особое сочетание. Уникальный вкус)","НТК","2013-01-02","Ролик","КРАФТ ФУДС КАЗАХСТАН",0.8]
["M&M'S конфеты (серт) С Новым годом (Дед Мороз)","НТК","2013-01-02","Ролик","MARS",1.2]
["SNICKERS шоколадный батончик (серт) Белка (Больше арахиса)","НТК","2013-01-02","Ролик","MARS",4.0999999999999996]
["NESTLE шоколад (КАЗ) тауар (Женщина и мужчина) Ал сен рахатынмен калай болисенин?","НТК","2013-01-02","Ролик","NESTLE",3.5]
["KIT KAT шоколадный батончик (КАЗ) тауар (Узилис бар, Kit Kat бар ) Парень с сумками (укор.)","НТК","2013-01-02","Ролик","NESTLE",0.4]
["M&M'S конфеты (серт) С Новым годом (Дед Мороз)","НТК","2013-01-02","Ролик","MARS",0.9]
["SNICKERS шоколадный батончик (тауар) КАЗ (Белка)","НТК","2013-01-02","Ролик","MARS",5]
["M&M'S конфеты (КАЗ) тауар (Жана Жылынызбен) Дед Мороз","НТК","2013-01-02","Ролик","MARS",1.2]
["SNICKERS шоколадный батончик (серт) Белка (Больше арахиса)","НТК","2013-01-02","Ролик","MARS",2.5]
["M&M'S конфеты (серт) С Новым годом (Дед Мороз)","НТК","2013-01-02","Ролик","MARS",0]
["SNICKERS шоколадный батончик (серт) Белка (Больше арахиса)","НТК","2013-01-02","Ролик","MARS",0]
["ALPEN GOLD ОСОБЫЙ ТЕМНЫЙ шоколад (серт) 2 девушки с бобами (Особое сочетание. Уникальный вкус)","НТК","2013-01-02","Ролик","КРАФТ ФУДС КАЗАХСТАН",1.2]
["M&M'S конфеты (серт) С Новым годом (Дед Мороз)","АСТАНА","2013-01-02","Ролик","MARS",0.9]
["SNICKERS шоколадный батончик (серт) Белка (Больше арахиса)","АСТАНА","2013-01-02","Ролик","MARS",1]
["NESTLE шоколад (серт) Женщина и мужчина (А как ты разделишь удовольствие?)","СЕДЬМОЙ КАНАЛ","2013-01-02","Ролик","NESTLE",0]
["ALPEN GOLD ОСОБЫЙ ТЕМНЫЙ шоколад (тауар) КАЗ (2 девушки с бобами) Ерекше уйлесимдилик, бирегей дам","СЕДЬМОЙ КАНАЛ","2013-01-02","Ролик","КРАФТ ФУДС КАЗАХСТАН",1.5]
["ALPEN GOLD ОСОБЫЙ ТЕМНЫЙ шоколад (тауар) КАЗ (2 девушки с бобами) Ерекше уйлесимдилик, бирегей дам","СЕДЬМОЙ КАНАЛ","2013-01-02","Ролик","КРАФТ ФУДС КАЗАХСТАН",0.4]
["NESTLE шоколад (серт) Девушка, парень и женщина (А как ты разделишь удовольствие)","СЕДЬМОЙ КАНАЛ","2013-01-02","Ролик","NESTLE",3.9]
["SNICKERS шоколадный батончик (серт) Белка (Больше арахиса)","СЕДЬМОЙ КАНАЛ","2013-01-02","Ролик","MARS",3.6]
["M&M'S конфеты (серт) С Новым годом (Дед Мороз)","СЕДЬМОЙ КАНАЛ","2013-01-02","Ролик","MARS",8.1]
["ALPEN GOLD ОСОБЫЙ ТЕМНЫЙ шоколад (серт) 2 девушки с бобами (Особое сочетание. Уникальный вкус)","СЕДЬМОЙ КАНАЛ","2013-01-02","Ролик","КРАФТ ФУДС КАЗАХСТАН",3]
["ALPEN GOLD ОСОБЫЙ ТЕМНЫЙ шоколад (тауар) КАЗ (2 девушки с бобами) Ерекше уйлесимдилик, бирегей дам","КАЗАХСТАН","2013-01-03","Ролик","КРАФТ ФУДС КАЗАХСТАН",0]
["ALPEN GOLD ОСОБЫЙ ТЕМНЫЙ шоколад (тауар) КАЗ (2 девушки с бобами) Ерекше уйлесимдилик, бирегей дам","КАЗАХСТАН","2013-01-03","Ролик","КРАФТ ФУДС КАЗАХСТАН",0]
["ALPEN GOLD ОСОБЫЙ ТЕМНЫЙ шоколад (тауар) КАЗ (2 девушки с бобами) Ерекше уйлесимдилик, бирегей дам","КАЗАХСТАН","2013-01-03","Ролик","КРАФТ ФУДС КАЗАХСТАН",0]
["NESTLE шоколад (КАЗ) тауар (Женщина и мужчина) Ал сен рахатынмен калай болисенин?","31 КАНАЛ","2013-01-03","Ролик","NESTLE",6.2]
["KIT KAT шоколадный батончик (КАЗ) тауар (Колын калт етсе, жеп ал! (Молодежь на дискотеке)","31 КАНАЛ","2013-01-03","Ролик","NESTLE",2.2999999999999998]
["NESTLE шоколад (КАЗ) тауар (Девушка, парень и женщина) Ал сен рахатынмен калай болисенин?","31 КАНАЛ","2013-01-03","Ролик","NESTLE",2]
["ALPEN GOLD ОСОБЫЙ ТЕМНЫЙ шоколад (тауар) КАЗ (2 девушки с бобами) Ерекше уйлесимдилик, бирегей дам","31 КАНАЛ","2013-01-03","Ролик","КРАФТ ФУДС КАЗАХСТАН",8.4]
["KIT KAT шоколадный батончик (серт) Есть перерыв? Есть Kit Kat (Молодежь на дискотеке)","31 КАНАЛ","2013-01-03","Ролик","NESTLE",8.6]
["NESTLE шоколад (КАЗ) тауар (Женщина и мужчина) Ал сен рахатынмен калай болисенин?","31 КАНАЛ","2013-01-03","Ролик","NESTLE",8]
["ALPEN GOLD ОСОБЫЙ ТЕМНЫЙ шоколад (тауар) КАЗ (2 девушки с бобами) Ерекше уйлесимдилик, бирегей дам","31 КАНАЛ","2013-01-03","Ролик","КРАФТ ФУДС КАЗАХСТАН",14.1]
["ALPEN GOLD ОСОБЫЙ ТЕМНЫЙ шоколад (тауар) КАЗ (2 девушки с бобами) Ерекше уйлесимдилик, бирегей дам","31 КАНАЛ","2013-01-03","Ролик","КРАФТ ФУДС КАЗАХСТАН",4.8]
["M&M'S конфеты (серт) С Новым годом (Дед Мороз)","КТК","2013-01-03","Ролик","MARS",0]
["SNICKERS шоколадный батончик (серт) Белка (Больше арахиса)","КТК","2013-01-03","Ролик","MARS",8.1]
["NESTLE МОЛОЧНЫЙ шоколад (КАЗ) тауар (Семья за столом) Ал сен... (Шоколад с разными вкусами)","КТК","2013-01-03","Ролик","NESTLE",7.6]
["KIT KAT шоколадный батончик (КАЗ) тауар (Узилис бар, Kit Kat бар ) Парень с сумками (укор.)","КТК","2013-01-03","Ролик","NESTLE",4.0999999999999996]
["NESTLE МОЛОЧНЫЙ шоколад (КАЗ) тауар (Семья за столом) Ал сен... (Шоколад с разными вкусами)","КТК","2013-01-03","Ролик","NESTLE",4.0999999999999996]
["M&M'S конфеты (КАЗ) тауар (Жана Жылынызбен) Дед Мороз","КТК","2013-01-03","Ролик","MARS",6.1]
["SNICKERS шоколадный батончик (тауар) КАЗ (Белка)","КТК","2013-01-03","Ролик","MARS",7.4]
["M&M'S конфеты (КАЗ) тауар (Жана Жылынызбен) Дед Мороз","КТК","2013-01-03","Ролик","MARS",2.9]
["SNICKERS шоколадный батончик (тауар) КАЗ (Белка)","КТК","2013-01-03","Ролик","MARS",11.4]
["SNICKERS шоколадный батончик (тауар) КАЗ (Белка)","КТК","2013-01-03","Ролик","MARS",4.3]
["M&M'S конфеты (КАЗ) тауар (Жана Жылынызбен) Дед Мороз","КТК","2013-01-03","Ролик","MARS",4.3]
["KIT KAT шоколадный батончик (КАЗ) тауар (Узилис бар, Kit Kat бар ) Парень с сумками (укор.)","КТК","2013-01-03","Ролик","NESTLE",2.6]
["SNICKERS шоколадный батончик (тауар) КАЗ (Белка)","КТК","2013-01-03","Ролик","MARS",3.9]
["M&M'S конфеты (серт) С Новым годом (Дед Мороз)","ПЕРВЫЙ КАНАЛ ЕВРАЗИЯ/ЕВРАЗИЯ/ОРТ-КАЗ","2013-01-03","Ролик","MARS",3.6]
["SNICKERS шоколадный батончик (тауар) КАЗ (Белка)","ПЕРВЫЙ КАНАЛ ЕВРАЗИЯ/ЕВРАЗИЯ/ОРТ-КАЗ","2013-01-03","Ролик","MARS",2]
["M&M'S конфеты (КАЗ) тауар (Жана Жылынызбен) Дед Мороз","ПЕРВЫЙ КАНАЛ ЕВРАЗИЯ/ЕВРАЗИЯ/ОРТ-КАЗ","2013-01-03","Ролик","MARS",10.7]
["ALPEN GOLD ОСОБЫЙ ТЕМНЫЙ шоколад (тауар) КАЗ (2 девушки с бобами) Ерекше уйлесимдилик, бирегей дам","ПЕРВЫЙ КАНАЛ ЕВРАЗИЯ/ЕВРАЗИЯ/ОРТ-КАЗ","2013-01-03","Ролик","КРАФТ ФУДС КАЗАХСТАН",8.1]
["KIT KAT шоколадный батончик (КАЗ) тауар (Узилис бар, Kit Kat бар ) Парень с сумками (укор.)","ПЕРВЫЙ КАНАЛ ЕВРАЗИЯ/ЕВРАЗИЯ/ОРТ-КАЗ","2013-01-03","Ролик","NESTLE",8.3000000000000007]
["M&M'S конфеты (серт) С Новым годом (Дед Мороз)","ПЕРВЫЙ КАНАЛ ЕВРАЗИЯ/ЕВРАЗИЯ/ОРТ-КАЗ","2013-01-03","Ролик","MARS",4.8]
["KIT KAT шоколадный батончик (серт) Есть перерыв, есть Kit Kat (Парень с сумками) укор.","ПЕРВЫЙ КАНАЛ ЕВРАЗИЯ/ЕВРАЗИЯ/ОРТ-КАЗ","2013-01-03","Ролик","NESTLE",9.1999999999999993]
["ALPEN GOLD ОСОБЫЙ ТЕМНЫЙ шоколад (тауар) КАЗ (2 девушки с бобами) Ерекше уйлесимдилик, бирегей дам","ПЕРВЫЙ КАНАЛ ЕВРАЗИЯ/ЕВРАЗИЯ/ОРТ-КАЗ","2013-01-03","Ролик","КРАФТ ФУДС КАЗАХСТАН",2.2999999999999998]
["M&M'S конфеты (КАЗ) тауар (Жана Жылынызбен) Дед Мороз","ПЕРВЫЙ КАНАЛ ЕВРАЗИЯ/ЕВРАЗИЯ/ОРТ-КАЗ","2013-01-03","Ролик","MARS",5.2]
["SNICKERS шоколадный батончик (тауар) КАЗ (Белка)","ПЕРВЫЙ КАНАЛ ЕВРАЗИЯ/ЕВРАЗИЯ/ОРТ-КАЗ","2013-01-03","Ролик","MARS",7.8]
["KIT KAT шоколадный батончик (КАЗ) тауар (Узилис бар, Kit Kat бар ) Парень с сумками (укор.)","ПЕРВЫЙ КАНАЛ ЕВРАЗИЯ/ЕВРАЗИЯ/ОРТ-КАЗ","2013-01-03","Ролик","NESTLE",9.1999999999999993]
["M&M'S конфеты (КАЗ) тауар (Жана Жылынызбен) Дед Мороз","НТК","2013-01-03","Ролик","MARS",2.6]
["KIT KAT шоколадный батончик (КАЗ) тауар (Узилис бар, Kit Kat бар ) Парень с сумками (укор.)","НТК","2013-01-03","Ролик","NESTLE",2.6]
["SNICKERS шоколадный батончик (тауар) КАЗ (Белка)","НТК","2013-01-03","Ролик","MARS",4.3]
["ALPEN GOLD ОСОБЫЙ ТЕМНЫЙ шоколад (серт) 2 девушки с бобами (Особое сочетание. Уникальный вкус)","НТК","2013-01-03","Ролик","КРАФТ ФУДС КАЗАХСТАН",4.3]
["SNICKERS шоколадный батончик (серт) Белка (Больше арахиса)","НТК","2013-01-03","Ролик","MARS",0.6]
["ALPEN GOLD ОСОБЫЙ ТЕМНЫЙ шоколад (серт) 2 девушки с бобами (Особое сочетание. Уникальный вкус)","НТК","2013-01-03","Ролик","КРАФТ ФУДС КАЗАХСТАН",1.3]
["M&M'S конфеты (КАЗ) тауар (Жана Жылынызбен) Дед Мороз","НТК","2013-01-03","Ролик","MARS",1.3]
["NESTLE МОЛОЧНЫЙ шоколад (серт) Семья за столом (А как ты...) Шоколад с разными вкусами","НТК","2013-01-03","Ролик","NESTLE",1.3]
["KIT KAT шоколадный батончик (серт) Есть перерыв, есть Kit Kat (Парень с сумками) укор.","НТК","2013-01-03","Ролик","NESTLE",1.3]
["NESTLE МОЛОЧНЫЙ шоколад (КАЗ) тауар (Семья за столом) Ал сен... (Шоколад с разными вкусами)","НТК","2013-01-03","Ролик","NESTLE",1.3]
["KIT KAT шоколадный батончик (серт) Есть перерыв, есть Kit Kat (Парень с сумками) укор.","НТК","2013-01-03","Ролик","NESTLE",1.3]
["KIT KAT шоколадный батончик (КАЗ) тауар (Узилис бар, Kit Kat бар ) Парень с сумками (укор.)","НТК","2013-01-03","Ролик","NESTLE",1.4]
["SNICKERS шоколадный батончик (серт) Белка (Больше арахиса)","НТК","2013-01-03","Ролик","MARS",4]
["M&M'S конфеты (серт) С Новым годом (Дед Мороз)","НТК","2013-01-03","Ролик","MARS",1.3]
["SNICKERS шоколадный батончик (серт) Белка (Больше арахиса)","НТК","2013-01-03","Ролик","MARS",0.8]
["NESTLE МОЛОЧНЫЙ шоколад (серт) Семья за столом (А как ты...) Шоколад с разными вкусами","НТК","2013-01-03","Ролик","NESTLE",0.8]
["ALPEN GOLD ОСОБЫЙ ТЕМНЫЙ шоколад (серт) 2 девушки с бобами (Особое сочетание. Уникальный вкус)","НТК","2013-01-03","Ролик","КРАФТ ФУДС КАЗАХСТАН",0.8]
["SNICKERS шоколадный батончик (серт) Белка (Больше арахиса)","НТК","2013-01-03","Ролик","MARS",1.3]
["M&M'S конфеты (серт) С Новым годом (Дед Мороз)","НТК","2013-01-03","Ролик","MARS",2]
["SNICKERS шоколадный батончик (тауар) КАЗ (Белка)","НТК","2013-01-03","Ролик","MARS",2]
["SNICKERS шоколадный батончик (тауар) КАЗ (Белка)","НТК","2013-01-03","Ролик","MARS",3.8]
["KIT KAT шоколадный батончик (серт) Есть перерыв, есть Kit Kat (Парень с сумками) укор.","НТК","2013-01-03","Ролик","NESTLE",2]
["M&M'S конфеты (серт) С Новым годом (Дед Мороз)","НТК","2013-01-03","Ролик","MARS",1.6]
["M&M'S конфеты (серт) С Новым годом (Дед Мороз)","НТК","2013-01-03","Ролик","MARS",3]
["SNICKERS шоколадный батончик (серт) Белка (Больше арахиса)","НТК","2013-01-03","Ролик","MARS",3]
["SNICKERS шоколадный батончик (серт) Белка (Больше арахиса)","НТК","2013-01-03","Ролик","MARS",7]
["SNICKERS шоколадный батончик (тауар) КАЗ (Белка)","НТК","2013-01-03","Ролик","MARS",1.5]
["M&M'S конфеты (серт) С Новым годом (Дед Мороз)","НТК","2013-01-03","Ролик","MARS",0]
["SNICKERS шоколадный батончик (серт) Белка (Больше арахиса)","НТК","2013-01-03","Ролик","MARS",0]
["ALPEN GOLD ОСОБЫЙ ТЕМНЫЙ шоколад (серт) 2 девушки с бобами (Особое сочетание. Уникальный вкус)","НТК","2013-01-03","Ролик","КРАФТ ФУДС КАЗАХСТАН",4.2]
["SNICKERS шоколадный батончик (тауар) КАЗ (Белка)","АСТАНА","2013-01-03","Ролик","MARS",0.2]
["SNICKERS шоколадный батончик (серт) Белка (Больше арахиса)","АСТАНА","2013-01-03","Ролик","MARS",0.5]
["M&M'S конфеты (КАЗ) тауар (Жана Жылынызбен) Дед Мороз","СЕДЬМОЙ КАНАЛ","2013-01-03","Ролик","MARS",1.6]
["ALPEN GOLD ОСОБЫЙ ТЕМНЫЙ шоколад (серт) 2 девушки с бобами (Особое сочетание. Уникальный вкус)","СЕДЬМОЙ КАНАЛ","2013-01-03","Ролик","КРАФТ ФУДС КАЗАХСТАН",0.3]
["NESTLE шоколад (КАЗ) тауар (Девушка, парень и женщина) Ал сен рахатынмен калай болисенин?","СЕДЬМОЙ КАНАЛ","2013-01-03","Ролик","NESTLE",0.3]
["ALPEN GOLD ОСОБЫЙ ТЕМНЫЙ шоколад (тауар) КАЗ (2 девушки с бобами) Ерекше уйлесимдилик, бирегей дам","СЕДЬМОЙ КАНАЛ","2013-01-03","Ролик","КРАФТ ФУДС КАЗАХСТАН",0.3]
["KIT KAT шоколадный батончик (серт) Есть перерыв? Есть Kit Kat (Молодежь на дискотеке)","СЕДЬМОЙ КАНАЛ","2013-01-03","Ролик","NESTLE",0]
["NESTLE шоколад (серт) Женщина и мужчина (А как ты разделишь удовольствие?)","СЕДЬМОЙ КАНАЛ","2013-01-03","Ролик","NESTLE",3.7]
["ALPEN GOLD ОСОБЫЙ ТЕМНЫЙ шоколад (серт) 2 девушки с бобами (Особое сочетание. Уникальный вкус)","СЕДЬМОЙ КАНАЛ","2013-01-03","Ролик","КРАФТ ФУДС КАЗАХСТАН",1.5]
["ALPEN GOLD ОСОБЫЙ ТЕМНЫЙ шоколад (тауар) КАЗ (2 девушки с бобами) Ерекше уйлесимдилик, бирегей дам","КАЗАХСТАН","2013-01-04","Ролик","КРАФТ ФУДС КАЗАХСТАН",0]
["ALPEN GOLD ОСОБЫЙ ТЕМНЫЙ шоколад (тауар) КАЗ (2 девушки с бобами) Ерекше уйлесимдилик, бирегей дам","КАЗАХСТАН","2013-01-04","Ролик","КРАФТ ФУДС КАЗАХСТАН",0]
["ALPEN GOLD ОСОБЫЙ ТЕМНЫЙ шоколад (тауар) КАЗ (2 девушки с бобами) Ерекше уйлесимдилик, бирегей дам","КАЗАХСТАН","2013-01-04","Ролик","КРАФТ ФУДС КАЗАХСТАН",0]
["ALPEN GOLD ОСОБЫЙ ТЕМНЫЙ шоколад (тауар) КАЗ (2 девушки с бобами) Ерекше уйлесимдилик, бирегей дам","КАЗАХСТАН","2013-01-04","Ролик","КРАФТ ФУДС КАЗАХСТАН",1.8]
["M&M'S конфеты (КАЗ) тауар (Жана Жылынызбен) Дед Мороз","31 КАНАЛ","2013-01-04","Ролик","MARS",3.4]
["ALPEN GOLD ОСОБЫЙ ТЕМНЫЙ шоколад (серт) 2 девушки с бобами (Особое сочетание. Уникальный вкус)","31 КАНАЛ","2013-01-04","Ролик","КРАФТ ФУДС КАЗАХСТАН",0]
["SNICKERS шоколадный батончик (серт) Белка (Больше арахиса)","КТК","2013-01-04","Ролик","MARS",0]
["KIT KAT шоколадный батончик (КАЗ) тауар (Узилис бар, Kit Kat бар ) Парень с сумками (укор.)","КТК","2013-01-04","Ролик","NESTLE",0.7]
["KIT KAT шоколадный батончик (серт) Есть перерыв, есть Kit Kat (Парень с сумками) укор.","КТК","2013-01-04","Ролик","NESTLE",5.8]
["SNICKERS шоколадный батончик (тауар) КАЗ (Белка)","КТК","2013-01-04","Ролик","MARS",9.6999999999999993]
["KIT KAT шоколадный батончик (серт) Есть перерыв, есть Kit Kat (Парень с сумками) укор.","КТК","2013-01-04","Ролик","NESTLE",1.6]
["SNICKERS шоколадный батончик (серт) Белка (Больше арахиса)","КТК","2013-01-04","Ролик","MARS",3.5]
["M&M'S конфеты (серт) С Новым годом (Дед Мороз)","КТК","2013-01-04","Ролик","MARS",7.5]
["M&M'S конфеты (серт) С Новым годом (Дед Мороз)","КТК","2013-01-04","Ролик","MARS",5.7]
["M&M'S конфеты (серт) С Новым годом (Дед Мороз)","КТК","2013-01-04","Ролик","MARS",4.4000000000000004]
["SNICKERS шоколадный батончик (тауар) КАЗ (Белка)","КТК","2013-01-04","Ролик","MARS",7.7]
["SNICKERS шоколадный батончик (серт) Белка (Больше арахиса)","ПЕРВЫЙ КАНАЛ ЕВРАЗИЯ/ЕВРАЗИЯ/ОРТ-КАЗ","2013-01-04","Ролик","MARS",9.6999999999999993]
["NESTLE МОЛОЧНЫЙ шоколад (КАЗ) тауар (Семья за столом) Ал сен... (Шоколад с разными вкусами)","ПЕРВЫЙ КАНАЛ ЕВРАЗИЯ/ЕВРАЗИЯ/ОРТ-КАЗ","2013-01-04","Ролик","NESTLE",11.8]
["M&M'S конфеты (серт) С Новым годом (Дед Мороз)","ПЕРВЫЙ КАНАЛ ЕВРАЗИЯ/ЕВРАЗИЯ/ОРТ-КАЗ","2013-01-04","Ролик","MARS",3.7]
["SNICKERS шоколадный батончик (серт) Белка (Больше арахиса)","ПЕРВЫЙ КАНАЛ ЕВРАЗИЯ/ЕВРАЗИЯ/ОРТ-КАЗ","2013-01-04","Ролик","MARS",2]
["KIT KAT шоколадный батончик (КАЗ) тауар (Узилис бар, Kit Kat бар ) Парень с сумками (укор.)","ПЕРВЫЙ КАНАЛ ЕВРАЗИЯ/ЕВРАЗИЯ/ОРТ-КАЗ","2013-01-04","Ролик","NESTLE",2.8]
["ALPEN GOLD ОСОБЫЙ ТЕМНЫЙ шоколад (тауар) КАЗ (2 девушки с бобами) Ерекше уйлесимдилик, бирегей дам","ПЕРВЫЙ КАНАЛ ЕВРАЗИЯ/ЕВРАЗИЯ/ОРТ-КАЗ","2013-01-04","Ролик","КРАФТ ФУДС КАЗАХСТАН",1.7]
["M&M'S конфеты (КАЗ) тауар (Жана Жылынызбен) Дед Мороз","ПЕРВЫЙ КАНАЛ ЕВРАЗИЯ/ЕВРАЗИЯ/ОРТ-КАЗ","2013-01-04","Ролик","MARS",8.5]
["NESTLE МОЛОЧНЫЙ шоколад (серт) Семья за столом (А как ты...) Шоколад с разными вкусами","ПЕРВЫЙ КАНАЛ ЕВРАЗИЯ/ЕВРАЗИЯ/ОРТ-КАЗ","2013-01-04","Ролик","NESTLE",10.1]
["KIT KAT шоколадный батончик (серт) Есть перерыв, есть Kit Kat (Парень с сумками) укор.","ПЕРВЫЙ КАНАЛ ЕВРАЗИЯ/ЕВРАЗИЯ/ОРТ-КАЗ","2013-01-04","Ролик","NESTLE",1.8]
["KIT KAT шоколадный батончик (серт) Есть перерыв, есть Kit Kat (Парень с сумками) укор.","ПЕРВЫЙ КАНАЛ ЕВРАЗИЯ/ЕВРАЗИЯ/ОРТ-КАЗ","2013-01-04","Ролик","NESTLE",3.3]
["ALPEN GOLD ОСОБЫЙ ТЕМНЫЙ шоколад (тауар) КАЗ (2 девушки с бобами) Ерекше уйлесимдилик, бирегей дам","ПЕРВЫЙ КАНАЛ ЕВРАЗИЯ/ЕВРАЗИЯ/ОРТ-КАЗ","2013-01-04","Ролик","КРАФТ ФУДС КАЗАХСТАН",8.1999999999999993]
["SNICKERS шоколадный батончик (серт) Белка (Больше арахиса)","ПЕРВЫЙ КАНАЛ ЕВРАЗИЯ/ЕВРАЗИЯ/ОРТ-КАЗ","2013-01-04","Ролик","MARS",9]
["SNICKERS шоколадный батончик (серт) Белка (Больше арахиса)","ПЕРВЫЙ КАНАЛ ЕВРАЗИЯ/ЕВРАЗИЯ/ОРТ-КАЗ","2013-01-04","Ролик","MARS",4]
["M&M'S конфеты (серт) С Новым годом (Дед Мороз)","ПЕРВЫЙ КАНАЛ ЕВРАЗИЯ/ЕВРАЗИЯ/ОРТ-КАЗ","2013-01-04","Ролик","MARS",12.8]
["SNICKERS шоколадный батончик (серт) Белка (Больше арахиса)","НТК","2013-01-04","Ролик","MARS",0]
["TWIX шок. батончик (тауар) КАЗ (Люди у ворот) Сен кай жагыдасын? (Внизу тит(каз):Twix-тин сол...)","НТК","2013-01-04","Ролик","MARS",1.2]
["M&M'S конфеты (серт) С Новым годом (Дед Мороз)","НТК","2013-01-04","Ролик","MARS",1.2]
["TWIX шоколадный батончик (серт) Люди у ворот (На чьей стороне ты?)","НТК","2013-01-04","Ролик","MARS",1.2]
["KIT KAT шоколадный батончик (серт) Есть перерыв, есть Kit Kat (Парень с сумками) укор.","НТК","2013-01-04","Ролик","NESTLE",0]
["ALPEN GOLD ОСОБЫЙ ТЕМНЫЙ шоколад (серт) 2 девушки с бобами (Особое сочетание. Уникальный вкус)","НТК","2013-01-04","Ролик","КРАФТ ФУДС КАЗАХСТАН",0.5]
["SNICKERS шоколадный батончик (серт) Белка (Больше арахиса)","НТК","2013-01-04","Ролик","MARS",0.5]
["KIT KAT шоколадный батончик (серт) Есть перерыв, есть Kit Kat (Парень с сумками) укор.","НТК","2013-01-04","Ролик","NESTLE",0]
["TWIX шок. батончик (тауар) КАЗ (Люди у ворот) Сен кай жагыдасын? (Внизу тит(каз):Twix-тин сол...)","НТК","2013-01-04","Ролик","MARS",0]
["SNICKERS шоколадный батончик (тауар) КАЗ (Белка)","НТК","2013-01-04","Ролик","MARS",0]
["TWIX шок. батончик (тауар) КАЗ (Люди у ворот) Сен кай жагыдасын? (Внизу тит(каз):Twix-тин сол...)","НТК","2013-01-04","Ролик","MARS",3.2]
["M&M'S конфеты (серт) С Новым годом (Дед Мороз)","НТК","2013-01-04","Ролик","MARS",3.2]
["KIT KAT шоколадный батончик (серт) Есть перерыв, есть Kit Kat (Парень с сумками) укор.","НТК","2013-01-04","Ролик","NESTLE",0]
["TWIX шок. батончик (тауар) КАЗ (Люди у ворот) Сен кай жагыдасын? (Внизу тит(каз):Twix-тин сол...)","НТК","2013-01-04","Ролик","MARS",0]
["TWIX шоколадный батончик (серт) Люди у ворот (На чьей стороне ты?)","НТК","2013-01-04","Ролик","MARS",0.7]
["NESTLE МОЛОЧНЫЙ шоколад (серт) Семья за столом (А как ты...) Шоколад с разными вкусами","НТК","2013-01-04","Ролик","NESTLE",0]
["SNICKERS шоколадный батончик (серт) Белка (Больше арахиса)","НТК","2013-01-04","Ролик","MARS",0]
["TWIX шок. батончик (тауар) КАЗ (Люди у ворот) Сен кай жагыдасын? (Внизу тит(каз):Twix-тин сол...)","НТК","2013-01-04","Ролик","MARS",1.4]
["M&M'S конфеты (КАЗ) тауар (Жана Жылынызбен) Дед Мороз","НТК","2013-01-04","Ролик","MARS",1.4]
["ALPEN GOLD ОСОБЫЙ ТЕМНЫЙ шоколад (серт) 2 девушки с бобами (Особое сочетание. Уникальный вкус)","НТК","2013-01-04","Ролик","КРАФТ ФУДС КАЗАХСТАН",3.9]
["SNICKERS шоколадный батончик (тауар) КАЗ (Белка)","НТК","2013-01-04","Ролик","MARS",3.9]
["SNICKERS шоколадный батончик (тауар) КАЗ (Белка)","НТК","2013-01-04","Ролик","MARS",4]
["TWIX шок. батончик (тауар) КАЗ (Люди у ворот) Сен кай жагыдасын? (Внизу тит(каз):Twix-тин сол...)","НТК","2013-01-04","Ролик","MARS",2.2999999999999998]
["KIT KAT шоколадный батончик (серт) Есть перерыв, есть Kit Kat (Парень с сумками) укор.","НТК","2013-01-04","Ролик","NESTLE",2.2999999999999998]
["M&M'S конфеты (КАЗ) тауар (Жана Жылынызбен) Дед Мороз","НТК","2013-01-04","Ролик","MARS",2.8]
["SNICKERS шоколадный батончик (серт) Белка (Больше арахиса)","НТК","2013-01-04","Ролик","MARS",2.8]
["TWIX шок. батончик (тауар) КАЗ (Люди у ворот) Сен кай жагыдасын? (Внизу тит(каз):Twix-тин сол...)","НТК","2013-01-04","Ролик","MARS",8.1999999999999993]
["M&M'S конфеты (серт) С Новым годом (Дед Мороз)","НТК","2013-01-04","Ролик","MARS",7.9]
["NESTLE МОЛОЧНЫЙ шоколад (серт) Семья за столом (А как ты...) Шоколад с разными вкусами","НТК","2013-01-04","Ролик","NESTLE",7.9]
["SNICKERS шоколадный батончик (тауар) КАЗ (Белка)","НТК","2013-01-04","Ролик","MARS",3.4]
["TWIX шоколадный батончик (серт) Люди у ворот (На чьей стороне ты?)","НТК","2013-01-04","Ролик","MARS",1.4]
["M&M'S конфеты (серт) С Новым годом (Дед Мороз)","НТК","2013-01-04","Ролик","MARS",5.5]
["SNICKERS шоколадный батончик (тауар) КАЗ (Белка)","НТК","2013-01-04","Ролик","MARS",5.5]
["KIT KAT шоколадный батончик (КАЗ) тауар (Узилис бар, Kit Kat бар ) Парень с сумками (укор.)","НТК","2013-01-04","Ролик","NESTLE",5.5]
["M&M'S конфеты (серт) С Новым годом (Дед Мороз)","НТК","2013-01-04","Ролик","MARS",2]
["SNICKERS шоколадный батончик (серт) Белка (Больше арахиса)","НТК","2013-01-04","Ролик","MARS",3.5]
["TWIX шок. батончик (тауар) КАЗ (Люди у ворот) Сен кай жагыдасын? (Внизу тит(каз):Twix-тин сол...)","НТК","2013-01-04","Ролик","MARS",0.8]
["ALPEN GOLD ОСОБЫЙ ТЕМНЫЙ шоколад (серт) 2 девушки с бобами (Особое сочетание. Уникальный вкус)","НТК","2013-01-04","Ролик","КРАФТ ФУДС КАЗАХСТАН",1.2]
["M&M'S конфеты (серт) С Новым годом (Дед Мороз)","НТК","2013-01-04","Ролик","MARS",1.9]
["SNICKERS шоколадный батончик (серт) Белка (Больше арахиса)","НТК","2013-01-04","Ролик","MARS",2.5]
["M&M'S конфеты (серт) С Новым годом (Дед Мороз)","АСТАНА","2013-01-04","Ролик","MARS",0]
["SNICKERS шоколадный батончик (тауар) КАЗ (Белка)","АСТАНА","2013-01-04","Ролик","MARS",0]
["M&M'S конфеты (серт) С Новым годом (Дед Мороз)","СЕДЬМОЙ КАНАЛ","2013-01-04","Ролик","MARS",1.9]
["SNICKERS шоколадный батончик (тауар) КАЗ (Белка)","СЕДЬМОЙ КАНАЛ","2013-01-04","Ролик","MARS",1.9]
["ALPEN GOLD ОСОБЫЙ ТЕМНЫЙ шоколад (серт) 2 девушки с бобами (Особое сочетание. Уникальный вкус)","СЕДЬМОЙ КАНАЛ","2013-01-04","Ролик","КРАФТ ФУДС КАЗАХСТАН",0]
["SNICKERS шоколадный батончик (серт) Белка (Больше арахиса)","СЕДЬМОЙ КАНАЛ","2013-01-04","Ролик","MARS",0]
["M&M'S конфеты (КАЗ) тауар (Жана Жылынызбен) Дед Мороз","СЕДЬМОЙ КАНАЛ","2013-01-04","Ролик","MARS",0]
["SNICKERS шоколадный батончик (тауар) КАЗ (Белка)","СЕДЬМОЙ КАНАЛ","2013-01-04","Ролик","MARS",3.6]
["SNICKERS шоколадный батончик (серт) Белка (Больше арахиса)","СЕДЬМОЙ КАНАЛ","2013-01-04","Ролик","MARS",2.1]
["ALPEN GOLD ОСОБЫЙ ТЕМНЫЙ шоколад (тауар) КАЗ (2 девушки с бобами) Ерекше уйлесимдилик, бирегей дам","КАЗАХСТАН","2013-01-05","Ролик","КРАФТ ФУДС КАЗАХСТАН",0]
["ALPEN GOLD ОСОБЫЙ ТЕМНЫЙ шоколад (тауар) КАЗ (2 девушки с бобами) Ерекше уйлесимдилик, бирегей дам","КАЗАХСТАН","2013-01-05","Ролик","КРАФТ ФУДС КАЗАХСТАН",1.2]
["ALPEN GOLD ОСОБЫЙ ТЕМНЫЙ шоколад (тауар) КАЗ (2 девушки с бобами) Ерекше уйлесимдилик, бирегей дам","КАЗАХСТАН","2013-01-05","Ролик","КРАФТ ФУДС КАЗАХСТАН",1.6]
["ALPEN GOLD ОСОБЫЙ ТЕМНЫЙ шоколад (тауар) КАЗ (2 девушки с бобами) Ерекше уйлесимдилик, бирегей дам","КАЗАХСТАН","2013-01-05","Ролик","КРАФТ ФУДС КАЗАХСТАН",0]
["ALPEN GOLD ОСОБЫЙ ТЕМНЫЙ шоколад (тауар) КАЗ (2 девушки с бобами) Ерекше уйлесимдилик, бирегей дам","КАЗАХСТАН","2013-01-05","Ролик","КРАФТ ФУДС КАЗАХСТАН",2.2000000000000002]
["ALPEN GOLD ОСОБЫЙ ТЕМНЫЙ шоколад (тауар) КАЗ (2 девушки с бобами) Ерекше уйлесимдилик, бирегей дам","КАЗАХСТАН","2013-01-05","Ролик","КРАФТ ФУДС КАЗАХСТАН",0]
["ALPEN GOLD ОСОБЫЙ ТЕМНЫЙ шоколад (тауар) КАЗ (2 девушки с бобами) Ерекше уйлесимдилик, бирегей дам","КАЗАХСТАН","2013-01-05","Ролик","КРАФТ ФУДС КАЗАХСТАН",1.5]
["ALPEN GOLD ОСОБЫЙ ТЕМНЫЙ шоколад (тауар) КАЗ (2 девушки с бобами) Ерекше уйлесимдилик, бирегей дам","КАЗАХСТАН","2013-01-05","Ролик","КРАФТ ФУДС КАЗАХСТАН",0]
["ALPEN GOLD ОСОБЫЙ ТЕМНЫЙ шоколад (тауар) КАЗ (2 девушки с бобами) Ерекше уйлесимдилик, бирегей дам","КАЗАХСТАН","2013-01-05","Ролик","КРАФТ ФУДС КАЗАХСТАН",0]
["M&M'S конфеты (КАЗ) тауар (Жана Жылынызбен) Дед Мороз","31 КАНАЛ","2013-01-05","Ролик","MARS",2.2999999999999998]
["SNICKERS шоколадный батончик (серт) Белка (Больше арахиса)","31 КАНАЛ","2013-01-05","Ролик","MARS",0]
["NESTLE шоколад (серт) Девушка, парень и женщина (А как ты разделишь удовольствие)","31 КАНАЛ","2013-01-05","Ролик","NESTLE",1.5]
["KIT KAT шоколадный батончик (КАЗ) тауар (Колын калт етсе, жеп ал! (Молодежь на дискотеке)","31 КАНАЛ","2013-01-05","Ролик","NESTLE",5]
["M&M'S конфеты (серт) С Новым годом (Дед Мороз)","31 КАНАЛ","2013-01-05","Ролик","MARS",3.7]
["M&M'S конфеты (КАЗ) тауар (Жана Жылынызбен) Дед Мороз","31 КАНАЛ","2013-01-05","Ролик","MARS",5.4]
["ALPEN GOLD ОСОБЫЙ ТЕМНЫЙ шоколад (серт) 2 девушки с бобами (Особое сочетание. Уникальный вкус)","31 КАНАЛ","2013-01-05","Ролик","КРАФТ ФУДС КАЗАХСТАН",3.8]
["NESTLE шоколад (серт) Девушка, парень и женщина (А как ты разделишь удовольствие)","31 КАНАЛ","2013-01-05","Ролик","NESTLE",3.8]
["M&M'S конфеты (КАЗ) тауар (Жана Жылынызбен) Дед Мороз","31 КАНАЛ","2013-01-05","Ролик","MARS",2.2000000000000002]
["SNICKERS шоколадный батончик (тауар) КАЗ (Белка)","31 КАНАЛ","2013-01-05","Ролик","MARS",2.2000000000000002]
["KIT KAT шоколадный батончик (серт) Есть перерыв? Есть Kit Kat (Молодежь на дискотеке)","31 КАНАЛ","2013-01-05","Ролик","NESTLE",1.5]
["NESTLE МОЛОЧНЫЙ шоколад (серт) Семья за столом (А как ты...) Шоколад с разными вкусами","31 КАНАЛ","2013-01-05","Ролик","NESTLE",2.2000000000000002]
["KIT KAT шоколадный батончик (серт) Есть перерыв? Есть Kit Kat (Молодежь на дискотеке)","31 КАНАЛ","2013-01-05","Ролик","NESTLE",2.2000000000000002]
["KIT KAT шоколадный батончик (серт) Есть перерыв? Есть Kit Kat (Молодежь на дискотеке)","31 КАНАЛ","2013-01-05","Ролик","NESTLE",9.3000000000000007]
["SNICKERS шоколадный батончик (тауар) КАЗ (Белка)","31 КАНАЛ","2013-01-05","Ролик","MARS",13.7]
["SNICKERS шоколадный батончик (серт) Белка (Больше арахиса)","31 КАНАЛ","2013-01-05","Ролик","MARS",7.7]
["M&M'S конфеты (серт) С Новым годом (Дед Мороз)","31 КАНАЛ","2013-01-05","Ролик","MARS",8.4]
["SNICKERS шоколадный батончик (серт) Белка (Больше арахиса)","31 КАНАЛ","2013-01-05","Ролик","MARS",9.9]
["SNICKERS шоколадный батончик (тауар) КАЗ (Белка)","31 КАНАЛ","2013-01-05","Ролик","MARS",6.6]
["ALPEN GOLD ОСОБЫЙ ТЕМНЫЙ шоколад (тауар) КАЗ (2 девушки с бобами) Ерекше уйлесимдилик, бирегей дам","31 КАНАЛ","2013-01-05","Ролик","КРАФТ ФУДС КАЗАХСТАН",2.6]
["SNICKERS шоколадный батончик (серт) Белка (Больше арахиса)","КТК","2013-01-05","Ролик","MARS",3.6]
["M&M'S конфеты (КАЗ) тауар (Жана Жылынызбен) Дед Мороз","КТК","2013-01-05","Ролик","MARS",3.6]
["SNICKERS шоколадный батончик (тауар) КАЗ (Белка)","КТК","2013-01-05","Ролик","MARS",3.3]
["M&M'S конфеты (серт) С Новым годом (Дед Мороз)","КТК","2013-01-05","Ролик","MARS",4.2]
["NESTLE МОЛОЧНЫЙ шоколад (КАЗ) тауар (Семья за столом) Ал сен... (Шоколад с разными вкусами)","КТК","2013-01-05","Ролик","NESTLE",2.2000000000000002]
["KIT KAT шоколадный батончик (КАЗ) тауар (Узилис бар, Kit Kat бар ) Парень с сумками (укор.)","КТК","2013-01-05","Ролик","NESTLE",3]
["SNICKERS шоколадный батончик (серт) Белка (Больше арахиса)","КТК","2013-01-05","Ролик","MARS",1.6]
["SNICKERS шоколадный батончик (серт) Белка (Больше арахиса)","КТК","2013-01-05","Ролик","MARS",1.6]
["KIT KAT шоколадный батончик (КАЗ) тауар (Узилис бар, Kit Kat бар ) Парень с сумками (укор.)","КТК","2013-01-05","Ролик","NESTLE",1.4]
["M&M'S конфеты (серт) С Новым годом (Дед Мороз)","КТК","2013-01-05","Ролик","MARS",0]
["KIT KAT шоколадный батончик (серт) Есть перерыв, есть Kit Kat (Парень с сумками) укор.","КТК","2013-01-05","Ролик","NESTLE",1.6]
["SNICKERS шоколадный батончик (серт) Белка (Больше арахиса)","КТК","2013-01-05","Ролик","MARS",5.7]
["NESTLE МОЛОЧНЫЙ шоколад (серт) Семья за столом (А как ты...) Шоколад с разными вкусами","КТК","2013-01-05","Ролик","NESTLE",0]
["KIT KAT шоколадный батончик (серт) Есть перерыв, есть Kit Kat (Парень с сумками) укор.","КТК","2013-01-05","Ролик","NESTLE",2.5]
["NESTLE МОЛОЧНЫЙ шоколад (серт) Семья за столом (А как ты...) Шоколад с разными вкусами","КТК","2013-01-05","Ролик","NESTLE",0.7]
["KIT KAT шоколадный батончик (серт) Есть перерыв, есть Kit Kat (Парень с сумками) укор.","КТК","2013-01-05","Ролик","NESTLE",0]
["SNICKERS шоколадный батончик (тауар) КАЗ (Белка)","КТК","2013-01-05","Ролик","MARS",1]
["SNICKERS шоколадный батончик (тауар) КАЗ (Белка)","КТК","2013-01-05","Ролик","MARS",1.1000000000000001]
["M&M'S конфеты (КАЗ) тауар (Жана Жылынызбен) Дед Мороз","КТК","2013-01-05","Ролик","MARS",2]
["SNICKERS шоколадный батончик (тауар) КАЗ (Белка)","ПЕРВЫЙ КАНАЛ ЕВРАЗИЯ/ЕВРАЗИЯ/ОРТ-КАЗ","2013-01-05","Ролик","MARS",7.6]
["M&M'S конфеты (КАЗ) тауар (Жана Жылынызбен) Дед Мороз","ПЕРВЫЙ КАНАЛ ЕВРАЗИЯ/ЕВРАЗИЯ/ОРТ-КАЗ","2013-01-05","Ролик","MARS",5.3]
["M&M'S конфеты (серт) С Новым годом (Дед Мороз)","ПЕРВЫЙ КАНАЛ ЕВРАЗИЯ/ЕВРАЗИЯ/ОРТ-КАЗ","2013-01-05","Ролик","MARS",8.5]
["SNICKERS шоколадный батончик (тауар) КАЗ (Белка)","ПЕРВЫЙ КАНАЛ ЕВРАЗИЯ/ЕВРАЗИЯ/ОРТ-КАЗ","2013-01-05","Ролик","MARS",5.7]
["KIT KAT шоколадный батончик (серт) Есть перерыв, есть Kit Kat (Парень с сумками) укор.","ПЕРВЫЙ КАНАЛ ЕВРАЗИЯ/ЕВРАЗИЯ/ОРТ-КАЗ","2013-01-05","Ролик","NESTLE",6]
["SNICKERS шоколадный батончик (серт) Белка (Больше арахиса)","ПЕРВЫЙ КАНАЛ ЕВРАЗИЯ/ЕВРАЗИЯ/ОРТ-КАЗ","2013-01-05","Ролик","MARS",4.5999999999999996]
["NESTLE МОЛОЧНЫЙ шоколад (серт) Семья за столом (А как ты...) Шоколад с разными вкусами","ПЕРВЫЙ КАНАЛ ЕВРАЗИЯ/ЕВРАЗИЯ/ОРТ-КАЗ","2013-01-05","Ролик","NESTLE",7.8]
["M&M'S конфеты (КАЗ) тауар (Жана Жылынызбен) Дед Мороз","ПЕРВЫЙ КАНАЛ ЕВРАЗИЯ/ЕВРАЗИЯ/ОРТ-КАЗ","2013-01-05","Ролик","MARS",7.8]
["SNICKERS шоколадный батончик (тауар) КАЗ (Белка)","ПЕРВЫЙ КАНАЛ ЕВРАЗИЯ/ЕВРАЗИЯ/ОРТ-КАЗ","2013-01-05","Ролик","MARS",5.9]
["NESTLE шоколад (КАЗ) тауар (Девушка, парень и женщина) Ал сен рахатынмен калай болисенин?","ПЕРВЫЙ КАНАЛ ЕВРАЗИЯ/ЕВРАЗИЯ/ОРТ-КАЗ","2013-01-05","Ролик","NESTLE",2.7]
["M&M'S конфеты (КАЗ) тауар (Жана Жылынызбен) Дед Мороз","ПЕРВЫЙ КАНАЛ ЕВРАЗИЯ/ЕВРАЗИЯ/ОРТ-КАЗ","2013-01-05","Ролик","MARS",4.5]
["SNICKERS шоколадный батончик (тауар) КАЗ (Белка)","ПЕРВЫЙ КАНАЛ ЕВРАЗИЯ/ЕВРАЗИЯ/ОРТ-КАЗ","2013-01-05","Ролик","MARS",5]
["KIT KAT шоколадный батончик (серт) Есть перерыв, есть Kit Kat (Парень с сумками) укор.","ПЕРВЫЙ КАНАЛ ЕВРАЗИЯ/ЕВРАЗИЯ/ОРТ-КАЗ","2013-01-05","Ролик","NESTLE",4.2]
["ALPEN GOLD ОСОБЫЙ ТЕМНЫЙ шоколад (тауар) КАЗ (2 девушки с бобами) Ерекше уйлесимдилик, бирегей дам","ПЕРВЫЙ КАНАЛ ЕВРАЗИЯ/ЕВРАЗИЯ/ОРТ-КАЗ","2013-01-05","Ролик","КРАФТ ФУДС КАЗАХСТАН",3.4]
["M&M'S конфеты (серт) С Новым годом (Дед Мороз)","ПЕРВЫЙ КАНАЛ ЕВРАЗИЯ/ЕВРАЗИЯ/ОРТ-КАЗ","2013-01-05","Ролик","MARS",4.3]
["SNICKERS шоколадный батончик (серт) Белка (Больше арахиса)","ПЕРВЫЙ КАНАЛ ЕВРАЗИЯ/ЕВРАЗИЯ/ОРТ-КАЗ","2013-01-05","Ролик","MARS",10.6]
["M&M'S конфеты (КАЗ) тауар (Жана Жылынызбен) Дед Мороз","ПЕРВЫЙ КАНАЛ ЕВРАЗИЯ/ЕВРАЗИЯ/ОРТ-КАЗ","2013-01-05","Ролик","MARS",8.8000000000000007]
["M&M'S конфеты (серт) С Новым годом (Дед Мороз)","ПЕРВЫЙ КАНАЛ ЕВРАЗИЯ/ЕВРАЗИЯ/ОРТ-КАЗ","2013-01-05","Ролик","MARS",16.2]
["SNICKERS шоколадный батончик (тауар) КАЗ (Белка)","ПЕРВЫЙ КАНАЛ ЕВРАЗИЯ/ЕВРАЗИЯ/ОРТ-КАЗ","2013-01-05","Ролик","MARS",16.2]
["SNICKERS шоколадный батончик (тауар) КАЗ (Белка)","ПЕРВЫЙ КАНАЛ ЕВРАЗИЯ/ЕВРАЗИЯ/ОРТ-КАЗ","2013-01-05","Ролик","MARS",10]
["M&M'S конфеты (КАЗ) тауар (Жана Жылынызбен) Дед Мороз","ПЕРВЫЙ КАНАЛ ЕВРАЗИЯ/ЕВРАЗИЯ/ОРТ-КАЗ","2013-01-05","Ролик","MARS",9.9]
["SNICKERS шоколадный батончик (серт) Белка (Больше арахиса)","ПЕРВЫЙ КАНАЛ ЕВРАЗИЯ/ЕВРАЗИЯ/ОРТ-КАЗ","2013-01-05","Ролик","MARS",15.2]
["M&M'S конфеты (КАЗ) тауар (Жана Жылынызбен) Дед Мороз","ПЕРВЫЙ КАНАЛ ЕВРАЗИЯ/ЕВРАЗИЯ/ОРТ-КАЗ","2013-01-05","Ролик","MARS",15.2]
["SNICKERS шоколадный батончик (серт) Белка (Больше арахиса)","ПЕРВЫЙ КАНАЛ ЕВРАЗИЯ/ЕВРАЗИЯ/ОРТ-КАЗ","2013-01-05","Ролик","MARS",5.7]
["M&M'S конфеты (серт) С Новым годом (Дед Мороз)","ПЕРВЫЙ КАНАЛ ЕВРАЗИЯ/ЕВРАЗИЯ/ОРТ-КАЗ","2013-01-05","Ролик","MARS",6.3]
["SNICKERS шоколадный батончик (тауар) КАЗ (Белка)","ПЕРВЫЙ КАНАЛ ЕВРАЗИЯ/ЕВРАЗИЯ/ОРТ-КАЗ","2013-01-05","Ролик","MARS",6]
["SNICKERS шоколадный батончик (серт) Белка (Больше арахиса)","ПЕРВЫЙ КАНАЛ ЕВРАЗИЯ/ЕВРАЗИЯ/ОРТ-КАЗ","2013-01-05","Ролик","MARS",8.3000000000000007]
["NESTLE МОЛОЧНЫЙ шоколад (КАЗ) тауар (Семья за столом) Ал сен... (Шоколад с разными вкусами)","ПЕРВЫЙ КАНАЛ ЕВРАЗИЯ/ЕВРАЗИЯ/ОРТ-КАЗ","2013-01-05","Ролик","NESTLE",9.4]
["M&M'S конфеты (серт) С Новым годом (Дед Мороз)","ПЕРВЫЙ КАНАЛ ЕВРАЗИЯ/ЕВРАЗИЯ/ОРТ-КАЗ","2013-01-05","Ролик","MARS",12.4]
["SNICKERS шоколадный батончик (тауар) КАЗ (Белка)","ПЕРВЫЙ КАНАЛ ЕВРАЗИЯ/ЕВРАЗИЯ/ОРТ-КАЗ","2013-01-05","Ролик","MARS",10.8]
["M&M'S конфеты (КАЗ) тауар (Жана Жылынызбен) Дед Мороз","ПЕРВЫЙ КАНАЛ ЕВРАЗИЯ/ЕВРАЗИЯ/ОРТ-КАЗ","2013-01-05","Ролик","MARS",11.2]
["SNICKERS шоколадный батончик (серт) Белка (Больше арахиса)","ПЕРВЫЙ КАНАЛ ЕВРАЗИЯ/ЕВРАЗИЯ/ОРТ-КАЗ","2013-01-05","Ролик","MARS",7.1]
["M&M'S конфеты (КАЗ) тауар (Жана Жылынызбен) Дед Мороз","ПЕРВЫЙ КАНАЛ ЕВРАЗИЯ/ЕВРАЗИЯ/ОРТ-КАЗ","2013-01-05","Ролик","MARS",2.5]
["NESTLE МОЛОЧНЫЙ шоколад (серт) Семья за столом (А как ты...) Шоколад с разными вкусами","ПЕРВЫЙ КАНАЛ ЕВРАЗИЯ/ЕВРАЗИЯ/ОРТ-КАЗ","2013-01-05","Ролик","NESTLE",2.5]
["SNICKERS шоколадный батончик (тауар) КАЗ (Белка)","ПЕРВЫЙ КАНАЛ ЕВРАЗИЯ/ЕВРАЗИЯ/ОРТ-КАЗ","2013-01-05","Ролик","MARS",2.5]
["ALPEN GOLD ОСОБЫЙ ТЕМНЫЙ шоколад (серт) 2 девушки с бобами (Особое сочетание. Уникальный вкус)","НТК","2013-01-05","Ролик","КРАФТ ФУДС КАЗАХСТАН",2.2999999999999998]
["NESTLE МОЛОЧНЫЙ шоколад (КАЗ) тауар (Семья за столом) Ал сен... (Шоколад с разными вкусами)","НТК","2013-01-05","Ролик","NESTLE",1.3]
["ALPEN GOLD ОСОБЫЙ ТЕМНЫЙ шоколад (серт) 2 девушки с бобами (Особое сочетание. Уникальный вкус)","НТК","2013-01-05","Ролик","КРАФТ ФУДС КАЗАХСТАН",2.6]
["KIT KAT шоколадный батончик (КАЗ) тауар (Узилис бар, Kit Kat бар ) Парень с сумками (укор.)","НТК","2013-01-05","Ролик","NESTLE",2.6]
["KIT KAT шоколадный батончик (серт) Есть перерыв, есть Kit Kat (Парень с сумками) укор.","НТК","2013-01-05","Ролик","NESTLE",1.6]
["M&M'S конфеты (КАЗ) тауар (Жана Жылынызбен) Дед Мороз","НТК","2013-01-05","Ролик","MARS",2.6]
["KIT KAT шоколадный батончик (КАЗ) тауар (Узилис бар, Kit Kat бар ) Парень с сумками (укор.)","НТК","2013-01-05","Ролик","NESTLE",0]
["SNICKERS шоколадный батончик (тауар) КАЗ (Белка)","НТК","2013-01-05","Ролик","MARS",5.9]
["ALPEN GOLD ОСОБЫЙ ТЕМНЫЙ шоколад (серт) 2 девушки с бобами (Особое сочетание. Уникальный вкус)","НТК","2013-01-05","Ролик","КРАФТ ФУДС КАЗАХСТАН",4.3]
["M&M'S конфеты (КАЗ) тауар (Жана Жылынызбен) Дед Мороз","НТК","2013-01-05","Ролик","MARS",3]
["M&M'S конфеты (КАЗ) тауар (Жана Жылынызбен) Дед Мороз","НТК","2013-01-05","Ролик","MARS",1.6]
["SNICKERS шоколадный батончик (тауар) КАЗ (Белка)","НТК","2013-01-05","Ролик","MARS",2.4]
["KIT KAT шоколадный батончик (серт) Есть перерыв, есть Kit Kat (Парень с сумками) укор.","НТК","2013-01-05","Ролик","NESTLE",3.6]
["SNICKERS шоколадный батончик (тауар) КАЗ (Белка)","НТК","2013-01-05","Ролик","MARS",4.4000000000000004]
["M&M'S конфеты (КАЗ) тауар (Жана Жылынызбен) Дед Мороз","НТК","2013-01-05","Ролик","MARS",2.8]
["ALPEN GOLD ОСОБЫЙ ТЕМНЫЙ шоколад (тауар) КАЗ (2 девушки с бобами) Ерекше уйлесимдилик, бирегей дам","НТК","2013-01-05","Ролик","КРАФТ ФУДС КАЗАХСТАН",0]
["M&M'S конфеты (КАЗ) тауар (Жана Жылынызбен) Дед Мороз","АСТАНА","2013-01-05","Ролик","MARS",1.8]
["SNICKERS шоколадный батончик (тауар) КАЗ (Белка)","СЕДЬМОЙ КАНАЛ","2013-01-05","Ролик","MARS",0]
["ALPEN GOLD ОСОБЫЙ ТЕМНЫЙ шоколад (серт) 2 девушки с бобами (Особое сочетание. Уникальный вкус)","СЕДЬМОЙ КАНАЛ","2013-01-05","Ролик","КРАФТ ФУДС КАЗАХСТАН",0]
["M&M'S конфеты (КАЗ) тауар (Жана Жылынызбен) Дед Мороз","СЕДЬМОЙ КАНАЛ","2013-01-05","Ролик","MARS",0]
["SNICKERS шоколадный батончик (тауар) КАЗ (Белка)","СЕДЬМОЙ КАНАЛ","2013-01-05","Ролик","MARS",0]
["M&M'S конфеты (серт) С Новым годом (Дед Мороз)","СЕДЬМОЙ КАНАЛ","2013-01-05","Ролик","MARS",1.6]
["SNICKERS шоколадный батончик (серт) Белка (Больше арахиса)","СЕДЬМОЙ КАНАЛ","2013-01-05","Ролик","MARS",0.9]
["M&M'S конфеты (серт) С Новым годом (Дед Мороз)","СЕДЬМОЙ КАНАЛ","2013-01-05","Ролик","MARS",0.9]
["ALPEN GOLD ОСОБЫЙ ТЕМНЫЙ шоколад (тауар) КАЗ (2 девушки с бобами) Ерекше уйлесимдилик, бирегей дам","КАЗАХСТАН","2013-01-06","Ролик","КРАФТ ФУДС КАЗАХСТАН",1.6]
["ALPEN GOLD ОСОБЫЙ ТЕМНЫЙ шоколад (тауар) КАЗ (2 девушки с бобами) Ерекше уйлесимдилик, бирегей дам","КАЗАХСТАН","2013-01-06","Ролик","КРАФТ ФУДС КАЗАХСТАН",2.4]
["ALPEN GOLD ОСОБЫЙ ТЕМНЫЙ шоколад (тауар) КАЗ (2 девушки с бобами) Ерекше уйлесимдилик, бирегей дам","КАЗАХСТАН","2013-01-06","Ролик","КРАФТ ФУДС КАЗАХСТАН",2.4]
["ALPEN GOLD ОСОБЫЙ ТЕМНЫЙ шоколад (тауар) КАЗ (2 девушки с бобами) Ерекше уйлесимдилик, бирегей дам","КАЗАХСТАН","2013-01-06","Ролик","КРАФТ ФУДС КАЗАХСТАН",1.4]
["ALPEN GOLD ОСОБЫЙ ТЕМНЫЙ шоколад (тауар) КАЗ (2 девушки с бобами) Ерекше уйлесимдилик, бирегей дам","КАЗАХСТАН","2013-01-06","Ролик","КРАФТ ФУДС КАЗАХСТАН",0]
["ALPEN GOLD ОСОБЫЙ ТЕМНЫЙ шоколад (тауар) КАЗ (2 девушки с бобами) Ерекше уйлесимдилик, бирегей дам","КАЗАХСТАН","2013-01-06","Ролик","КРАФТ ФУДС КАЗАХСТАН",1.4]
["ALPEN GOLD ОСОБЫЙ ТЕМНЫЙ шоколад (тауар) КАЗ (2 девушки с бобами) Ерекше уйлесимдилик, бирегей дам","КАЗАХСТАН","2013-01-06","Ролик","КРАФТ ФУДС КАЗАХСТАН",0]
["SNICKERS шоколадный батончик (тауар) КАЗ (Белка)","31 КАНАЛ","2013-01-06","Ролик","MARS",0]
["M&M'S конфеты (КАЗ) тауар (Жана Жылынызбен) Дед Мороз","31 КАНАЛ","2013-01-06","Ролик","MARS",0]
["KIT KAT шоколадный батончик (КАЗ) тауар (Колын калт етсе, жеп ал! (Молодежь на дискотеке)","31 КАНАЛ","2013-01-06","Ролик","NESTLE",8.6999999999999993]
["NESTLE шоколад (серт) Женщина и мужчина (А как ты разделишь удовольствие?)","31 КАНАЛ","2013-01-06","Ролик","NESTLE",10.9]
["ALPEN GOLD ОСОБЫЙ ТЕМНЫЙ шоколад (тауар) КАЗ (2 девушки с бобами) Ерекше уйлесимдилик, бирегей дам","31 КАНАЛ","2013-01-06","Ролик","КРАФТ ФУДС КАЗАХСТАН",2.7]
["SNICKERS шоколадный батончик (серт) Белка (Больше арахиса)","31 КАНАЛ","2013-01-06","Ролик","MARS",9.6]
["KIT KAT шоколадный батончик (серт) Есть перерыв? Есть Kit Kat (Молодежь на дискотеке)","31 КАНАЛ","2013-01-06","Ролик","NESTLE",5.7]
["M&M'S конфеты (серт) С Новым годом (Дед Мороз)","31 КАНАЛ","2013-01-06","Ролик","MARS",3]
["NESTLE шоколад (серт) Женщина и мужчина (А как ты разделишь удовольствие?)","31 КАНАЛ","2013-01-06","Ролик","NESTLE",5.5]
["KIT KAT шоколадный батончик (КАЗ) тауар (Колын калт етсе, жеп ал! (Молодежь на дискотеке)","31 КАНАЛ","2013-01-06","Ролик","NESTLE",7.7]
["M&M'S конфеты (КАЗ) тауар (Жана Жылынызбен) Дед Мороз","31 КАНАЛ","2013-01-06","Ролик","MARS",5.8]
["KIT KAT шоколадный батончик (серт) Есть перерыв? Есть Kit Kat (Молодежь на дискотеке)","31 КАНАЛ","2013-01-06","Ролик","NESTLE",5.4]
["M&M'S конфеты (серт) С Новым годом (Дед Мороз)","31 КАНАЛ","2013-01-06","Ролик","MARS",10.7]
["NESTLE МОЛОЧНЫЙ шоколад (серт) Семья за столом (А как ты...) Шоколад с разными вкусами","31 КАНАЛ","2013-01-06","Ролик","NESTLE",6.8]
["KIT KAT шоколадный батончик (серт) Есть перерыв? Есть Kit Kat (Молодежь на дискотеке)","31 КАНАЛ","2013-01-06","Ролик","NESTLE",13.9]
["SNICKERS шоколадный батончик (серт) Белка (Больше арахиса)","31 КАНАЛ","2013-01-06","Ролик","MARS",10.1]
["SNICKERS шоколадный батончик (тауар) КАЗ (Белка)","31 КАНАЛ","2013-01-06","Ролик","MARS",4.2]
["ALPEN GOLD ОСОБЫЙ ТЕМНЫЙ шоколад (тауар) КАЗ (2 девушки с бобами) Ерекше уйлесимдилик, бирегей дам","31 КАНАЛ","2013-01-06","Ролик","КРАФТ ФУДС КАЗАХСТАН",2.2999999999999998]
["M&M'S конфеты (КАЗ) тауар (Жана Жылынызбен) Дед Мороз","КТК","2013-01-06","Ролик","MARS",0.4]
["SNICKERS шоколадный батончик (тауар) КАЗ (Белка)","КТК","2013-01-06","Ролик","MARS",3.3]
["M&M'S конфеты (КАЗ) тауар (Жана Жылынызбен) Дед Мороз","КТК","2013-01-06","Ролик","MARS",3.3]
["KIT KAT шоколадный батончик (КАЗ) тауар (Узилис бар, Kit Kat бар ) Парень с сумками (укор.)","КТК","2013-01-06","Ролик","NESTLE",0]
["M&M'S конфеты (серт) С Новым годом (Дед Мороз)","КТК","2013-01-06","Ролик","MARS",0]
["SNICKERS шоколадный батончик (тауар) КАЗ (Белка)","КТК","2013-01-06","Ролик","MARS",0]
["NESTLE МОЛОЧНЫЙ шоколад (КАЗ) тауар (Семья за столом) Ал сен... (Шоколад с разными вкусами)","КТК","2013-01-06","Ролик","NESTLE",1.4]
["SNICKERS шоколадный батончик (тауар) КАЗ (Белка)","КТК","2013-01-06","Ролик","MARS",0]
["M&M'S конфеты (КАЗ) тауар (Жана Жылынызбен) Дед Мороз","КТК","2013-01-06","Ролик","MARS",0]
["KIT KAT шоколадный батончик (серт) Есть перерыв, есть Kit Kat (Парень с сумками) укор.","КТК","2013-01-06","Ролик","NESTLE",1.3]
["SNICKERS шоколадный батончик (серт) Белка (Больше арахиса)","КТК","2013-01-06","Ролик","MARS",2.2000000000000002]
["SNICKERS шоколадный батончик (тауар) КАЗ (Белка)","КТК","2013-01-06","Ролик","MARS",0]
["M&M'S конфеты (КАЗ) тауар (Жана Жылынызбен) Дед Мороз","КТК","2013-01-06","Ролик","MARS",1.4]
["SNICKERS шоколадный батончик (серт) Белка (Больше арахиса)","КТК","2013-01-06","Ролик","MARS",6.5]
["M&M'S конфеты (серт) С Новым годом (Дед Мороз)","КТК","2013-01-06","Ролик","MARS",6.7]
["NESTLE МОЛОЧНЫЙ шоколад (КАЗ) тауар (Семья за столом) Ал сен... (Шоколад с разными вкусами)","КТК","2013-01-06","Ролик","NESTLE",6.7]
["KIT KAT шоколадный батончик (КАЗ) тауар (Узилис бар, Kit Kat бар ) Парень с сумками (укор.)","КТК","2013-01-06","Ролик","NESTLE",6.6]
["SNICKERS шоколадный батончик (серт) Белка (Больше арахиса)","КТК","2013-01-06","Ролик","MARS",3.3]
["M&M'S конфеты (серт) С Новым годом (Дед Мороз)","КТК","2013-01-06","Ролик","MARS",2]
["SNICKERS шоколадный батончик (тауар) КАЗ (Белка)","КТК","2013-01-06","Ролик","MARS",9.8000000000000007]
["M&M'S конфеты (серт) С Новым годом (Дед Мороз)","КТК","2013-01-06","Ролик","MARS",2.7]
["SNICKERS шоколадный батончик (серт) Белка (Больше арахиса)","КТК","2013-01-06","Ролик","MARS",2.7]
["KIT KAT шоколадный батончик (серт) Есть перерыв, есть Kit Kat (Парень с сумками) укор.","ПЕРВЫЙ КАНАЛ ЕВРАЗИЯ/ЕВРАЗИЯ/ОРТ-КАЗ","2013-01-06","Ролик","NESTLE",2.9]
["M&M'S конфеты (КАЗ) тауар (Жана Жылынызбен) Дед Мороз","ПЕРВЫЙ КАНАЛ ЕВРАЗИЯ/ЕВРАЗИЯ/ОРТ-КАЗ","2013-01-06","Ролик","MARS",5.8]
["KIT KAT шоколадный батончик (серт) Есть перерыв, есть Kit Kat (Парень с сумками) укор.","ПЕРВЫЙ КАНАЛ ЕВРАЗИЯ/ЕВРАЗИЯ/ОРТ-КАЗ","2013-01-06","Ролик","NESTLE",5.8]
["SNICKERS шоколадный батончик (серт) Белка (Больше арахиса)","ПЕРВЫЙ КАНАЛ ЕВРАЗИЯ/ЕВРАЗИЯ/ОРТ-КАЗ","2013-01-06","Ролик","MARS",7.8]
["M&M'S конфеты (КАЗ) тауар (Жана Жылынызбен) Дед Мороз","ПЕРВЫЙ КАНАЛ ЕВРАЗИЯ/ЕВРАЗИЯ/ОРТ-КАЗ","2013-01-06","Ролик","MARS",15.3]
["ALPEN GOLD ОСОБЫЙ ТЕМНЫЙ шоколад (тауар) КАЗ (2 девушки с бобами) Ерекше уйлесимдилик, бирегей дам","ПЕРВЫЙ КАНАЛ ЕВРАЗИЯ/ЕВРАЗИЯ/ОРТ-КАЗ","2013-01-06","Ролик","КРАФТ ФУДС КАЗАХСТАН",18.7]
["M&M'S конфеты (КАЗ) тауар (Жана Жылынызбен) Дед Мороз","ПЕРВЫЙ КАНАЛ ЕВРАЗИЯ/ЕВРАЗИЯ/ОРТ-КАЗ","2013-01-06","Ролик","MARS",15.1]
["NESTLE МОЛОЧНЫЙ шоколад (серт) Семья за столом (А как ты...) Шоколад с разными вкусами","ПЕРВЫЙ КАНАЛ ЕВРАЗИЯ/ЕВРАЗИЯ/ОРТ-КАЗ","2013-01-06","Ролик","NESTLE",15.1]
["ALPEN GOLD ОСОБЫЙ ТЕМНЫЙ шоколад (серт) 2 девушки с бобами (Особое сочетание. Уникальный вкус)","ПЕРВЫЙ КАНАЛ ЕВРАЗИЯ/ЕВРАЗИЯ/ОРТ-КАЗ","2013-01-06","Ролик","КРАФТ ФУДС КАЗАХСТАН",16.5]
["SNICKERS шоколадный батончик (серт) Белка (Больше арахиса)","ПЕРВЫЙ КАНАЛ ЕВРАЗИЯ/ЕВРАЗИЯ/ОРТ-КАЗ","2013-01-06","Ролик","MARS",16.899999999999999]
["NESTLE шоколад (КАЗ) тауар (Девушка, парень и женщина) Ал сен рахатынмен калай болисенин?","ПЕРВЫЙ КАНАЛ ЕВРАЗИЯ/ЕВРАЗИЯ/ОРТ-КАЗ","2013-01-06","Ролик","NESTLE",1.7]
["ALPEN GOLD ОСОБЫЙ ТЕМНЫЙ шоколад (серт) 2 девушки с бобами (Особое сочетание. Уникальный вкус)","ПЕРВЫЙ КАНАЛ ЕВРАЗИЯ/ЕВРАЗИЯ/ОРТ-КАЗ","2013-01-06","Ролик","КРАФТ ФУДС КАЗАХСТАН",1.9]
["SNICKERS шоколадный батончик (тауар) КАЗ (Белка)","ПЕРВЫЙ КАНАЛ ЕВРАЗИЯ/ЕВРАЗИЯ/ОРТ-КАЗ","2013-01-06","Ролик","MARS",4.7]
["SNICKERS шоколадный батончик (тауар) КАЗ (Белка)","ПЕРВЫЙ КАНАЛ ЕВРАЗИЯ/ЕВРАЗИЯ/ОРТ-КАЗ","2013-01-06","Ролик","MARS",3.1]
["M&M'S конфеты (серт) С Новым годом (Дед Мороз)","ПЕРВЫЙ КАНАЛ ЕВРАЗИЯ/ЕВРАЗИЯ/ОРТ-КАЗ","2013-01-06","Ролик","MARS",11]
["KIT KAT шоколадный батончик (КАЗ) тауар (Узилис бар, Kit Kat бар ) Парень с сумками (укор.)","ПЕРВЫЙ КАНАЛ ЕВРАЗИЯ/ЕВРАЗИЯ/ОРТ-КАЗ","2013-01-06","Ролик","NESTLE",9.6]
["SNICKERS шоколадный батончик (тауар) КАЗ (Белка)","ПЕРВЫЙ КАНАЛ ЕВРАЗИЯ/ЕВРАЗИЯ/ОРТ-КАЗ","2013-01-06","Ролик","MARS",9.6]
["M&M'S конфеты (серт) С Новым годом (Дед Мороз)","ПЕРВЫЙ КАНАЛ ЕВРАЗИЯ/ЕВРАЗИЯ/ОРТ-КАЗ","2013-01-06","Ролик","MARS",7.2]
["SNICKERS шоколадный батончик (серт) Белка (Больше арахиса)","ПЕРВЫЙ КАНАЛ ЕВРАЗИЯ/ЕВРАЗИЯ/ОРТ-КАЗ","2013-01-06","Ролик","MARS",4.8]
["KIT KAT шоколадный батончик (КАЗ) тауар (Узилис бар, Kit Kat бар ) Парень с сумками (укор.)","НТК","2013-01-06","Ролик","NESTLE",2.1]
["KIT KAT шоколадный батончик (КАЗ) тауар (Узилис бар, Kit Kat бар ) Парень с сумками (укор.)","НТК","2013-01-06","Ролик","NESTLE",0]
["M&M'S конфеты (КАЗ) тауар (Жана Жылынызбен) Дед Мороз","НТК","2013-01-06","Ролик","MARS",0]
["ALPEN GOLD ОСОБЫЙ ТЕМНЫЙ шоколад (серт) 2 девушки с бобами (Особое сочетание. Уникальный вкус)","НТК","2013-01-06","Ролик","КРАФТ ФУДС КАЗАХСТАН",0]
["SNICKERS шоколадный батончик (тауар) КАЗ (Белка)","НТК","2013-01-06","Ролик","MARS",1]
["NESTLE МОЛОЧНЫЙ шоколад (КАЗ) тауар (Семья за столом) Ал сен... (Шоколад с разными вкусами)","НТК","2013-01-06","Ролик","NESTLE",1.5]
["M&M'S конфеты (КАЗ) тауар (Жана Жылынызбен) Дед Мороз","НТК","2013-01-06","Ролик","MARS",7.2]
["ALPEN GOLD ОСОБЫЙ ТЕМНЫЙ шоколад (тауар) КАЗ (2 девушки с бобами) Ерекше уйлесимдилик, бирегей дам","НТК","2013-01-06","Ролик","КРАФТ ФУДС КАЗАХСТАН",7.2]
["KIT KAT шоколадный батончик (серт) Есть перерыв, есть Kit Kat (Парень с сумками) укор.","НТК","2013-01-06","Ролик","NESTLE",7.2]
["SNICKERS шоколадный батончик (тауар) КАЗ (Белка)","НТК","2013-01-06","Ролик","MARS",7.2]
["KIT KAT шоколадный батончик (серт) Есть перерыв, есть Kit Kat (Парень с сумками) укор.","НТК","2013-01-06","Ролик","NESTLE",1]
["NESTLE МОЛОЧНЫЙ шоколад (КАЗ) тауар (Семья за столом) Ал сен... (Шоколад с разными вкусами)","НТК","2013-01-06","Ролик","NESTLE",0]
["ALPEN GOLD ОСОБЫЙ ТЕМНЫЙ шоколад (тауар) КАЗ (2 девушки с бобами) Ерекше уйлесимдилик, бирегей дам","НТК","2013-01-06","Ролик","КРАФТ ФУДС КАЗАХСТАН",11.1]
["NESTLE МОЛОЧНЫЙ шоколад (серт) Семья за столом (А как ты...) Шоколад с разными вкусами","НТК","2013-01-06","Ролик","NESTLE",14.3]
["SNICKERS шоколадный батончик (тауар) КАЗ (Белка)","НТК","2013-01-06","Ролик","MARS",11.4]
["M&M'S конфеты (КАЗ) тауар (Жана Жылынызбен) Дед Мороз","НТК","2013-01-06","Ролик","MARS",8.6999999999999993]
["SNICKERS шоколадный батончик (тауар) КАЗ (Белка)","НТК","2013-01-06","Ролик","MARS",4.7]
["M&M'S конфеты (КАЗ) тауар (Жана Жылынызбен) Дед Мороз","НТК","2013-01-06","Ролик","MARS",4.7]
["M&M'S конфеты (серт) С Новым годом (Дед Мороз)","АСТАНА","2013-01-06","Ролик","MARS",1.3]
["KIT KAT шоколадный батончик (КАЗ) тауар (Колын калт етсе, жеп ал! (Молодежь на дискотеке)","СЕДЬМОЙ КАНАЛ","2013-01-06","Ролик","NESTLE",0.5]
["ALPEN GOLD ОСОБЫЙ ТЕМНЫЙ шоколад (тауар) КАЗ (2 девушки с бобами) Ерекше уйлесимдилик, бирегей дам","СЕДЬМОЙ КАНАЛ","2013-01-06","Ролик","КРАФТ ФУДС КАЗАХСТАН",1.1000000000000001]
["NESTLE шоколад (КАЗ) тауар (Женщина и мужчина) Ал сен рахатынмен калай болисенин?","СЕДЬМОЙ КАНАЛ","2013-01-06","Ролик","NESTLE",1.1000000000000001]
["NESTLE шоколад (КАЗ) тауар (Девушка, парень и женщина) Ал сен рахатынмен калай болисенин?","СЕДЬМОЙ КАНАЛ","2013-01-06","Ролик","NESTLE",2.5]
["SNICKERS шоколадный батончик (серт) Белка (Больше арахиса)","СЕДЬМОЙ КАНАЛ","2013-01-06","Ролик","MARS",4.3]
["KIT KAT шоколадный батончик (КАЗ) тауар (Колын калт етсе, жеп ал! (Молодежь на дискотеке)","СЕДЬМОЙ КАНАЛ","2013-01-06","Ролик","NESTLE",2.5]
["NESTLE шоколад (КАЗ) тауар (Женщина и мужчина) Ал сен рахатынмен калай болисенин?","СЕДЬМОЙ КАНАЛ","2013-01-06","Ролик","NESTLE",0]
["M&M'S конфеты (серт) С Новым годом (Дед Мороз)","СЕДЬМОЙ КАНАЛ","2013-01-06","Ролик","MARS",2.5]
["ALPEN GOLD ОСОБЫЙ ТЕМНЫЙ шоколад (тауар) КАЗ (2 девушки с бобами) Ерекше уйлесимдилик, бирегей дам","СЕДЬМОЙ КАНАЛ","2013-01-06","Ролик","КРАФТ ФУДС КАЗАХСТАН",1.4]
["SNICKERS шоколадный батончик (серт) Белка (Больше арахиса)","СЕДЬМОЙ КАНАЛ","2013-01-06","Ролик","MARS",3.8]
["NESTLE шоколад (КАЗ) тауар (Девушка, парень и женщина) Ал сен рахатынмен калай болисенин?","СЕДЬМОЙ КАНАЛ","2013-01-06","Ролик","NESTLE",3.8]
["KIT KAT шоколадный батончик (КАЗ) тауар (Колын калт етсе, жеп ал! (Молодежь на дискотеке)","СЕДЬМОЙ КАНАЛ","2013-01-06","Ролик","NESTLE",0.9]
["NESTLE МОЛОЧНЫЙ шоколад (серт) Семья за столом (А как ты...) Шоколад с разными вкусами","СЕДЬМОЙ КАНАЛ","2013-01-06","Ролик","NESTLE",0.9]
["M&M'S конфеты (КАЗ) тауар (Жана Жылынызбен) Дед Мороз","СЕДЬМОЙ КАНАЛ","2013-01-06","Ролик","MARS",0.8]
["ALPEN GOLD ОСОБЫЙ ТЕМНЫЙ шоколад (тауар) КАЗ (2 девушки с бобами) Ерекше уйлесимдилик, бирегей дам","СЕДЬМОЙ КАНАЛ","2013-01-06","Ролик","КРАФТ ФУДС КАЗАХСТАН",2.2000000000000002]
["SNICKERS шоколадный батончик (тауар) КАЗ (Белка)","СЕДЬМОЙ КАНАЛ","2013-01-06","Ролик","MARS",2.2000000000000002]
["KIT KAT шоколадный батончик (серт) Есть перерыв? Есть Kit Kat (Молодежь на дискотеке)","СЕДЬМОЙ КАНАЛ","2013-01-06","Ролик","NESTLE",2.2000000000000002]
["NESTLE МОЛОЧНЫЙ шоколад (серт) Семья за столом (А как ты...) Шоколад с разными вкусами","СЕДЬМОЙ КАНАЛ","2013-01-06","Ролик","NESTLE",3.1]
["ALPEN GOLD ОСОБЫЙ ТЕМНЫЙ шоколад (серт) 2 девушки с бобами (Особое сочетание. Уникальный вкус)","СЕДЬМОЙ КАНАЛ","2013-01-06","Ролик","КРАФТ ФУДС КАЗАХСТАН",2.9]
["NESTLE МОЛОЧНЫЙ шоколад (серт) Семья за столом (А как ты...) Шоколад с разными вкусами","СЕДЬМОЙ КАНАЛ","2013-01-06","Ролик","NESTLE",3.7]
["ALPEN GOLD ОСОБЫЙ ТЕМНЫЙ шоколад (серт) 2 девушки с бобами (Особое сочетание. Уникальный вкус)","СЕДЬМОЙ КАНАЛ","2013-01-06","Ролик","КРАФТ ФУДС КАЗАХСТАН",4.9000000000000004]
["SNICKERS шоколадный батончик (тауар) КАЗ (Белка)","31 КАНАЛ","2013-01-07","Ролик","MARS",0]
["TOFFIFEE конфеты (серт) Семья на диване (Сколько наслаждения в Тоффифе)","31 КАНАЛ","2013-01-07","Ролик","STORCK INTERNATIONAL GMBH.",8.8000000000000007]
["NESTLE шоколад (серт) Женщина и мужчина (А как ты разделишь удовольствие?)","31 КАНАЛ","2013-01-07","Ролик","NESTLE",2.9]
["TOFFIFEE конфеты (серт) Семья на диване (Сколько наслаждения в Тоффифе)","31 КАНАЛ","2013-01-07","Ролик","STORCK INTERNATIONAL GMBH.",0]
["NESTLE шоколад (серт) Женщина и мужчина (А как ты разделишь удовольствие?)","31 КАНАЛ","2013-01-07","Ролик","NESTLE",11.5]
["M&M'S конфеты (КАЗ) тауар (Жана Жылынызбен) Дед Мороз","31 КАНАЛ","2013-01-07","Ролик","MARS",10]
["TOFFIFEE конфеты (КАЗ) тауар (Семья на диване) Тоффифидин рахаты мол","31 КАНАЛ","2013-01-07","Ролик","STORCK INTERNATIONAL GMBH.",7.6]
["SNICKERS шоколадный батончик (серт) Белка (Больше арахиса)","31 КАНАЛ","2013-01-07","Ролик","MARS",7.2]
["TOFFIFEE конфеты (серт) Семья на диване (Сколько наслаждения в Тоффифе)","31 КАНАЛ","2013-01-07","Ролик","STORCK INTERNATIONAL GMBH.",10.8]
["M&M'S конфеты (серт) С Новым годом (Дед Мороз)","КТК","2013-01-07","Ролик","MARS",0]

{"sheet":"Как надо","index":1,"n_rows":222,"n_cols":6,"rows_kept":222,"cut":false,"hidden":false,"merged":[]}
[null,"Spot TVCompany","Date","Spot type","Advertiser","GRP"]
[null,{"$f":"INDEX('Исходные данные'!$A$2:$F$586,ROW(A1),MATCH('Как надо'!B$1,'Исходные данные'!$A$1:$F$1,0))","v":0},{"$f":"INDEX('Исходные данные'!$A$2:$F$586,ROW(B1),MATCH('Как надо'!C$1,'Исходные данные'!$A$1:$F$1,0))","v":0},{"$f":"INDEX('Исходные данные'!$A$2:$F$586,ROW(C1),MATCH('Как надо'!D$1,'Исходные данные'!$A$1:$F$1,0))","v":0},{"$f":"INDEX('Исходные данные'!$A$2:$F$586,ROW(D1),MATCH('Как надо'!E$1,'Исходные данные'!$A$1:$F$1,0))","v":0},{"$f":"INDEX('Исходные данные'!$A$2:$F$586,ROW(E1),MATCH('Как надо'!F$1,'Исходные данные'!$A$1:$F$1,0))","v":410514.3}]
[null,{"$f":"INDEX('Исходные данные'!$A$2:$F$586,ROW(A2),MATCH('Как надо'!B$1,'Исходные данные'!$A$1:$F$1,0))","v":"КАЗАХСТАН"},{"$f":"INDEX('Исходные данные'!$A$2:$F$586,ROW(B2),MATCH('Как надо'!C$1,'Исходные данные'!$A$1:$F$1,0))","v":"2013-01-01"},{"$f":"INDEX('Исходные данные'!$A$2:$F$586,ROW(C2),MATCH('Как надо'!D$1,'Исходные данные'!$A$1:$F$1,0))","v":"Ролик"},{"$f":"INDEX('Исходные данные'!$A$2:$F$586,ROW(D2),MATCH('Как надо'!E$1,'Исходные данные'!$A$1:$F$1,0))","v":"КРАФТ ФУДС КАЗАХСТАН"},{"$f":"INDEX('Исходные данные'!$A$2:$F$586,ROW(E2),MATCH('Как надо'!F$1,'Исходные данные'!$A$1:$F$1,0))","v":1.3}]
[null,{"$f":"INDEX('Исходные данные'!$A$2:$F$586,ROW(A3),MATCH('Как надо'!B$1,'Исходные данные'!$A$1:$F$1,0))","v":"КАЗАХСТАН"},{"$f":"INDEX('Исходные данные'!$A$2:$F$586,ROW(B3),MATCH('Как надо'!C$1,'Исходные данные'!$A$1:$F$1,0))","v":"2013-01-01"},{"$f":"INDEX('Исходные данные'!$A$2:$F$586,ROW(C3),MATCH('Как надо'!D$1,'Исходные данные'!$A$1:$F$1,0))","v":"Ролик"},{"$f":"INDEX('Исходные данные'!$A$2:$F$586,ROW(D3),MATCH('Как надо'!E$1,'Исходные данные'!$A$1:$F$1,0))","v":"КРАФТ ФУДС КАЗАХСТАН"},{"$f":"INDEX('Исходные данные'!$A$2:$F$586,ROW(E3),MATCH('Как надо'!F$1,'Исходные данные'!$A$1:$F$1,0))","v":0}]
[null,{"$f":"INDEX('Исходные данные'!$A$2:$F$586,ROW(A4),MATCH('Как надо'!B$1,'Исходные данные'!$A$1:$F$1,0))","v":"КАЗАХСТАН"},{"$f":"INDEX('Исходные данные'!$A$2:$F$586,ROW(B4),MATCH('Как надо'!C$1,'Исходные данные'!$A$1:$F$1,0))","v":"2013-01-01"},{"$f":"INDEX('Исходные данные'!$A$2:$F$586,ROW(C4),MATCH('Как надо'!D$1,'Исходные данные'!$A$1:$F$1,0))","v":"Ролик"},{"$f":"INDEX('Исходные данные'!$A$2:$F$586,ROW(D4),MATCH('Как надо'!E$1,'Исходные данные'!$A$1:$F$1,0))","v":"КРАФТ ФУДС КАЗАХСТАН"},{"$f":"INDEX('Исходные данные'!$A$2:$F$586,ROW(E4),MATCH('Как надо'!F$1,'Исходные данные'!$A$1:$F$1,0))","v":0}]
[null,{"$f":"INDEX('Исходные данные'!$A$2:$F$586,ROW(A5),MATCH('Как надо'!B$1,'Исходные данные'!$A$1:$F$1,0))","v":"КАЗАХСТАН"},{"$f":"INDEX('Исходные данные'!$A$2:$F$586,ROW(B5),MATCH('Как надо'!C$1,'Исходные данные'!$A$1:$F$1,0))","v":"2013-01-01"},{"$f":"INDEX('Исходные данные'!$A$2:$F$586,ROW(C5),MATCH('Как надо'!D$1,'Исходные данные'!$A$1:$F$1,0))","v":"Ролик"},{"$f":"INDEX('Исходные данные'!$A$2:$F$586,ROW(D5),MATCH('Как надо'!E$1,'Исходные данные'!$A$1:$F$1,0))","v":"КРАФТ ФУДС КАЗАХСТАН"},{"$f":"INDEX('Исходные данные'!$A$2:$F$586,ROW(E5),MATCH('Как надо'!F$1,'Исходные данные'!$A$1:$F$1,0))","v":0}]
[null,{"$f":"INDEX('Исходные данные'!$A$2:$F$586,ROW(A6),MATCH('Как надо'!B$1,'Исходные данные'!$A$1:$F$1,0))","v":"КАЗАХСТАН"},{"$f":"INDEX('Исходные данные'!$A$2:$F$586,ROW(B6),MATCH('Как надо'!C$1,'Исходные данные'!$A$1:$F$1,0))","v":"2013-01-01"},{"$f":"INDEX('Исходные данные'!$A$2:$F$586,ROW(C6),MATCH('Как надо'!D$1,'Исходные данные'!$A$1:$F$1,0))","v":"Ролик"},{"$f":"INDEX('Исходные данные'!$A$2:$F$586,ROW(D6),MATCH('Как надо'!E$1,'Исходные данные'!$A$1:$F$1,0))","v":"КРАФТ ФУДС КАЗАХСТАН"},{"$f":"INDEX('Исходные данные'!$A$2:$F$586,ROW(E6),MATCH('Как надо'!F$1,'Исходные данные'!$A$1:$F$1,0))","v":1.6}]
[null,{"$f":"INDEX('Исходные данные'!$A$2:$F$586,ROW(A7),MATCH('Как надо'!B$1,'Исходные данные'!$A$1:$F$1,0))","v":"31 КАНАЛ"},{"$f":"INDEX('Исходные данные'!$A$2:$F$586,ROW(B7),MATCH('Как надо'!C$1,'Исходные данные'!$A$1:$F$1,0))","v":"2013-01-01"},{"$f":"INDEX('Исходные данные'!$A$2:$F$586,ROW(C7),MATCH('Как надо'!D$1,'Исходные данные'!$A$1:$F$1,0))","v":"Спонсор. ролик"},{"$f":"INDEX('Исходные данные'!$A$2:$F$586,ROW(D7),MATCH('Как надо'!E$1,'Исходные данные'!$A$1:$F$1,0))","v":"А.КОРКУНОВ"},{"$f":"INDEX('Исходные данные'!$A$2:$F$586,ROW(E7),MATCH('Как надо'!F$1,'Исходные данные'!$A$1:$F$1,0))","v":1.6}]
[null,{"$f":"INDEX('Исходные данные'!$A$2:$F$586,ROW(A8),MATCH('Как надо'!B$1,'Исходные данные'!$A$1:$F$1,0))","v":"31 КАНАЛ"},{"$f":"INDEX('Исходные данные'!$A$2:$F$586,ROW(B8),MATCH('Как надо'!C$1,'Исходные данные'!$A$1:$F$1,0))","v":"2013-01-01"},{"$f":"INDEX('Исходные данные'!$A$2:$F$586,ROW(C8),MATCH('Как надо'!D$1,'Исходные данные'!$A$1:$F$1,0))","v":"Спонсор. ролик"},{"$f":"INDEX('Исходные данные'!$A$2:$F$586,ROW(D8),MATCH('Как надо'!E$1,'Исходные данные'!$A$1:$F$1,0))","v":"MARS"},{"$f":"INDEX('Исходные данные'!$A$2:$F$586,ROW(E8),MATCH('Как надо'!F$1,'Исходные данные'!$A$1:$F$1,0))","v":1.6}]
[null,{"$f":"INDEX('Исходные данные'!$A$2:$F$586,ROW(A9),MATCH('Как надо'!B$1,'Исходные данные'!$A$1:$F$1,0))","v":"31 КАНАЛ"},{"$f":"INDEX('Исходные данные'!$A$2:$F$586,ROW(B9),MATCH('Как надо'!C$1,'Исходные данные'!$A$1:$F$1,0))","v":"2013-01-01"},{"$f":"INDEX('Исходные данные'!$A$2:$F$586,ROW(C9),MATCH('Как надо'!D$1,'Исходные данные'!$A$1:$F$1,0))","v":"Спонсор. ролик"},{"$f":"INDEX('Исходные данные'!$A$2:$F$586,ROW(D9),MATCH('Как надо'!E$1,'Исходные данные'!$A$1:$F$1,0))","v":"MARS"},{"$f":"INDEX('Исходные данные'!$A$2:$F$586,ROW(E9),MATCH('Как надо'!F$1,'Исходные данные'!$A$1:$F$1,0))","v":1.6}]
[null,{"$f":"INDEX('Исходные данные'!$A$2:$F$586,ROW(A10),MATCH('Как надо'!B$1,'Исходные данные'!$A$1:$F$1,0))","v":"31 КАНАЛ"},{"$f":"INDEX('Исходные данные'!$A$2:$F$586,ROW(B10),MATCH('Как надо'!C$1,'Исходные данные'!$A$1:$F$1,0))","v":"2013-01-01"},{"$f":"INDEX('Исходные данные'!$A$2:$F$586,ROW(C10),MATCH('Как надо'!D$1,'Исходные данные'!$A$1:$F$1,0))","v":"Спонсор. ролик"},{"$f":"INDEX('Исходные данные'!$A$2:$F$586,ROW(D10),MATCH('Как надо'!E$1,'Исходные данные'!$A$1:$F$1,0))","v":"MARS"},{"$f":"INDEX('Исходные данные'!$A$2:$F$586,ROW(E10),MATCH('Как надо'!F$1,'Исходные данные'!$A$1:$F$1,0))","v":1.6}]
[null,{"$f":"INDEX('Исходные данные'!$A$2:$F$586,ROW(A11),MATCH('Как надо'!B$1,'Исходные данные'!$A$1:$F$1,0))","v":"31 КАНАЛ"},{"$f":"INDEX('Исходные данные'!$A$2:$F$586,ROW(B11),MATCH('Как надо'!C$1,'Исходные данные'!$A$1:$F$1,0))","v":"2013-01-01"},{"$f":"INDEX('Исходные данные'!$A$2:$F$586,ROW(C11),MATCH('Как надо'!D$1,'Исходные данные'!$A$1:$F$1,0))","v":"Спонсор. ролик"},{"$f":"INDEX('Исходные данные'!$A$2:$F$586,ROW(D11),MATCH('Как надо'!E$1,'Исходные данные'!$A$1:$F$1,0))","v":"А.КОРКУНОВ"},{"$f":"INDEX('Исходные данные'!$A$2:$F$586,ROW(E11),MATCH('Как надо'!F$1,'Исходные данные'!$A$1:$F$1,0))","v":1.6}]
[null,{"$f":"INDEX('Исходные данные'!$A$2:$F$586,ROW(A12),MATCH('Как надо'!B$1,'Исходные данные'!$A$1:$F$1,0))","v":"31 КАНАЛ"},{"$f":"INDEX('Исходные данные'!$A$2:$F$586,ROW(B12),MATCH('Как надо'!C$1,'Исходные данные'!$A$1:$F$1,0))","v":"2013-01-01"},{"$f":"INDEX('Исходные данные'!$A$2:$F$586,ROW(C12),MATCH('Как надо'!D$1,'Исходные данные'!$A$1:$F$1,0))","v":"Спонсор. ролик"},{"$f":"INDEX('Исходные данные'!$A$2:$F$586,ROW(D12),MATCH('Как надо'!E$1,'Исходные данные'!$A$1:$F$1,0))","v":"MARS"},{"$f":"INDEX('Исходные данные'!$A$2:$F$586,ROW(E12),MATCH('Как надо'!F$1,'Исходные данные'!$A$1:$F$1,0))","v":1.6}]
[null,{"$f":"INDEX('Исходные данные'!$A$2:$F$586,ROW(A13),MATCH('Как надо'!B$1,'Исходные данные'!$A$1:$F$1,0))","v":"31 КАНАЛ"},{"$f":"INDEX('Исходные данные'!$A$2:$F$586,ROW(B13),MATCH('Как надо'!C$1,'Исходные данные'!$A$1:$F$1,0))","v":"2013-01-01"},{"$f":"INDEX('Исходные данные'!$A$2:$F$586,ROW(C13),MATCH('Как надо'!D$1,'Исходные данные'!$A$1:$F$1,0))","v":"Спонсор. ролик"},{"$f":"INDEX('Исходные данные'!$A$2:$F$586,ROW(D13),MATCH('Как надо'!E$1,'Исходные данные'!$A$1:$F$1,0))","v":"MARS"},{"$f":"INDEX('Исходные данные'!$A$2:$F$586,ROW(E13),MATCH('Как надо'!F$1,'Исходные данные'!$A$1:$F$1,0))","v":1.6}]
[null,{"$f":"INDEX('Исходные данные'!$A$2:$F$586,ROW(A14),MATCH('Как надо'!B$1,'Исходные данные'!$A$1:$F$1,0))","v":"31 КАНАЛ"},{"$f":"INDEX('Исходные данные'!$A$2:$F$586,ROW(B14),MATCH('Как надо'!C$1,'Исходные данные'!$A$1:$F$1,0))","v":"2013-01-01"},{"$f":"INDEX('Исходные данные'!$A$2:$F$586,ROW(C14),MATCH('Как надо'!D$1,'Исходные данные'!$A$1:$F$1,0))","v":"Спонсор. ролик"},{"$f":"INDEX('Исходные данные'!$A$2:$F$586,ROW(D14),MATCH('Как надо'!E$1,'Исходные данные'!$A$1:$F$1,0))","v":"MARS"},{"$f":"INDEX('Исходные данные'!$A$2:$F$586,ROW(E14),MATCH('Как надо'!F$1,'Исходные данные'!$A$1:$F$1,0))","v":0}]
[null,{"$f":"INDEX('Исходные данные'!$A$2:$F$586,ROW(A15),MATCH('Как надо'!B$1,'Исходные данные'!$A$1:$F$1,0))","v":"31 КАНАЛ"},{"$f":"INDEX('Исходные данные'!$A$2:$F$586,ROW(B15),MATCH('Как надо'!C$1,'Исходные данные'!$A$1:$F$1,0))","v":"2013-01-01"},{"$f":"INDEX('Исходные данные'!$A$2:$F$586,ROW(C15),MATCH('Как надо'!D$1,'Исходные данные'!$A$1:$F$1,0))","v":"Спонсор. ролик"},{"$f":"INDEX('Исходные данные'!$A$2:$F$586,ROW(D15),MATCH('Как надо'!E$1,'Исходные данные'!$A$1:$F$1,0))","v":"А.КОРКУНОВ"},{"$f":"INDEX('Исходные данные'!$A$2:$F$586,ROW(E15),MATCH('Как надо'!F$1,'Исходные данные'!$A$1:$F$1,0))","v":1.6}]
[null,{"$f":"INDEX('Исходные данные'!$A$2:$F$586,ROW(A16),MATCH('Как надо'!B$1,'Исходные данные'!$A$1:$F$1,0))","v":"31 КАНАЛ"},{"$f":"INDEX('Исходные данные'!$A$2:$F$586,ROW(B16),MATCH('Как надо'!C$1,'Исходные данные'!$A$1:$F$1,0))","v":"2013-01-01"},{"$f":"INDEX('Исходные данные'!$A$2:$F$586,ROW(C16),MATCH('Как надо'!D$1,'Исходные данные'!$A$1:$F$1,0))","v":"Спонсор. ролик"},{"$f":"INDEX('Исходные данные'!$A$2:$F$586,ROW(D16),MATCH('Как надо'!E$1,'Исходные данные'!$A$1:$F$1,0))","v":"MARS"},{"$f":"INDEX('Исходные данные'!$A$2:$F$586,ROW(E16),MATCH('Как надо'!F$1,'Исходные данные'!$A$1:$F$1,0))","v":1.6}]
[null,{"$f":"INDEX('Исходные данные'!$A$2:$F$586,ROW(A17),MATCH('Как надо'!B$1,'Исходные данные'!$A$1:$F$1,0))","v":"31 КАНАЛ"},{"$f":"INDEX('Исходные данные'!$A$2:$F$586,ROW(B17),MATCH('Как надо'!C$1,'Исходные данные'!$A$1:$F$1,0))","v":"2013-01-01"},{"$f":"INDEX('Исходные данные'!$A$2:$F$586,ROW(C17),MATCH('Как надо'!D$1,'Исходные данные'!$A$1:$F$1,0))","v":"Спонсор. ролик"},{"$f":"INDEX('Исходные данные'!$A$2:$F$586,ROW(D17),MATCH('Как надо'!E$1,'Исходные данные'!$A$1:$F$1,0))","v":"MARS"},{"$f":"INDEX('Исходные данные'!$A$2:$F$586,ROW(E17),MATCH('Как надо'!F$1,'Исходные данные'!$A$1:$F$1,0))","v":1.6}]
[null,{"$f":"INDEX('Исходные данные'!$A$2:$F$586,ROW(A18),MATCH('Как надо'!B$1,'Исходные данные'!$A$1:$F$1,0))","v":"31 КАНАЛ"},{"$f":"INDEX('Исходные данные'!$A$2:$F$586,ROW(B18),MATCH('Как надо'!C$1,'Исходные данные'!$A$1:$F$1,0))","v":"2013-01-01"},{"$f":"INDEX('Исходные данные'!$A$2:$F$586,ROW(C18),MATCH('Как надо'!D$1,'Исходные данные'!$A$1:$F$1,0))","v":"Спонсор. ролик"},{"$f":"INDEX('Исходные данные'!$A$2:$F$586,ROW(D18),MATCH('Как надо'!E$1,'Исходные данные'!$A$1:$F$1,0))","v":"MARS"},{"$f":"INDEX('Исходные данные'!$A$2:$F$586,ROW(E18),MATCH('Как надо'!F$1,'Исходные данные'!$A$1:$F$1,0))","v":1.6}]
[null,{"$f":"INDEX('Исходные данные'!$A$2:$F$586,ROW(A19),MATCH('Как надо'!B$1,'Исходные данные'!$A$1:$F$1,0))","v":"31 КАНАЛ"},{"$f":"INDEX('Исходные данные'!$A$2:$F$586,ROW(B19),MATCH('Как надо'!C$1,'Исходные данные'!$A$1:$F$1,0))","v":"2013-01-01"},{"$f":"INDEX('Исходные данные'!$A$2:$F$586,ROW(C19),MATCH('Как надо'!D$1,'Исходные данные'!$A$1:$F$1,0))","v":"Спонсор. ролик"},{"$f":"INDEX('Исходные данные'!$A$2:$F$586,ROW(D19),MATCH('Как надо'!E$1,'Исходные данные'!$A$1:$F$1,0))","v":"А.КОРКУНОВ"},{"$f":"INDEX('Исходные данные'!$A$2:$F$586,ROW(E19),MATCH('Как надо'!F$1,'Исходные данные'!$A$1:$F$1,0))","v":1.6}]
[null,{"$f":"INDEX('Исходные данные'!$A$2:$F$586,ROW(A20),MATCH('Как надо'!B$1,'Исходные данные'!$A$1:$F$1,0))","v":"31 КАНАЛ"},{"$f":"INDEX('Исходные данные'!$A$2:$F$586,ROW(B20),MATCH('Как надо'!C$1,'Исходные данные'!$A$1:$F$1,0))","v":"2013-01-01"},{"$f":"INDEX('Исходные данные'!$A$2:$F$586,ROW(C20),MATCH('Как надо'!D$1,'Исходные данные'!$A$1:$F$1,0))","v":"Спонсор. ролик"},{"$f":"INDEX('Исходные данные'!$A$2:$F$586,ROW(D20),MATCH('Как надо'!E$1,'Исходные данные'!$A$1:$F$1,0))","v":"MARS"},{"$f":"INDEX('Исходные данные'!$A$2:$F$586,ROW(E20),MATCH('Как надо'!F$1,'Исходные данные'!$A$1:$F$1,0))","v":1.6}]
[null,{"$f":"INDEX('Исходные данные'!$A$2:$F$586,ROW(A21),MATCH('Как надо'!B$1,'Исходные данные'!$A$1:$F$1,0))","v":"31 КАНАЛ"},{"$f":"INDEX('Исходные данные'!$A$2:$F$586,ROW(B21),MATCH('Как надо'!C$1,'Исходные данные'!$A$1:$F$1,0))","v":"2013-01-01"},{"$f":"INDEX('Исходные данные'!$A$2:$F$586,ROW(C21),MATCH('Как надо'!D$1,'Исходные данные'!$A$1:$F$1,0))","v":"Спонсор. ролик"},{"$f":"INDEX('Исходные данные'!$A$2:$F$586,ROW(D21),MATCH('Как надо'!E$1,'Исходные данные'!$A$1:$F$1,0))","v":"MARS"},{"$f":"INDEX('Исходные данные'!$A$2:$F$586,ROW(E21),MATCH('Как надо'!F$1,'Исходные данные'!$A$1:$F$1,0))","v":1.8}]
[null,{"$f":"INDEX('Исходные данные'!$A$2:$F$586,ROW(A22),MATCH('Как надо'!B$1,'Исходные данные'!$A$1:$F$1,0))","v":"31 КАНАЛ"},{"$f":"INDEX('Исходные данные'!$A$2:$F$586,ROW(B22),MATCH('Как надо'!C$1,'Исходные данные'!$A$1:$F$1,0))","v":"2013-01-01"},{"$f":"INDEX('Исходные данные'!$A$2:$F$586,ROW(C22),MATCH('Как надо'!D$1,'Исходные данные'!$A$1:$F$1,0))","v":"Спонсор. ролик"},{"$f":"INDEX('Исходные данные'!$A$2:$F$586,ROW(D22),MATCH('Как надо'!E$1,'Исходные данные'!$A$1:$F$1,0))","v":"MARS"},{"$f":"INDEX('Исходные данные'!$A$2:$F$586,ROW(E22),MATCH('Как надо'!F$1,'Исходные данные'!$A$1:$F$1,0))","v":2.6}]
[null,{"$f":"INDEX('Исходные данные'!$A$2:$F$586,ROW(A23),MATCH('Как надо'!B$1,'Исходные данные'!$A$1:$F$1,0))","v":"31 КАНАЛ"},{"$f":"INDEX('Исходные данные'!$A$2:$F$586,ROW(B23),MATCH('Как надо'!C$1,'Исходные данные'!$A$1:$F$1,0))","v":"2013-01-01"},{"$f":"INDEX('Исходные данные'!$A$2:$F$586,ROW(C23),MATCH('Как надо'!D$1,'Исходные данные'!$A$1:$F$1,0))","v":"Спонсор. ролик"},{"$f":"INDEX('Исходные данные'!$A$2:$F$586,ROW(D23),MATCH('Как надо'!E$1,'Исходные данные'!$A$1:$F$1,0))","v":"MARS"},{"$f":"INDEX('Исходные данные'!$A$2:$F$586,ROW(E23),MATCH('Как надо'!F$1,'Исходные данные'!$A$1:$F$1,0))","v":0}]
[null,{"$f":"INDEX('Исходные данные'!$A$2:$F$586,ROW(A24),MATCH('Как надо'!B$1,'Исходные данные'!$A$1:$F$1,0))","v":"31 КАНАЛ"},{"$f":"INDEX('Исходные данные'!$A$2:$F$586,ROW(B24),MATCH('Как надо'!C$1,'Исходные данные'!$A$1:$F$1,0))","v":"2013-01-01"},{"$f":"INDEX('Исходные данные'!$A$2:$F$586,ROW(C24),MATCH('Как надо'!D$1,'Исходные данные'!$A$1:$F$1,0))","v":"Спонсор. ролик"},{"$f":"INDEX('Исходные данные'!$A$2:$F$586,ROW(D24),MATCH('Как надо'!E$1,'Исходные данные'!$A$1:$F$1,0))","v":"А.КОРКУНОВ"},{"$f":"INDEX('Исходные данные'!$A$2:$F$586,ROW(E24),MATCH('Как надо'!F$1,'Исходные данные'!$A$1:$F$1,0))","v":6.1}]
[null,{"$f":"INDEX('Исходные данные'!$A$2:$F$586,ROW(A25),MATCH('Как надо'!B$1,'Исходные данные'!$A$1:$F$1,0))","v":"31 КАНАЛ"},{"$f":"INDEX('Исходные данные'!$A$2:$F$586,ROW(B25),MATCH('Как надо'!C$1,'Исходные данные'!$A$1:$F$1,0))","v":"2013-01-01"},{"$f":"INDEX('Исходные данные'!$A$2:$F$586,ROW(C25),MATCH('Как надо'!D$1,'Исходные данные'!$A$1:$F$1,0))","v":"Спонсор. ролик"},{"$f":"INDEX('Исходные данные'!$A$2:$F$586,ROW(D25),MATCH('Как надо'!E$1,'Исходные данные'!$A$1:$F$1,0))","v":"MARS"},{"$f":"INDEX('Исходные данные'!$A$2:$F$586,ROW(E25),MATCH('Как надо'!F$1,'Исходные данные'!$A$1:$F$1,0))","v":5.0999999999999996}]
[null,{"$f":"INDEX('Исходные данные'!$A$2:$F$586,ROW(A26),MATCH('Как надо'!B$1,'Исходные данные'!$A$1:$F$1,0))","v":"31 КАНАЛ"},{"$f":"INDEX('Исходные данные'!$A$2:$F$586,ROW(B26),MATCH('Как надо'!C$1,'Исходные данные'!$A$1:$F$1,0))","v":"2013-01-01"},{"$f":"INDEX('Исходные данные'!$A$2:$F$586,ROW(C26),MATCH('Как надо'!D$1,'Исходные данные'!$A$1:$F$1,0))","v":"Спонсор. ролик"},{"$f":"INDEX('Исходные данные'!$A$2:$F$586,ROW(D26),MATCH('Как надо'!E$1,'Исходные данные'!$A$1:$F$1,0))","v":"MARS"},{"$f":"INDEX('Исходные данные'!$A$2:$F$586,ROW(E26),MATCH('Как надо'!F$1,'Исходные данные'!$A$1:$F$1,0))","v":5.2}]
[null,{"$f":"INDEX('Исходные данные'!$A$2:$F$586,ROW(A27),MATCH('Как надо'!B$1,'Исходные данные'!$A$1:$F$1,0))","v":"31 КАНАЛ"},{"$f":"INDEX('Исходные данные'!$A$2:$F$586,ROW(B27),MATCH('Как надо'!C$1,'Исходные данные'!$A$1:$F$1,0))","v":"2013-01-01"},{"$f":"INDEX('Исходные данные'!$A$2:$F$586,ROW(C27),MATCH('Как надо'!D$1,'Исходные данные'!$A$1:$F$1,0))","v":"Спонсор. ролик"},{"$f":"INDEX('Исходные данные'!$A$2:$F$586,ROW(D27),MATCH('Как надо'!E$1,'Исходные данные'!$A$1:$F$1,0))","v":"MARS"},{"$f":"INDEX('Исходные данные'!$A$2:$F$586,ROW(E27),MATCH('Как надо'!F$1,'Исходные данные'!$A$1:$F$1,0))","v":3.9}]
[null,{"$f":"INDEX('Исходные данные'!$A$2:$F$586,ROW(A28),MATCH('Как надо'!B$1,'Исходные данные'!$A$1:$F$1,0))","v":"31 КАНАЛ"},{"$f":"INDEX('Исходные данные'!$A$2:$F$586,ROW(B28),MATCH('Как надо'!C$1,'Исходные данные'!$A$1:$F$1,0))","v":"2013-01-01"},{"$f":"INDEX('Исходные данные'!$A$2:$F$586,ROW(C28),MATCH('Как надо'!D$1,'Исходные данные'!$A$1:$F$1,0))","v":"Спонсор. ролик"},{"$f":"INDEX('Исходные данные'!$A$2:$F$586,ROW(D28),MATCH('Как надо'!E$1,'Исходные данные'!$A$1:$F$1,0))","v":"MARS"},{"$f":"INDEX('Исходные данные'!$A$2:$F$586,ROW(E28),MATCH('Как надо'!F$1,'Исходные данные'!$A$1:$F$1,0))","v":4.4000000000000004}]
[null,{"$f":"INDEX('Исходные данные'!$A$2:$F$586,ROW(A29),MATCH('Как надо'!B$1,'Исходные данные'!$A$1:$F$1,0))","v":"31 КАНАЛ"},{"$f":"INDEX('Исходные данные'!$A$2:$F$586,ROW(B29),MATCH('Как надо'!C$1,'Исходные данные'!$A$1:$F$1,0))","v":"2013-01-01"},{"$f":"INDEX('Исходные данные'!$A$2:$F$586,ROW(C29),MATCH('Как надо'!D$1,'Исходные данные'!$A$1:$F$1,0))","v":"Спонсор. ролик"},{"$f":"INDEX('Исходные данные'!$A$2:$F$586,ROW(D29),MATCH('Как надо'!E$1,'Исходные данные'!$A$1:$F$1,0))","v":"А.КОРКУНОВ"},{"$f":"INDEX('Исходные данные'!$A$2:$F$586,ROW(E29),MATCH('Как надо'!F$1,'Исходные данные'!$A$1:$F$1,0))","v":6.6}]
[null,{"$f":"INDEX('Исходные данные'!$A$2:$F$586,ROW(A30),MATCH('Как надо'!B$1,'Исходные данные'!$A$1:$F$1,0))","v":"31 КАНАЛ"},{"$f":"INDEX('Исходные данные'!$A$2:$F$586,ROW(B30),MATCH('Как надо'!C$1,'Исходные данные'!$A$1:$F$1,0))","v":"2013-01-01"},{"$f":"INDEX('Исходные данные'!$A$2:$F$586,ROW(C30),MATCH('Как надо'!D$1,'Исходные данные'!$A$1:$F$1,0))","v":"Спонсор. ролик"},{"$f":"INDEX('Исходные данные'!$A$2:$F$586,ROW(D30),MATCH('Как надо'!E$1,'Исходные данные'!$A$1:$F$1,0))","v":"MARS"},{"$f":"INDEX('Исходные данные'!$A$2:$F$586,ROW(E30),MATCH('Как надо'!F$1,'Исходные данные'!$A$1:$F$1,0))","v":4}]
[null,{"$f":"INDEX('Исходные данные'!$A$2:$F$586,ROW(A31),MATCH('Как надо'!B$1,'Исходные данные'!$A$1:$F$1,0))","v":"31 КАНАЛ"},{"$f":"INDEX('Исходные данные'!$A$2:$F$586,ROW(B31),MATCH('Как надо'!C$1,'Исходные данные'!$A$1:$F$1,0))","v":"2013-01-01"},{"$f":"INDEX('Исходные данные'!$A$2:$F$586,ROW(C31),MATCH('Как надо'!D$1,'Исходные данные'!$A$1:$F$1,0))","v":"Спонсор. ролик"},{"$f":"INDEX('Исходные данные'!$A$2:$F$586,ROW(D31),MATCH('Как надо'!E$1,'Исходные данные'!$A$1:$F$1,0))","v":"MARS"},{"$f":"INDEX('Исходные данные'!$A$2:$F$586,ROW(E31),MATCH('Как надо'!F$1,'Исходные данные'!$A$1:$F$1,0))","v":3.6}]
[null,{"$f":"INDEX('Исходные данные'!$A$2:$F$586,ROW(A32),MATCH('Как надо'!B$1,'Исходные данные'!$A$1:$F$1,0))","v":"31 КАНАЛ"},{"$f":"INDEX('Исходные данные'!$A$2:$F$586,ROW(B32),MATCH('Как надо'!C$1,'Исходные данные'!$A$1:$F$1,0))","v":"2013-01-01"},{"$f":"INDEX('Исходные данные'!$A$2:$F$586,ROW(C32),MATCH('Как надо'!D$1,'Исходные данные'!$A$1:$F$1,0))","v":"Спонсор. ролик"},{"$f":"INDEX('Исходные данные'!$A$2:$F$586,ROW(D32),MATCH('Как надо'!E$1,'Исходные данные'!$A$1:$F$1,0))","v":"MARS"},{"$f":"INDEX('Исходные данные'!$A$2:$F$586,ROW(E32),MATCH('Как надо'!F$1,'Исходные данные'!$A$1:$F$1,0))","v":7.2}]
[null,{"$f":"INDEX('Исходные данные'!$A$2:$F$586,ROW(A33),MATCH('Как надо'!B$1,'Исходные данные'!$A$1:$F$1,0))","v":"31 КАНАЛ"},{"$f":"INDEX('Исходные данные'!$A$2:$F$586,ROW(B33),MATCH('Как надо'!C$1,'Исходные данные'!$A$1:$F$1,0))","v":"2013-01-01"},{"$f":"INDEX('Исходные данные'!$A$2:$F$586,ROW(C33),MATCH('Как надо'!D$1,'Исходные данные'!$A$1:$F$1,0))","v":"Спонсор. ролик"},{"$f":"INDEX('Исходные данные'!$A$2:$F$586,ROW(D33),MATCH('Как надо'!E$1,'Исходные данные'!$A$1:$F$1,0))","v":"А.КОРКУНОВ"},{"$f":"INDEX('Исходные данные'!$A$2:$F$586,ROW(E33),MATCH('Как надо'!F$1,'Исходные данные'!$A$1:$F$1,0))","v":5.2}]
[null,{"$f":"INDEX('Исходные данные'!$A$2:$F$586,ROW(A34),MATCH('Как надо'!B$1,'Исходные данные'!$A$1:$F$1,0))","v":"31 КАНАЛ"},{"$f":"INDEX('Исходные данные'!$A$2:$F$586,ROW(B34),MATCH('Как надо'!C$1,'Исходные данные'!$A$1:$F$1,0))","v":"2013-01-01"},{"$f":"INDEX('Исходные данные'!$A$2:$F$586,ROW(C34),MATCH('Как надо'!D$1,'Исходные данные'!$A$1:$F$1,0))","v":"Спонсор. ролик"},{"$f":"INDEX('Исходные данные'!$A$2:$F$586,ROW(D34),MATCH('Как надо'!E$1,'Исходные данные'!$A$1:$F$1,0))","v":"MARS"},{"$f":"INDEX('Исходные данные'!$A$2:$F$586,ROW(E34),MATCH('Как надо'!F$1,'Исходные данные'!$A$1:$F$1,0))","v":14.3}]
[null,{"$f":"INDEX('Исходные данные'!$A$2:$F$586,ROW(A35),MATCH('Как надо'!B$1,'Исходные данные'!$A$1:$F$1,0))","v":"31 КАНАЛ"},{"$f":"INDEX('Исходные данные'!$A$2:$F$586,ROW(B35),MATCH('Как надо'!C$1,'Исходные данные'!$A$1:$F$1,0))","v":"2013-01-01"},{"$f":"INDEX('Исходные данные'!$A$2:$F$586,ROW(C35),MATCH('Как надо'!D$1,'Исходные данные'!$A$1:$F$1,0))","v":"Спонсор. ролик"},{"$f":"INDEX('Исходные данные'!$A$2:$F$586,ROW(D35),MATCH('Как надо'!E$1,'Исходные данные'!$A$1:$F$1,0))","v":"MARS"},{"$f":"INDEX('Исходные данные'!$A$2:$F$586,ROW(E35),MATCH('Как надо'!F$1,'Исходные данные'!$A$1:$F$1,0))","v":17.8}]
[null,{"$f":"INDEX('Исходные данные'!$A$2:$F$586,ROW(A36),MATCH('Как надо'!B$1,'Исходные данные'!$A$1:$F$1,0))","v":"31 КАНАЛ"},{"$f":"INDEX('Исходные данные'!$A$2:$F$586,ROW(B36),MATCH('Как надо'!C$1,'Исходные данные'!$A$1:$F$1,0))","v":"2013-01-01"},{"$f":"INDEX('Исходные данные'!$A$2:$F$586,ROW(C36),MATCH('Как надо'!D$1,'Исходные данные'!$A$1:$F$1,0))","v":"Спонсор. ролик"},{"$f":"INDEX('Исходные данные'!$A$2:$F$586,ROW(D36),MATCH('Как надо'!E$1,'Исходные данные'!$A$1:$F$1,0))","v":"MARS"},{"$f":"INDEX('Исходные данные'!$A$2:$F$586,ROW(E36),MATCH('Как надо'!F$1,'Исходные данные'!$A$1:$F$1,0))","v":14.3}]
[null,{"$f":"INDEX('Исходные данные'!$A$2:$F$586,ROW(A37),MATCH('Как надо'!B$1,'Исходные данные'!$A$1:$F$1,0))","v":"31 КАНАЛ"},{"$f":"INDEX('Исходные данные'!$A$2:$F$586,ROW(B37),MATCH('Как надо'!C$1,'Исходные данные'!$A$1:$F$1,0))","v":"2013-01-01"},{"$f":"INDEX('Исходные данные'!$A$2:$F$586,ROW(C37),MATCH('Как надо'!D$1,'Исходные данные'!$A$1:$F$1,0))","v":"Спонсор. ролик"},{"$f":"INDEX('Исходные данные'!$A$2:$F$586,ROW(D37),MATCH('Как надо'!E$1,'Исходные данные'!$A$1:$F$1,0))","v":"А.КОРКУНОВ"},{"$f":"INDEX('Исходные данные'!$A$2:$F$586,ROW(E37),MATCH('Как надо'!F$1,'Исходные данные'!$A$1:$F$1,0))","v":14.4}]
[null,{"$f":"INDEX('Исходные данные'!$A$2:$F$586,ROW(A38),MATCH('Как надо'!B$1,'Исходные данные'!$A$1:$F$1,0))","v":"31 КАНАЛ"},{"$f":"INDEX('Исходные данные'!$A$2:$F$586,ROW(B38),MATCH('Как надо'!C$1,'Исходные данные'!$A$1:$F$1,0))","v":"2013-01-01"},{"$f":"INDEX('Исходные данные'!$A$2:$F$586,ROW(C38),MATCH('Как надо'!D$1,'Исходные данные'!$A$1:$F$1,0))","v":"Спонсор. ролик"},{"$f":"INDEX('Исходные данные'!$A$2:$F$586,ROW(D38),MATCH('Как надо'!E$1,'Исходные данные'!$A$1:$F$1,0))","v":"MARS"},{"$f":"INDEX('Исходные данные'!$A$2:$F$586,ROW(E38),MATCH('Как надо'!F$1,'Исходные данные'!$A$1:$F$1,0))","v":7.5}]
[null,{"$f":"INDEX('Исходные данные'!$A$2:$F$586,ROW(A39),MATCH('Как надо'!B$1,'Исходные данные'!$A$1:$F$1,0))","v":"31 КАНАЛ"},{"$f":"INDEX('Исходные данные'!$A$2:$F$586,ROW(B39),MATCH('Как надо'!C$1,'Исходные данные'!$A$1:$F$1,0))","v":"2013-01-01"},{"$f":"INDEX('Исходные данные'!$A$2:$F$586,ROW(C39),MATCH('Как надо'!D$1,'Исходные данные'!$A$1:$F$1,0))","v":"Спонсор. ролик"},{"$f":"INDEX('Исходные данные'!$A$2:$F$586,ROW(D39),MATCH('Как надо'!E$1,'Исходные данные'!$A$1:$F$1,0))","v":"MARS"},{"$f":"INDEX('Исходные данные'!$A$2:$F$586,ROW(E39),MATCH('Как надо'!F$1,'Исходные данные'!$A$1:$F$1,0))","v":9.3000000000000007}]
[null,{"$f":"INDEX('Исходные данные'!$A$2:$F$586,ROW(A40),MATCH('Как надо'!B$1,'Исходные данные'!$A$1:$F$1,0))","v":"31 КАНАЛ"},{"$f":"INDEX('Исходные данные'!$A$2:$F$586,ROW(B40),MATCH('Как надо'!C$1,'Исходные данные'!$A$1:$F$1,0))","v":"2013-01-01"},{"$f":"INDEX('Исходные данные'!$A$2:$F$586,ROW(C40),MATCH('Как надо'!D$1,'Исходные данные'!$A$1:$F$1,0))","v":"Спонсор. ролик"},{"$f":"INDEX('Исходные данные'!$A$2:$F$586,ROW(D40),MATCH('Как надо'!E$1,'Исходные данные'!$A$1:$F$1,0))","v":"MARS"},{"$f":"INDEX('Исходные данные'!$A$2:$F$586,ROW(E40),MATCH('Как надо'!F$1,'Исходные данные'!$A$1:$F$1,0))","v":5.0999999999999996}]
[null,{"$f":"INDEX('Исходные данные'!$A$2:$F$586,ROW(A41),MATCH('Как надо'!B$1,'Исходные данные'!$A$1:$F$1,0))","v":"31 КАНАЛ"},{"$f":"INDEX('Исходные данные'!$A$2:$F$586,ROW(B41),MATCH('Как надо'!C$1,'Исходные данные'!$A$1:$F$1,0))","v":"2013-01-01"},{"$f":"INDEX('Исходные данные'!$A$2:$F$586,ROW(C41),MATCH('Как надо'!D$1,'Исходные данные'!$A$1:$F$1,0))","v":"Спонсор. ролик"},{"$f":"INDEX('Исходные данные'!$A$2:$F$586,ROW(D41),MATCH('Как надо'!E$1,'Исходные данные'!$A$1:$F$1,0))","v":"А.КОРКУНОВ"},{"$f":"INDEX('Исходные данные'!$A$2:$F$586,ROW(E41),MATCH('Как надо'!F$1,'Исходные данные'!$A$1:$F$1,0))","v":7.2}]
[null,{"$f":"INDEX('Исходные данные'!$A$2:$F$586,ROW(A42),MATCH('Как надо'!B$1,'Исходные данные'!$A$1:$F$1,0))","v":"31 КАНАЛ"},{"$f":"INDEX('Исходные данные'!$A$2:$F$586,ROW(B42),MATCH('Как надо'!C$1,'Исходные данные'!$A$1:$F$1,0))","v":"2013-01-01"},{"$f":"INDEX('Исходные данные'!$A$2:$F$586,ROW(C42),MATCH('Как надо'!D$1,'Исходные данные'!$A$1:$F$1,0))","v":"Спонсор. ролик"},{"$f":"INDEX('Исходные данные'!$A$2:$F$586,ROW(D42),MATCH('Как надо'!E$1,'Исходные данные'!$A$1:$F$1,0))","v":"MARS"},{"$f":"INDEX('Исходные данные'!$A$2:$F$586,ROW(E42),MATCH('Как надо'!F$1,'Исходные данные'!$A$1:$F$1,0))","v":5.8}]
[null,{"$f":"INDEX('Исходные данные'!$A$2:$F$586,ROW(A43),MATCH('Как надо'!B$1,'Исходные данные'!$A$1:$F$1,0))","v":"31 КАНАЛ"},{"$f":"INDEX('Исходные данные'!$A$2:$F$586,ROW(B43),MATCH('Как надо'!C$1,'Исходные данные'!$A$1:$F$1,0))","v":"2013-01-01"},{"$f":"INDEX('Исходные данные'!$A$2:$F$586,ROW(C43),MATCH('Как надо'!D$1,'Исходные данные'!$A$1:$F$1,0))","v":"Спонсор. ролик"},{"$f":"INDEX('Исходные данные'!$A$2:$F$586,ROW(D43),MATCH('Как надо'!E$1,'Исходные данные'!$A$1:$F$1,0))","v":"MARS"},{"$f":"INDEX('Исходные данные'!$A$2:$F$586,ROW(E43),MATCH('Как надо'!F$1,'Исходные данные'!$A$1:$F$1,0))","v":11.7}]
[null,{"$f":"INDEX('Исходные данные'!$A$2:$F$586,ROW(A44),MATCH('Как надо'!B$1,'Исходные данные'!$A$1:$F$1,0))","v":"31 КАНАЛ"},{"$f":"INDEX('Исходные данные'!$A$2:$F$586,ROW(B44),MATCH('Как надо'!C$1,'Исходные данные'!$A$1:$F$1,0))","v":"2013-01-01"},{"$f":"INDEX('Исходные данные'!$A$2:$F$586,ROW(C44),MATCH('Как надо'!D$1,'Исходные данные'!$A$1:$F$1,0))","v":"Спонсор. ролик"},{"$f":"INDEX('Исходные данные'!$A$2:$F$586,ROW(D44),MATCH('Как надо'!E$1,'Исходные данные'!$A$1:$F$1,0))","v":"MARS"},{"$f":"INDEX('Исходные данные'!$A$2:$F$586,ROW(E44),MATCH('Как надо'!F$1,'Исходные данные'!$A$1:$F$1,0))","v":11.7}]
[null,{"$f":"INDEX('Исходные данные'!$A$2:$F$586,ROW(A45),MATCH('Как надо'!B$1,'Исходные данные'!$A$1:$F$1,0))","v":"31 КАНАЛ"},{"$f":"INDEX('Исходные данные'!$A$2:$F$586,ROW(B45),MATCH('Как надо'!C$1,'Исходные данные'!$A$1:$F$1,0))","v":"2013-01-01"},{"$f":"INDEX('Исходные данные'!$A$2:$F$586,ROW(C45),MATCH('Как надо'!D$1,'Исходные данные'!$A$1:$F$1,0))","v":"Спонсор. ролик"},{"$f":"INDEX('Исходные данные'!$A$2:$F$586,ROW(D45),MATCH('Как надо'!E$1,'Исходные данные'!$A$1:$F$1,0))","v":"MARS"},{"$f":"INDEX('Исходные данные'!$A$2:$F$586,ROW(E45),MATCH('Как надо'!F$1,'Исходные данные'!$A$1:$F$1,0))","v":8.8000000000000007}]
[null,{"$f":"INDEX('Исходные данные'!$A$2:$F$586,ROW(A46),MATCH('Как надо'!B$1,'Исходные данные'!$A$1:$F$1,0))","v":"31 КАНАЛ"},{"$f":"INDEX('Исходные данные'!$A$2:$F$586,ROW(B46),MATCH('Как надо'!C$1,'Исходные данные'!$A$1:$F$1,0))","v":"2013-01-01"},{"$f":"INDEX('Исходные данные'!$A$2:$F$586,ROW(C46),MATCH('Как надо'!D$1,'Исходные данные'!$A$1:$F$1,0))","v":"Спонсор. ролик"},{"$f":"INDEX('Исходные данные'!$A$2:$F$586,ROW(D46),MATCH('Как надо'!E$1,'Исходные данные'!$A$1:$F$1,0))","v":"А.КОРКУНОВ"},{"$f":"INDEX('Исходные данные'!$A$2:$F$586,ROW(E46),MATCH('Как надо'!F$1,'Исходные данные'!$A$1:$F$1,0))","v":9.8000000000000007}]
[null,{"$f":"INDEX('Исходные данные'!$A$2:$F$586,ROW(A47),MATCH('Как надо'!B$1,'Исходные данные'!$A$1:$F$1,0))","v":"31 КАНАЛ"},{"$f":"INDEX('Исходные данные'!$A$2:$F$586,ROW(B47),MATCH('Как надо'!C$1,'Исходные данные'!$A$1:$F$1,0))","v":"2013-01-01"},{"$f":"INDEX('Исходные данные'!$A$2:$F$586,ROW(C47),MATCH('Как надо'!D$1,'Исходные данные'!$A$1:$F$1,0))","v":"Спонсор. ролик"},{"$f":"INDEX('Исходные данные'!$A$2:$F$586,ROW(D47),MATCH('Как надо'!E$1,'Исходные данные'!$A$1:$F$1,0))","v":"MARS"},{"$f":"INDEX('Исходные данные'!$A$2:$F$586,ROW(E47),MATCH('Как надо'!F$1,'Исходные данные'!$A$1:$F$1,0))","v":6.4}]
[null,{"$f":"INDEX('Исходные данные'!$A$2:$F$586,ROW(A48),MATCH('Как надо'!B$1,'Исходные данные'!$A$1:$F$1,0))","v":"31 КАНАЛ"},{"$f":"INDEX('Исходные данные'!$A$2:$F$586,ROW(B48),MATCH('Как надо'!C$1,'Исходные данные'!$A$1:$F$1,0))","v":"2013-01-01"},{"$f":"INDEX('Исходные данные'!$A$2:$F$586,ROW(C48),MATCH('Как надо'!D$1,'Исходные данные'!$A$1:$F$1,0))","v":"Спонсор. ролик"},{"$f":"INDEX('Исходные данные'!$A$2:$F$586,ROW(D48),MATCH('Как надо'!E$1,'Исходные данные'!$A$1:$F$1,0))","v":"MARS"},{"$f":"INDEX('Исходные данные'!$A$2:$F$586,ROW(E48),MATCH('Как надо'!F$1,'Исходные данные'!$A$1:$F$1,0))","v":8.1}]
[null,{"$f":"INDEX('Исходные данные'!$A$2:$F$586,ROW(A49),MATCH('Как надо'!B$1,'Исходные данные'!$A$1:$F$1,0))","v":"31 КАНАЛ"},{"$f":"INDEX('Исходные данные'!$A$2:$F$586,ROW(B49),MATCH('Как надо'!C$1,'Исходные данные'!$A$1:$F$1,0))","v":"2013-01-01"},{"$f":"INDEX('Исходные данные'!$A$2:$F$586,ROW(C49),MATCH('Как надо'!D$1,'Исходные данные'!$A$1:$F$1,0))","v":"Спонсор. ролик"},{"$f":"INDEX('Исходные данные'!$A$2:$F$586,ROW(D49),MATCH('Как надо'!E$1,'Исходные данные'!$A$1:$F$1,0))","v":"MARS"},{"$f":"INDEX('Исходные данные'!$A$2:$F$586,ROW(E49),MATCH('Как надо'!F$1,'Исходные данные'!$A$1:$F$1,0))","v":1.6}]
[null,{"$f":"INDEX('Исходные данные'!$A$2:$F$586,ROW(A50),MATCH('Как надо'!B$1,'Исходные данные'!$A$1:$F$1,0))","v":"31 КАНАЛ"},{"$f":"INDEX('Исходные данные'!$A$2:$F$586,ROW(B50),MATCH('Как надо'!C$1,'Исходные данные'!$A$1:$F$1,0))","v":"2013-01-01"},{"$f":"INDEX('Исходные данные'!$A$2:$F$586,ROW(C50),MATCH('Как надо'!D$1,'Исходные данные'!$A$1:$F$1,0))","v":"Спонсор. ролик"},{"$f":"INDEX('Исходные данные'!$A$2:$F$586,ROW(D50),MATCH('Как надо'!E$1,'Исходные данные'!$A$1:$F$1,0))","v":"А.КОРКУНОВ"},{"$f":"INDEX('Исходные данные'!$A$2:$F$586,ROW(E50),MATCH('Как надо'!F$1,'Исходные данные'!$A$1:$F$1,0))","v":7.2}]
[null,{"$f":"INDEX('Исходные данные'!$A$2:$F$586,ROW(A51),MATCH('Как надо'!B$1,'Исходные данные'!$A$1:$F$1,0))","v":"31 КАНАЛ"},{"$f":"INDEX('Исходные данные'!$A$2:$F$586,ROW(B51),MATCH('Как надо'!C$1,'Исходные данные'!$A$1:$F$1,0))","v":"2013-01-01"},{"$f":"INDEX('Исходные данные'!$A$2:$F$586,ROW(C51),MATCH('Как надо'!D$1,'Исходные данные'!$A$1:$F$1,0))","v":"Спонсор. ролик"},{"$f":"INDEX('Исходные данные'!$A$2:$F$586,ROW(D51),MATCH('Как надо'!E$1,'Исходные данные'!$A$1:$F$1,0))","v":"MARS"},{"$f":"INDEX('Исходные данные'!$A$2:$F$586,ROW(E51),MATCH('Как надо'!F$1,'Исходные данные'!$A$1:$F$1,0))","v":1.6}]
[null,{"$f":"INDEX('Исходные данные'!$A$2:$F$586,ROW(A52),MATCH('Как надо'!B$1,'Исходные данные'!$A$1:$F$1,0))","v":"31 КАНАЛ"},{"$f":"INDEX('Исходные данные'!$A$2:$F$586,ROW(B52),MATCH('Как надо'!C$1,'Исходные данные'!$A$1:$F$1,0))","v":"2013-01-01"},{"$f":"INDEX('Исходные данные'!$A$2:$F$586,ROW(C52),MATCH('Как надо'!D$1,'Исходные данные'!$A$1:$F$1,0))","v":"Спонсор. ролик"},{"$f":"INDEX('Исходные данные'!$A$2:$F$586,ROW(D52),MATCH('Как надо'!E$1,'Исходные данные'!$A$1:$F$1,0))","v":"MARS"},{"$f":"INDEX('Исходные данные'!$A$2:$F$586,ROW(E52),MATCH('Как надо'!F$1,'Исходные данные'!$A$1:$F$1,0))","v":7.2}]
[null,{"$f":"INDEX('Исходные данные'!$A$2:$F$586,ROW(A53),MATCH('Как надо'!B$1,'Исходные данные'!$A$1:$F$1,0))","v":"31 КАНАЛ"},{"$f":"INDEX('Исходные данные'!$A$2:$F$586,ROW(B53),MATCH('Как надо'!C$1,'Исходные данные'!$A$1:$F$1,0))","v":"2013-01-01"},{"$f":"INDEX('Исходные данные'!$A$2:$F$586,ROW(C53),MATCH('Как надо'!D$1,'Исходные данные'!$A$1:$F$1,0))","v":"Спонсор. ролик"},{"$f":"INDEX('Исходные данные'!$A$2:$F$586,ROW(D53),MATCH('Как надо'!E$1,'Исходные данные'!$A$1:$F$1,0))","v":"MARS"},{"$f":"INDEX('Исходные данные'!$A$2:$F$586,ROW(E53),MATCH('Как надо'!F$1,'Исходные данные'!$A$1:$F$1,0))","v":5.8}]
[null,{"$f":"INDEX('Исходные данные'!$A$2:$F$586,ROW(A54),MATCH('Как надо'!B$1,'Исходные данные'!$A$1:$F$1,0))","v":"31 КАНАЛ"},{"$f":"INDEX('Исходные данные'!$A$2:$F$586,ROW(B54),MATCH('Как надо'!C$1,'Исходные данные'!$A$1:$F$1,0))","v":"2013-01-01"},{"$f":"INDEX('Исходные данные'!$A$2:$F$586,ROW(C54),MATCH('Как надо'!D$1,'Исходные данные'!$A$1:$F$1,0))","v":"Спонсор. ролик"},{"$f":"INDEX('Исходные данные'!$A$2:$F$586,ROW(D54),MATCH('Как надо'!E$1,'Исходные данные'!$A$1:$F$1,0))","v":"А.КОРКУНОВ"},{"$f":"INDEX('Исходные данные'!$A$2:$F$586,ROW(E54),MATCH('Как надо'!F$1,'Исходные данные'!$A$1:$F$1,0))","v":0}]
[null,{"$f":"INDEX('Исходные данные'!$A$2:$F$586,ROW(A55),MATCH('Как надо'!B$1,'Исходные данные'!$A$1:$F$1,0))","v":"31 КАНАЛ"},{"$f":"INDEX('Исходные данные'!$A$2:$F$586,ROW(B55),MATCH('Как надо'!C$1,'Исходные данные'!$A$1:$F$1,0))","v":"2013-01-01"},{"$f":"INDEX('Исходные данные'!$A$2:$F$586,ROW(C55),MATCH('Как надо'!D$1,'Исходные данные'!$A$1:$F$1,0))","v":"Спонсор. ролик"},{"$f":"INDEX('Исходные данные'!$A$2:$F$586,ROW(D55),MATCH('Как надо'!E$1,'Исходные данные'!$A$1:$F$1,0))","v":"MARS"},{"$f":"INDEX('Исходные данные'!$A$2:$F$586,ROW(E55),MATCH('Как надо'!F$1,'Исходные данные'!$A$1:$F$1,0))","v":0}]
[null,{"$f":"INDEX('Исходные данные'!$A$2:$F$586,ROW(A56),MATCH('Как надо'!B$1,'Исходные данные'!$A$1:$F$1,0))","v":"31 КАНАЛ"},{"$f":"INDEX('Исходные данные'!$A$2:$F$586,ROW(B56),MATCH('Как надо'!C$1,'Исходные данные'!$A$1:$F$1,0))","v":"2013-01-01"},{"$f":"INDEX('Исходные данные'!$A$2:$F$586,ROW(C56),MATCH('Как надо'!D$1,'Исходные данные'!$A$1:$F$1,0))","v":"Спонсор. ролик"},{"$f":"INDEX('Исходные данные'!$A$2:$F$586,ROW(D56),MATCH('Как надо'!E$1,'Исходные данные'!$A$1:$F$1,0))","v":"MARS"},{"$f":"INDEX('Исходные данные'!$A$2:$F$586,ROW(E56),MATCH('Как надо'!F$1,'Исходные данные'!$A$1:$F$1,0))","v":0.6}]
[null,{"$f":"INDEX('Исходные данные'!$A$2:$F$586,ROW(A57),MATCH('Как надо'!B$1,'Исходные данные'!$A$1:$F$1,0))","v":"31 КАНАЛ"},{"$f":"INDEX('Исходные данные'!$A$2:$F$586,ROW(B57),MATCH('Как надо'!C$1,'Исходные данные'!$A$1:$F$1,0))","v":"2013-01-01"},{"$f":"INDEX('Исходные данные'!$A$2:$F$586,ROW(C57),MATCH('Как надо'!D$1,'Исходные данные'!$A$1:$F$1,0))","v":"Спонсор. ролик"},{"$f":"INDEX('Исходные данные'!$A$2:$F$586,ROW(D57),MATCH('Как надо'!E$1,'Исходные данные'!$A$1:$F$1,0))","v":"MARS"},{"$f":"INDEX('Исходные данные'!$A$2:$F$586,ROW(E57),MATCH('Как надо'!F$1,'Исходные данные'!$A$1:$F$1,0))","v":5.2}]
[null,{"$f":"INDEX('Исходные данные'!$A$2:$F$586,ROW(A58),MATCH('Как надо'!B$1,'Исходные данные'!$A$1:$F$1,0))","v":"31 КАНАЛ"},{"$f":"INDEX('Исходные данные'!$A$2:$F$586,ROW(B58),MATCH('Как надо'!C$1,'Исходные данные'!$A$1:$F$1,0))","v":"2013-01-01"},{"$f":"INDEX('Исходные данные'!$A$2:$F$586,ROW(C58),MATCH('Как надо'!D$1,'Исходные данные'!$A$1:$F$1,0))","v":"Спонсор. ролик"},{"$f":"INDEX('Исходные данные'!$A$2:$F$586,ROW(D58),MATCH('Как надо'!E$1,'Исходные данные'!$A$1:$F$1,0))","v":"MARS"},{"$f":"INDEX('Исходные данные'!$A$2:$F$586,ROW(E58),MATCH('Как надо'!F$1,'Исходные данные'!$A$1:$F$1,0))","v":0}]
[null,{"$f":"INDEX('Исходные данные'!$A$2:$F$586,ROW(A59),MATCH('Как надо'!B$1,'Исходные данные'!$A$1:$F$1,0))","v":"31 КАНАЛ"},{"$f":"INDEX('Исходные данные'!$A$2:$F$586,ROW(B59),MATCH('Как надо'!C$1,'Исходные данные'!$A$1:$F$1,0))","v":"2013-01-01"},{"$f":"INDEX('Исходные данные'!$A$2:$F$586,ROW(C59),MATCH('Как надо'!D$1,'Исходные данные'!$A$1:$F$1,0))","v":"Спонсор. ролик"},{"$f":"INDEX('Исходные данные'!$A$2:$F$586,ROW(D59),MATCH('Как надо'!E$1,'Исходные данные'!$A$1:$F$1,0))","v":"А.КОРКУНОВ"},{"$f":"INDEX('Исходные данные'!$A$2:$F$586,ROW(E59),MATCH('Как надо'!F$1,'Исходные данные'!$A$1:$F$1,0))","v":1.8}]
[null,{"$f":"INDEX('Исходные данные'!$A$2:$F$586,ROW(A60),MATCH('Как надо'!B$1,'Исходные данные'!$A$1:$F$1,0))","v":"31 КАНАЛ"},{"$f":"INDEX('Исходные данные'!$A$2:$F$586,ROW(B60),MATCH('Как надо'!C$1,'Исходные данные'!$A$1:$F$1,0))","v":"2013-01-01"},{"$f":"INDEX('Исходные данные'!$A$2:$F$586,ROW(C60),MATCH('Как надо'!D$1,'Исходные данные'!$A$1:$F$1,0))","v":"Спонсор. ролик"},{"$f":"INDEX('Исходные данные'!$A$2:$F$586,ROW(D60),MATCH('Как надо'!E$1,'Исходные данные'!$A$1:$F$1,0))","v":"MARS"},{"$f":"INDEX('Исходные данные'!$A$2:$F$586,ROW(E60),MATCH('Как надо'!F$1,'Исходные данные'!$A$1:$F$1,0))","v":0}]
[null,{"$f":"INDEX('Исходные данные'!$A$2:$F$586,ROW(A61),MATCH('Как надо'!B$1,'Исходные данные'!$A$1:$F$1,0))","v":"31 КАНАЛ"},{"$f":"INDEX('Исходные данные'!$A$2:$F$586,ROW(B61),MATCH('Как надо'!C$1,'Исходные данные'!$A$1:$F$1,0))","v":"2013-01-01"},{"$f":"INDEX('Исходные данные'!$A$2:$F$586,ROW(C61),MATCH('Как надо'!D$1,'Исходные данные'!$A$1:$F$1,0))","v":"Спонсор. ролик"},{"$f":"INDEX('Исходные данные'!$A$2:$F$586,ROW(D61),MATCH('Как надо'!E$1,'Исходные данные'!$A$1:$F$1,0))","v":"MARS"},{"$f":"INDEX('Исходные данные'!$A$2:$F$586,ROW(E61),MATCH('Как надо'!F$1,'Исходные данные'!$A$1:$F$1,0))","v":1.8}]
[null,{"$f":"INDEX('Исходные данные'!$A$2:$F$586,ROW(A62),MATCH('Как надо'!B$1,'Исходные данные'!$A$1:$F$1,0))","v":"31 КАНАЛ"},{"$f":"INDEX('Исходные данные'!$A$2:$F$586,ROW(B62),MATCH('Как надо'!C$1,'Исходные данные'!$A$1:$F$1,0))","v":"2013-01-01"},{"$f":"INDEX('Исходные данные'!$A$2:$F$586,ROW(C62),MATCH('Как надо'!D$1,'Исходные данные'!$A$1:$F$1,0))","v":"Спонсор. ролик"},{"$f":"INDEX('Исходные данные'!$A$2:$F$586,ROW(D62),MATCH('Как надо'!E$1,'Исходные данные'!$A$1:$F$1,0))","v":"MARS"},{"$f":"INDEX('Исходные данные'!$A$2:$F$586,ROW(E62),MATCH('Как надо'!F$1,'Исходные данные'!$A$1:$F$1,0))","v":0}]
[null,{"$f":"INDEX('Исходные данные'!$A$2:$F$586,ROW(A63),MATCH('Как надо'!B$1,'Исходные данные'!$A$1:$F$1,0))","v":"31 КАНАЛ"},{"$f":"INDEX('Исходные данные'!$A$2:$F$586,ROW(B63),MATCH('Как надо'!C$1,'Исходные данные'!$A$1:$F$1,0))","v":"2013-01-01"},{"$f":"INDEX('Исходные данные'!$A$2:$F$586,ROW(C63),MATCH('Как надо'!D$1,'Исходные данные'!$A$1:$F$1,0))","v":"Спонсор. ролик"},{"$f":"INDEX('Исходные данные'!$A$2:$F$586,ROW(D63),MATCH('Как надо'!E$1,'Исходные данные'!$A$1:$F$1,0))","v":"А.КОРКУНОВ"},{"$f":"INDEX('Исходные данные'!$A$2:$F$586,ROW(E63),MATCH('Как надо'!F$1,'Исходные данные'!$A$1:$F$1,0))","v":1.6}]
[null,{"$f":"INDEX('Исходные данные'!$A$2:$F$586,ROW(A64),MATCH('Как надо'!B$1,'Исходные данные'!$A$1:$F$1,0))","v":"31 КАНАЛ"},{"$f":"INDEX('Исходные данные'!$A$2:$F$586,ROW(B64),MATCH('Как надо'!C$1,'Исходные данные'!$A$1:$F$1,0))","v":"2013-01-01"},{"$f":"INDEX('Исходные данные'!$A$2:$F$586,ROW(C64),MATCH('Как надо'!D$1,'Исходные данные'!$A$1:$F$1,0))","v":"Спонсор. ролик"},{"$f":"INDEX('Исходные данные'!$A$2:$F$586,ROW(D64),MATCH('Как надо'!E$1,'Исходные данные'!$A$1:$F$1,0))","v":"MARS"},{"$f":"INDEX('Исходные данные'!$A$2:$F$586,ROW(E64),MATCH('Как надо'!F$1,'Исходные данные'!$A$1:$F$1,0))","v":8.6999999999999993}]
[null,{"$f":"INDEX('Исходные данные'!$A$2:$F$586,ROW(A65),MATCH('Как надо'!B$1,'Исходные данные'!$A$1:$F$1,0))","v":"31 КАНАЛ"},{"$f":"INDEX('Исходные данные'!$A$2:$F$586,ROW(B65),MATCH('Как надо'!C$1,'Исходные данные'!$A$1:$F$1,0))","v":"2013-01-01"},{"$f":"INDEX('Исходные данные'!$A$2:$F$586,ROW(C65),MATCH('Как надо'!D$1,'Исходные данные'!$A$1:$F$1,0))","v":"Спонсор. ролик"},{"$f":"INDEX('Исходные данные'!$A$2:$F$586,ROW(D65),MATCH('Как надо'!E$1,'Исходные данные'!$A$1:$F$1,0))","v":"MARS"},{"$f":"INDEX('Исходные данные'!$A$2:$F$586,ROW(E65),MATCH('Как надо'!F$1,'Исходные данные'!$A$1:$F$1,0))","v":7.1}]
[null,{"$f":"INDEX('Исходные данные'!$A$2:$F$586,ROW(A66),MATCH('Как надо'!B$1,'Исходные данные'!$A$1:$F$1,0))","v":"31 КАНАЛ"},{"$f":"INDEX('Исходные данные'!$A$2:$F$586,ROW(B66),MATCH('Как надо'!C$1,'Исходные данные'!$A$1:$F$1,0))","v":"2013-01-01"},{"$f":"INDEX('Исходные данные'!$A$2:$F$586,ROW(C66),MATCH('Как надо'!D$1,'Исходные данные'!$A$1:$F$1,0))","v":"Спонсор. ролик"},{"$f":"INDEX('Исходные данные'!$A$2:$F$586,ROW(D66),MATCH('Как надо'!E$1,'Исходные данные'!$A$1:$F$1,0))","v":"MARS"},{"$f":"INDEX('Исходные данные'!$A$2:$F$586,ROW(E66),MATCH('Как надо'!F$1,'Исходные данные'!$A$1:$F$1,0))","v":7.1}]
[null,{"$f":"INDEX('Исходные данные'!$A$2:$F$586,ROW(A67),MATCH('Как надо'!B$1,'Исходные данные'!$A$1:$F$1,0))","v":"31 КАНАЛ"},{"$f":"INDEX('Исходные данные'!$A$2:$F$586,ROW(B67),MATCH('Как надо'!C$1,'Исходные данные'!$A$1:$F$1,0))","v":"2013-01-01"},{"$f":"INDEX('Исходные данные'!$A$2:$F$586,ROW(C67),MATCH('Как надо'!D$1,'Исходные данные'!$A$1:$F$1,0))","v":"Спонсор. ролик"},{"$f":"INDEX('Исходные данные'!$A$2:$F$586,ROW(D67),MATCH('Как надо'!E$1,'Исходные данные'!$A$1:$F$1,0))","v":"А.КОРКУНОВ"},{"$f":"INDEX('Исходные данные'!$A$2:$F$586,ROW(E67),MATCH('Как надо'!F$1,'Исходные данные'!$A$1:$F$1,0))","v":5.2}]
[null,{"$f":"INDEX('Исходные данные'!$A$2:$F$586,ROW(A68),MATCH('Как надо'!B$1,'Исходные данные'!$A$1:$F$1,0))","v":"31 КАНАЛ"},{"$f":"INDEX('Исходные данные'!$A$2:$F$586,ROW(B68),MATCH('Как надо'!C$1,'Исходные данные'!$A$1:$F$1,0))","v":"2013-01-01"},{"$f":"INDEX('Исходные данные'!$A$2:$F$586,ROW(C68),MATCH('Как надо'!D$1,'Исходные данные'!$A$1:$F$1,0))","v":"Спонсор. ролик"},{"$f":"INDEX('Исходные данные'!$A$2:$F$586,ROW(D68),MATCH('Как надо'!E$1,'Исходные данные'!$A$1:$F$1,0))","v":"MARS"},{"$f":"INDEX('Исходные данные'!$A$2:$F$586,ROW(E68),MATCH('Как надо'!F$1,'Исходные данные'!$A$1:$F$1,0))","v":4.2}]
[null,{"$f":"INDEX('Исходные данные'!$A$2:$F$586,ROW(A69),MATCH('Как надо'!B$1,'Исходные данные'!$A$1:$F$1,0))","v":"31 КАНАЛ"},{"$f":"INDEX('Исходные данные'!$A$2:$F$586,ROW(B69),MATCH('Как надо'!C$1,'Исходные данные'!$A$1:$F$1,0))","v":"2013-01-01"},{"$f":"INDEX('Исходные данные'!$A$2:$F$586,ROW(C69),MATCH('Как надо'!D$1,'Исходные данные'!$A$1:$F$1,0))","v":"Спонсор. ролик"},{"$f":"INDEX('Исходные данные'!$A$2:$F$586,ROW(D69),MATCH('Как надо'!E$1,'Исходные данные'!$A$1:$F$1,0))","v":"MARS"},{"$f":"INDEX('Исходные данные'!$A$2:$F$586,ROW(E69),MATCH('Как надо'!F$1,'Исходные данные'!$A$1:$F$1,0))","v":3.4}]
[null,{"$f":"INDEX('Исходные данные'!$A$2:$F$586,ROW(A70),MATCH('Как надо'!B$1,'Исходные данные'!$A$1:$F$1,0))","v":"31 КАНАЛ"},{"$f":"INDEX('Исходные данные'!$A$2:$F$586,ROW(B70),MATCH('Как надо'!C$1,'Исходные данные'!$A$1:$F$1,0))","v":"2013-01-01"},{"$f":"INDEX('Исходные данные'!$A$2:$F$586,ROW(C70),MATCH('Как надо'!D$1,'Исходные данные'!$A$1:$F$1,0))","v":"Спонсор. ролик"},{"$f":"INDEX('Исходные данные'!$A$2:$F$586,ROW(D70),MATCH('Как надо'!E$1,'Исходные данные'!$A$1:$F$1,0))","v":"MARS"},{"$f":"INDEX('Исходные данные'!$A$2:$F$586,ROW(E70),MATCH('Как надо'!F$1,'Исходные данные'!$A$1:$F$1,0))","v":1.6}]
[null,{"$f":"INDEX('Исходные данные'!$A$2:$F$586,ROW(A71),MATCH('Как надо'!B$1,'Исходные данные'!$A$1:$F$1,0))","v":"31 КАНАЛ"},{"$f":"INDEX('Исходные данные'!$A$2:$F$586,ROW(B71),MATCH('Как надо'!C$1,'Исходные данные'!$A$1:$F$1,0))","v":"2013-01-01"},{"$f":"INDEX('Исходные данные'!$A$2:$F$586,ROW(C71),MATCH('Как надо'!D$1,'Исходные данные'!$A$1:$F$1,0))","v":"Спонсор. ролик"},{"$f":"INDEX('Исходные данные'!$A$2:$F$586,ROW(D71),MATCH('Как надо'!E$1,'Исходные данные'!$A$1:$F$1,0))","v":"А.КОРКУНОВ"},{"$f":"INDEX('Исходные данные'!$A$2:$F$586,ROW(E71),MATCH('Как надо'!F$1,'Исходные данные'!$A$1:$F$1,0))","v":11.7}]
[null,{"$f":"INDEX('Исходные данные'!$A$2:$F$586,ROW(A72),MATCH('Как надо'!B$1,'Исходные данные'!$A$1:$F$1,0))","v":"31 КАНАЛ"},{"$f":"INDEX('Исходные данные'!$A$2:$F$586,ROW(B72),MATCH('Как надо'!C$1,'Исходные данные'!$A$1:$F$1,0))","v":"2013-01-01"},{"$f":"INDEX('Исходные данные'!$A$2:$F$586,ROW(C72),MATCH('Как надо'!D$1,'Исходные данные'!$A$1:$F$1,0))","v":"Спонсор. ролик"},{"$f":"INDEX('Исходные данные'!$A$2:$F$586,ROW(D72),MATCH('Как надо'!E$1,'Исходные данные'!$A$1:$F$1,0))","v":"MARS"},{"$f":"INDEX('Исходные данные'!$A$2:$F$586,ROW(E72),MATCH('Как надо'!F$1,'Исходные данные'!$A$1:$F$1,0))","v":9.1999999999999993}]
[null,{"$f":"INDEX('Исходные данные'!$A$2:$F$586,ROW(A73),MATCH('Как надо'!B$1,'Исходные данные'!$A$1:$F$1,0))","v":"31 КАНАЛ"},{"$f":"INDEX('Исходные данные'!$A$2:$F$586,ROW(B73),MATCH('Как надо'!C$1,'Исходные данные'!$A$1:$F$1,0))","v":"2013-01-01"},{"$f":"INDEX('Исходные данные'!$A$2:$F$586,ROW(C73),MATCH('Как надо'!D$1,'Исходные данные'!$A$1:$F$1,0))","v":"Спонсор. ролик"},{"$f":"INDEX('Исходные данные'!$A$2:$F$586,ROW(D73),MATCH('Как надо'!E$1,'Исходные данные'!$A$1:$F$1,0))","v":"MARS"},{"$f":"INDEX('Исходные данные'!$A$2:$F$586,ROW(E73),MATCH('Как надо'!F$1,'Исходные данные'!$A$1:$F$1,0))","v":11.6}]
[null,{"$f":"INDEX('Исходные данные'!$A$2:$F$586,ROW(A74),MATCH('Как надо'!B$1,'Исходные данные'!$A$1:$F$1,0))","v":"31 КАНАЛ"},{"$f":"INDEX('Исходные данные'!$A$2:$F$586,ROW(B74),MATCH('Как надо'!C$1,'Исходные данные'!$A$1:$F$1,0))","v":"2013-01-01"},{"$f":"INDEX('Исходные данные'!$A$2:$F$586,ROW(C74),MATCH('Как надо'!D$1,'Исходные данные'!$A$1:$F$1,0))","v":"Спонсор. ролик"},{"$f":"INDEX('Исходные данные'!$A$2:$F$586,ROW(D74),MATCH('Как надо'!E$1,'Исходные данные'!$A$1:$F$1,0))","v":"MARS"},{"$f":"INDEX('Исходные данные'!$A$2:$F$586,ROW(E74),MATCH('Как надо'!F$1,'Исходные данные'!$A$1:$F$1,0))","v":14.6}]
[null,{"$f":"INDEX('Исходные данные'!$A$2:$F$586,ROW(A75),MATCH('Как надо'!B$1,'Исходные данные'!$A$1:$F$1,0))","v":"31 КАНАЛ"},{"$f":"INDEX('Исходные данные'!$A$2:$F$586,ROW(B75),MATCH('Как надо'!C$1,'Исходные данные'!$A$1:$F$1,0))","v":"2013-01-01"},{"$f":"INDEX('Исходные данные'!$A$2:$F$586,ROW(C75),MATCH('Как надо'!D$1,'Исходные данные'!$A$1:$F$1,0))","v":"Спонсор. ролик"},{"$f":"INDEX('Исходные данные'!$A$2:$F$586,ROW(D75),MATCH('Как надо'!E$1,'Исходные данные'!$A$1:$F$1,0))","v":"А.КОРКУНОВ"},{"$f":"INDEX('Исходные данные'!$A$2:$F$586,ROW(E75),MATCH('Как надо'!F$1,'Исходные данные'!$A$1:$F$1,0))","v":6.4}]
[null,{"$f":"INDEX('Исходные данные'!$A$2:$F$586,ROW(A76),MATCH('Как надо'!B$1,'Исходные данные'!$A$1:$F$1,0))","v":"31 КАНАЛ"},{"$f":"INDEX('Исходные данные'!$A$2:$F$586,ROW(B76),MATCH('Как надо'!C$1,'Исходные данные'!$A$1:$F$1,0))","v":"2013-01-01"},{"$f":"INDEX('Исходные данные'!$A$2:$F$586,ROW(C76),MATCH('Как надо'!D$1,'Исходные данные'!$A$1:$F$1,0))","v":"Спонсор. ролик"},{"$f":"INDEX('Исходные данные'!$A$2:$F$586,ROW(D76),MATCH('Как надо'!E$1,'Исходные данные'!$A$1:$F$1,0))","v":"MARS"},{"$f":"INDEX('Исходные данные'!$A$2:$F$586,ROW(E76),MATCH('Как надо'!F$1,'Исходные данные'!$A$1:$F$1,0))","v":7.1}]
[null,{"$f":"INDEX('Исходные данные'!$A$2:$F$586,ROW(A77),MATCH('Как надо'!B$1,'Исходные данные'!$A$1:$F$1,0))","v":"31 КАНАЛ"},{"$f":"INDEX('Исходные данные'!$A$2:$F$586,ROW(B77),MATCH('Как надо'!C$1,'Исходные данные'!$A$1:$F$1,0))","v":"2013-01-01"},{"$f":"INDEX('Исходные данные'!$A$2:$F$586,ROW(C77),MATCH('Как надо'!D$1,'Исходные данные'!$A$1:$F$1,0))","v":"Спонсор. ролик"},{"$f":"INDEX('Исходные данные'!$A$2:$F$586,ROW(D77),MATCH('Как надо'!E$1,'Исходные данные'!$A$1:$F$1,0))","v":"MARS"},{"$f":"INDEX('Исходные данные'!$A$2:$F$586,ROW(E77),MATCH('Как надо'!F$1,'Исходные данные'!$A$1:$F$1,0))","v":0.2}]
[null,{"$f":"INDEX('Исходные данные'!$A$2:$F$586,ROW(A78),MATCH('Как надо'!B$1,'Исходные данные'!$A$1:$F$1,0))","v":"31 КАНАЛ"},{"$f":"INDEX('Исходные данные'!$A$2:$F$586,ROW(B78),MATCH('Как надо'!C$1,'Исходные данные'!$A$1:$F$1,0))","v":"2013-01-01"},{"$f":"INDEX('Исходные данные'!$A$2:$F$586,ROW(C78),MATCH('Как надо'!D$1,'Исходные данные'!$A$1:$F$1,0))","v":"Спонсор. ролик"},{"$f":"INDEX('Исходные данные'!$A$2:$F$586,ROW(D78),MATCH('Как надо'!E$1,'Исходные данные'!$A$1:$F$1,0))","v":"MARS"},{"$f":"INDEX('Исходные данные'!$A$2:$F$586,ROW(E78),MATCH('Как надо'!F$1,'Исходные данные'!$A$1:$F$1,0))","v":1.8}]
[null,{"$f":"INDEX('Исходные данные'!$A$2:$F$586,ROW(A79),MATCH('Как надо'!B$1,'Исходные данные'!$A$1:$F$1,0))","v":"31 КАНАЛ"},{"$f":"INDEX('Исходные данные'!$A$2:$F$586,ROW(B79),MATCH('Как надо'!C$1,'Исходные данные'!$A$1:$F$1,0))","v":"2013-01-01"},{"$f":"INDEX('Исходные данные'!$A$2:$F$586,ROW(C79),MATCH('Как надо'!D$1,'Исходные данные'!$A$1:$F$1,0))","v":"Спонсор. ролик"},{"$f":"INDEX('Исходные данные'!$A$2:$F$586,ROW(D79),MATCH('Как надо'!E$1,'Исходные данные'!$A$1:$F$1,0))","v":"MARS"},{"$f":"INDEX('Исходные данные'!$A$2:$F$586,ROW(E79),MATCH('Как надо'!F$1,'Исходные данные'!$A$1:$F$1,0))","v":1.8}]
[null,{"$f":"INDEX('Исходные данные'!$A$2:$F$586,ROW(A80),MATCH('Как надо'!B$1,'Исходные данные'!$A$1:$F$1,0))","v":"31 КАНАЛ"},{"$f":"INDEX('Исходные данные'!$A$2:$F$586,ROW(B80),MATCH('Как надо'!C$1,'Исходные данные'!$A$1:$F$1,0))","v":"2013-01-01"},{"$f":"INDEX('Исходные данные'!$A$2:$F$586,ROW(C80),MATCH('Как надо'!D$1,'Исходные данные'!$A$1:$F$1,0))","v":"Спонсор. ролик"},{"$f":"INDEX('Исходные данные'!$A$2:$F$586,ROW(D80),MATCH('Как надо'!E$1,'Исходные данные'!$A$1:$F$1,0))","v":"А.КОРКУНОВ"},{"$f":"INDEX('Исходные данные'!$A$2:$F$586,ROW(E80),MATCH('Как надо'!F$1,'Исходные данные'!$A$1:$F$1,0))","v":1.3}]
[null,{"$f":"INDEX('Исходные данные'!$A$2:$F$586,ROW(A81),MATCH('Как надо'!B$1,'Исходные данные'!$A$1:$F$1,0))","v":"31 КАНАЛ"},{"$f":"INDEX('Исходные данные'!$A$2:$F$586,ROW(B81),MATCH('Как надо'!C$1,'Исходные данные'!$A$1:$F$1,0))","v":"2013-01-01"},{"$f":"INDEX('Исходные данные'!$A$2:$F$586,ROW(C81),MATCH('Как надо'!D$1,'Исходные данные'!$A$1:$F$1,0))","v":"Спонсор. ролик"},{"$f":"INDEX('Исходные данные'!$A$2:$F$586,ROW(D81),MATCH('Как надо'!E$1,'Исходные данные'!$A$1:$F$1,0))","v":"MARS"},{"$f":"INDEX('Исходные данные'!$A$2:$F$586,ROW(E81),MATCH('Как надо'!F$1,'Исходные данные'!$A$1:$F$1,0))","v":1.3}]
[null,{"$f":"INDEX('Исходные данные'!$A$2:$F$586,ROW(A82),MATCH('Как надо'!B$1,'Исходные данные'!$A$1:$F$1,0))","v":"31 КАНАЛ"},{"$f":"INDEX('Исходные данные'!$A$2:$F$586,ROW(B82),MATCH('Как надо'!C$1,'Исходные данные'!$A$1:$F$1,0))","v":"2013-01-01"},{"$f":"INDEX('Исходные данные'!$A$2:$F$586,ROW(C82),MATCH('Как надо'!D$1,'Исходные данные'!$A$1:$F$1,0))","v":"Спонсор. ролик"},{"$f":"INDEX('Исходные данные'!$A$2:$F$586,ROW(D82),MATCH('Как надо'!E$1,'Исходные данные'!$A$1:$F$1,0))","v":"MARS"},{"$f":"INDEX('Исходные данные'!$A$2:$F$586,ROW(E82),MATCH('Как надо'!F$1,'Исходные данные'!$A$1:$F$1,0))","v":2.7}]
[null,{"$f":"INDEX('Исходные данные'!$A$2:$F$586,ROW(A83),MATCH('Как надо'!B$1,'Исходные данные'!$A$1:$F$1,0))","v":"КТК"},{"$f":"INDEX('Исходные данные'!$A$2:$F$586,ROW(B83),MATCH('Как надо'!C$1,'Исходные данные'!$A$1:$F$1,0))","v":"2013-01-01"},{"$f":"INDEX('Исходные данные'!$A$2:$F$586,ROW(C83),MATCH('Как надо'!D$1,'Исходные данные'!$A$1:$F$1,0))","v":"Ролик"},{"$f":"INDEX('Исходные данные'!$A$2:$F$586,ROW(D83),MATCH('Как надо'!E$1,'Исходные данные'!$A$1:$F$1,0))","v":"MARS"},{"$f":"INDEX('Исходные данные'!$A$2:$F$586,ROW(E83),MATCH('Как надо'!F$1,'Исходные данные'!$A$1:$F$1,0))","v":4.9000000000000004}]
[null,{"$f":"INDEX('Исходные данные'!$A$2:$F$586,ROW(A84),MATCH('Как надо'!B$1,'Исходные данные'!$A$1:$F$1,0))","v":"КТК"},{"$f":"INDEX('Исходные данные'!$A$2:$F$586,ROW(B84),MATCH('Как надо'!C$1,'Исходные данные'!$A$1:$F$1,0))","v":"2013-01-01"},{"$f":"INDEX('Исходные данные'!$A$2:$F$586,ROW(C84),MATCH('Как надо'!D$1,'Исходные данные'!$A$1:$F$1,0))","v":"Ролик"},{"$f":"INDEX('Исходные данные'!$A$2:$F$586,ROW(D84),MATCH('Как надо'!E$1,'Исходные данные'!$A$1:$F$1,0))","v":"NESTLE"},{"$f":"INDEX('Исходные данные'!$A$2:$F$586,ROW(E84),MATCH('Как надо'!F$1,'Исходные данные'!$A$1:$F$1,0))","v":3.1}]
[null,{"$f":"INDEX('Исходные данные'!$A$2:$F$586,ROW(A85),MATCH('Как надо'!B$1,'Исходные данные'!$A$1:$F$1,0))","v":"КТК"},{"$f":"INDEX('Исходные данные'!$A$2:$F$586,ROW(B85),MATCH('Как надо'!C$1,'Исходные данные'!$A$1:$F$1,0))","v":"2013-01-01"},{"$f":"INDEX('Исходные данные'!$A$2:$F$586,ROW(C85),MATCH('Как надо'!D$1,'Исходные данные'!$A$1:$F$1,0))","v":"Ролик"},{"$f":"INDEX('Исходные данные'!$A$2:$F$586,ROW(D85),MATCH('Как надо'!E$1,'Исходные данные'!$A$1:$F$1,0))","v":"NESTLE"},{"$f":"INDEX('Исходные данные'!$A$2:$F$586,ROW(E85),MATCH('Как надо'!F$1,'Исходные данные'!$A$1:$F$1,0))","v":5.3}]
[null,{"$f":"INDEX('Исходные данные'!$A$2:$F$586,ROW(A86),MATCH('Как надо'!B$1,'Исходные данные'!$A$1:$F$1,0))","v":"КТК"},{"$f":"INDEX('Исходные данные'!$A$2:$F$586,ROW(B86),MATCH('Как надо'!C$1,'Исходные данные'!$A$1:$F$1,0))","v":"2013-01-01"},{"$f":"INDEX('Исходные данные'!$A$2:$F$586,ROW(C86),MATCH('Как надо'!D$1,'Исходные данные'!$A$1:$F$1,0))","v":"Ролик"},{"$f":"INDEX('Исходные данные'!$A$2:$F$586,ROW(D86),MATCH('Как надо'!E$1,'Исходные данные'!$A$1:$F$1,0))","v":"NESTLE"},{"$f":"INDEX('Исходные данные'!$A$2:$F$586,ROW(E86),MATCH('Как надо'!F$1,'Исходные данные'!$A$1:$F$1,0))","v":2.2000000000000002}]
[null,{"$f":"INDEX('Исходные данные'!$A$2:$F$586,ROW(A87),MATCH('Как надо'!B$1,'Исходные данные'!$A$1:$F$1,0))","v":"КТК"},{"$f":"INDEX('Исходные данные'!$A$2:$F$586,ROW(B87),MATCH('Как надо'!C$1,'Исходные данные'!$A$1:$F$1,0))","v":"2013-01-01"},{"$f":"INDEX('Исходные данные'!$A$2:$F$586,ROW(C87),MATCH('Как надо'!D$1,'Исходные данные'!$A$1:$F$1,0))","v":"Ролик"},{"$f":"INDEX('Исходные данные'!$A$2:$F$586,ROW(D87),MATCH('Как надо'!E$1,'Исходные данные'!$A$1:$F$1,0))","v":"NESTLE"},{"$f":"INDEX('Исходные данные'!$A$2:$F$586,ROW(E87),MATCH('Как надо'!F$1,'Исходные данные'!$A$1:$F$1,0))","v":0.8}]
[null,{"$f":"INDEX('Исходные данные'!$A$2:$F$586,ROW(A88),MATCH('Как надо'!B$1,'Исходные данные'!$A$1:$F$1,0))","v":"КТК"},{"$f":"INDEX('Исходные данные'!$A$2:$F$586,ROW(B88),MATCH('Как надо'!C$1,'Исходные данные'!$A$1:$F$1,0))","v":"2013-01-01"},{"$f":"INDEX('Исходные данные'!$A$2:$F$586,ROW(C88),MATCH('Как надо'!D$1,'Исходные данные'!$A$1:$F$1,0))","v":"Ролик"},{"$f":"INDEX('Исходные данные'!$A$2:$F$586,ROW(D88),MATCH('Как надо'!E$1,'Исходные данные'!$A$1:$F$1,0))","v":"MARS"},{"$f":"INDEX('Исходные данные'!$A$2:$F$586,ROW(E88),MATCH('Как надо'!F$1,'Исходные данные'!$A$1:$F$1,0))","v":6.5}]
[null,{"$f":"INDEX('Исходные данные'!$A$2:$F$586,ROW(A89),MATCH('Как надо'!B$1,'Исходные данные'!$A$1:$F$1,0))","v":"КТК"},{"$f":"INDEX('Исходные данные'!$A$2:$F$586,ROW(B89),MATCH('Как надо'!C$1,'Исходные данные'!$A$1:$F$1,0))","v":"2013-01-01"},{"$f":"INDEX('Исходные данные'!$A$2:$F$586,ROW(C89),MATCH('Как надо'!D$1,'Исходные данные'!$A$1:$F$1,0))","v":"Ролик"},{"$f":"INDEX('Исходные данные'!$A$2:$F$586,ROW(D89),MATCH('Как надо'!E$1,'Исходные данные'!$A$1:$F$1,0))","v":"MARS"},{"$f":"INDEX('Исходные данные'!$A$2:$F$586,ROW(E89),MATCH('Как надо'!F$1,'Исходные данные'!$A$1:$F$1,0))","v":0}]
[null,{"$f":"INDEX('Исходные данные'!$A$2:$F$586,ROW(A90),MATCH('Как надо'!B$1,'Исходные данные'!$A$1:$F$1,0))","v":"КТК"},{"$f":"INDEX('Исходные данные'!$A$2:$F$586,ROW(B90),MATCH('Как надо'!C$1,'Исходные данные'!$A$1:$F$1,0))","v":"2013-01-01"},{"$f":"INDEX('Исходные данные'!$A$2:$F$586,ROW(C90),MATCH('Как надо'!D$1,'Исходные данные'!$A$1:$F$1,0))","v":"Ролик"},{"$f":"INDEX('Исходные данные'!$A$2:$F$586,ROW(D90),MATCH('Как надо'!E$1,'Исходные данные'!$A$1:$F$1,0))","v":"NESTLE"},{"$f":"INDEX('Исходные данные'!$A$2:$F$586,ROW(E90),MATCH('Как надо'!F$1,'Исходные данные'!$A$1:$F$1,0))","v":5}]
[null,{"$f":"INDEX('Исходные данные'!$A$2:$F$586,ROW(A91),MATCH('Как надо'!B$1,'Исходные данные'!$A$1:$F$1,0))","v":"КТК"},{"$f":"INDEX('Исходные данные'!$A$2:$F$586,ROW(B91),MATCH('Как надо'!C$1,'Исходные данные'!$A$1:$F$1,0))","v":"2013-01-01"},{"$f":"INDEX('Исходные данные'!$A$2:$F$586,ROW(C91),MATCH('Как надо'!D$1,'Исходные данные'!$A$1:$F$1,0))","v":"Ролик"},{"$f":"INDEX('Исходные данные'!$A$2:$F$586,ROW(D91),MATCH('Как надо'!E$1,'Исходные данные'!$A$1:$F$1,0))","v":"MARS"},{"$f":"INDEX('Исходные данные'!$A$2:$F$586,ROW(E91),MATCH('Как надо'!F$1,'Исходные данные'!$A$1:$F$1,0))","v":7.8}]
[null,{"$f":"INDEX('Исходные данные'!$A$2:$F$586,ROW(A92),MATCH('Как надо'!B$1,'Исходные данные'!$A$1:$F$1,0))","v":"КТК"},{"$f":"INDEX('Исходные данные'!$A$2:$F$586,ROW(B92),MATCH('Как надо'!C$1,'Исходные данные'!$A$1:$F$1,0))","v":"2013-01-01"},{"$f":"INDEX('Исходные данные'!$A$2:$F$586,ROW(C92),MATCH('Как надо'!D$1,'Исходные данные'!$A$1:$F$1,0))","v":"Ролик"},{"$f":"INDEX('Исходные данные'!$A$2:$F$586,ROW(D92),MATCH('Как надо'!E$1,'Исходные данные'!$A$1:$F$1,0))","v":"MARS"},{"$f":"INDEX('Исходные данные'!$A$2:$F$586,ROW(E92),MATCH('Как надо'!F$1,'Исходные данные'!$A$1:$F$1,0))","v":11.9}]
[null,{"$f":"INDEX('Исходные данные'!$A$2:$F$586,ROW(A93),MATCH('Как надо'!B$1,'Исходные данные'!$A$1:$F$1,0))","v":"КТК"},{"$f":"INDEX('Исходные данные'!$A$2:$F$586,ROW(B93),MATCH('Как надо'!C$1,'Исходные данные'!$A$1:$F$1,0))","v":"2013-01-01"},{"$f":"INDEX('Исходные данные'!$A$2:$F$586,ROW(C93),MATCH('Как надо'!D$1,'Исходные данные'!$A$1:$F$1,0))","v":"Ролик"},{"$f":"INDEX('Исходные данные'!$A$2:$F$586,ROW(D93),MATCH('Как надо'!E$1,'Исходные данные'!$A$1:$F$1,0))","v":"NESTLE"},{"$f":"INDEX('Исходные данные'!$A$2:$F$586,ROW(E93),MATCH('Как надо'!F$1,'Исходные данные'!$A$1:$F$1,0))","v":5.8}]
[null,{"$f":"INDEX('Исходные данные'!$A$2:$F$586,ROW(A94),MATCH('Как надо'!B$1,'Исходные данные'!$A$1:$F$1,0))","v":"ПЕРВЫЙ КАНАЛ ЕВРАЗИЯ/ЕВРАЗИЯ/ОРТ-КАЗ"},{"$f":"INDEX('Исходные данные'!$A$2:$F$586,ROW(B94),MATCH('Как надо'!C$1,'Исходные данные'!$A$1:$F$1,0))","v":"2013-01-01"},{"$f":"INDEX('Исходные данные'!$A$2:$F$586,ROW(C94),MATCH('Как надо'!D$1,'Исходные данные'!$A$1:$F$1,0))","v":"Ролик"},{"$f":"INDEX('Исходные данные'!$A$2:$F$586,ROW(D94),MATCH('Как надо'!E$1,'Исходные данные'!$A$1:$F$1,0))","v":"КРАФТ ФУДС КАЗАХСТАН"},{"$f":"INDEX('Исходные данные'!$A$2:$F$586,ROW(E94),MATCH('Как надо'!F$1,'Исходные данные'!$A$1:$F$1,0))","v":3.8}]
[null,{"$f":"INDEX('Исходные данные'!$A$2:$F$586,ROW(A95),MATCH('Как надо'!B$1,'Исходные данные'!$A$1:$F$1,0))","v":"ПЕРВЫЙ КАНАЛ ЕВРАЗИЯ/ЕВРАЗИЯ/ОРТ-КАЗ"},{"$f":"INDEX('Исходные данные'!$A$2:$F$586,ROW(B95),MATCH('Как надо'!C$1,'Исходные данные'!$A$1:$F$1,0))","v":"2013-01-01"},{"$f":"INDEX('Исходные данные'!$A$2:$F$586,ROW(C95),MATCH('Как надо'!D$1,'Исходные данные'!$A$1:$F$1,0))","v":"Ролик"},{"$f":"INDEX('Исходные данные'!$A$2:$F$586,ROW(D95),MATCH('Как надо'!E$1,'Исходные данные'!$A$1:$F$1,0))","v":"NESTLE"},{"$f":"INDEX('Исходные данные'!$A$2:$F$586,ROW(E95),MATCH('Как надо'!F$1,'Исходные данные'!$A$1:$F$1,0))","v":5}]
[null,{"$f":"INDEX('Исходные данные'!$A$2:$F$586,ROW(A96),MATCH('Как надо'!B$1,'Исходные данные'!$A$1:$F$1,0))","v":"ПЕРВЫЙ КАНАЛ ЕВРАЗИЯ/ЕВРАЗИЯ/ОРТ-КАЗ"},{"$f":"INDEX('Исходные данные'!$A$2:$F$586,ROW(B96),MATCH('Как надо'!C$1,'Исходные данные'!$A$1:$F$1,0))","v":"2013-01-01"},{"$f":"INDEX('Исходные данные'!$A$2:$F$586,ROW(C96),MATCH('Как надо'!D$1,'Исходные данные'!$A$1:$F$1,0))","v":"Ролик"},{"$f":"INDEX('Исходные данные'!$A$2:$F$586,ROW(D96),MATCH('Как надо'!E$1,'Исходные данные'!$A$1:$F$1,0))","v":"NESTLE"},{"$f":"INDEX('Исходные данные'!$A$2:$F$586,ROW(E96),MATCH('Как надо'!F$1,'Исходные данные'!$A$1:$F$1,0))","v":7.2}]
[null,{"$f":"INDEX('Исходные данные'!$A$2:$F$586,ROW(A97),MATCH('Как надо'!B$1,'Исходные данные'!$A$1:$F$1,0))","v":"ПЕРВЫЙ КАНАЛ ЕВРАЗИЯ/ЕВРАЗИЯ/ОРТ-КАЗ"},{"$f":"INDEX('Исходные данные'!$A$2:$F$586,ROW(B97),MATCH('Как надо'!C$1,'Исходные данные'!$A$1:$F$1,0))","v":"2013-01-01"},{"$f":"INDEX('Исходные данные'!$A$2:$F$586,ROW(C97),MATCH('Как надо'!D$1,'Исходные данные'!$A$1:$F$1,0))","v":"Ролик"},{"$f":"INDEX('Исходные данные'!$A$2:$F$586,ROW(D97),MATCH('Как надо'!E$1,'Исходные данные'!$A$1:$F$1,0))","v":"MARS"},{"$f":"INDEX('Исходные данные'!$A$2:$F$586,ROW(E97),MATCH('Как надо'!F$1,'Исходные данные'!$A$1:$F$1,0))","v":6.8}]
[null,{"$f":"INDEX('Исходные данные'!$A$2:$F$586,ROW(A98),MATCH('Как надо'!B$1,'Исходные данные'!$A$1:$F$1,0))","v":"ПЕРВЫЙ КАНАЛ ЕВРАЗИЯ/ЕВРАЗИЯ/ОРТ-КАЗ"},{"$f":"INDEX('Исходные данные'!$A$2:$F$586,ROW(B98),MATCH('Как надо'!C$1,'Исходные данные'!$A$1:$F$1,0))","v":"2013-01-01"},{"$f":"INDEX('Исходные данные'!$A$2:$F$586,ROW(C98),MATCH('Как надо'!D$1,'Исходные данные'!$A$1:$F$1,0))","v":"Ролик"},{"$f":"INDEX('Исходные данные'!$A$2:$F$586,ROW(D98),MATCH('Как надо'!E$1,'Исходные данные'!$A$1:$F$1,0))","v":"NESTLE"},{"$f":"INDEX('Исходные данные'!$A$2:$F$586,ROW(E98),MATCH('Как надо'!F$1,'Исходные данные'!$A$1:$F$1,0))","v":1.8}]
[null,{"$f":"INDEX('Исходные данные'!$A$2:$F$586,ROW(A99),MATCH('Как надо'!B$1,'Исходные данные'!$A$1:$F$1,0))","v":"ПЕРВЫЙ КАНАЛ ЕВРАЗИЯ/ЕВРАЗИЯ/ОРТ-КАЗ"},{"$f":"INDEX('Исходные данные'!$A$2:$F$586,ROW(B99),MATCH('Как надо'!C$1,'Исходные данные'!$A$1:$F$1,0))","v":"2013-01-01"},{"$f":"INDEX('Исходные данные'!$A$2:$F$586,ROW(C99),MATCH('Как надо'!D$1,'Исходные данные'!$A$1:$F$1,0))","v":"Ролик"},{"$f":"INDEX('Исходные данные'!$A$2:$F$586,ROW(D99),MATCH('Как надо'!E$1,'Исходные данные'!$A$1:$F$1,0))","v":"MARS"},{"$f":"INDEX('Исходные данные'!$A$2:$F$586,ROW(E99),MATCH('Как надо'!F$1,'Исходные данные'!$A$1:$F$1,0))","v":6.8}]
[null,{"$f":"INDEX('Исходные данные'!$A$2:$F$586,ROW(A100),MATCH('Как надо'!B$1,'Исходные данные'!$A$1:$F$1,0))","v":"ПЕРВЫЙ КАНАЛ ЕВРАЗИЯ/ЕВРАЗИЯ/ОРТ-КАЗ"},{"$f":"INDEX('Исходные данные'!$A$2:$F$586,ROW(B100),MATCH('Как надо'!C$1,'Исходные данные'!$A$1:$F$1,0))","v":"2013-01-01"},{"$f":"INDEX('Исходные данные'!$A$2:$F$586,ROW(C100),MATCH('Как надо'!D$1,'Исходные данные'!$A$1:$F$1,0))","v":"Ролик"},{"$f":"INDEX('Исходные данные'!$A$2:$F$586,ROW(D100),MATCH('Как надо'!E$1,'Исходные данные'!$A$1:$F$1,0))","v":"MARS"},{"$f":"INDEX('Исходные данные'!$A$2:$F$586,ROW(E100),MATCH('Как надо'!F$1,'Исходные данные'!$A$1:$F$1,0))","v":4}]
[null,{"$f":"INDEX('Исходные данные'!$A$2:$F$586,ROW(A101),MATCH('Как надо'!B$1,'Исходные данные'!$A$1:$F$1,0))","v":"ПЕРВЫЙ КАНАЛ ЕВРАЗИЯ/ЕВРАЗИЯ/ОРТ-КАЗ"},{"$f":"INDEX('Исходные данные'!$A$2:$F$586,ROW(B101),MATCH('Как надо'!C$1,'Исходные данные'!$A$1:$F$1,0))","v":"2013-01-01"},{"$f":"INDEX('Исходные данные'!$A$2:$F$586,ROW(C101),MATCH('Как надо'!D$1,'Исходные данные'!$A$1:$F$1,0))","v":"Ролик"},{"$f":"INDEX('Исходные данные'!$A$2:$F$586,ROW(D101),MATCH('Как надо'!E$1,'Исходные данные'!$A$1:$F$1,0))","v":"MARS"},{"$f":"INDEX('Исходные данные'!$A$2:$F$586,ROW(E101),MATCH('Как надо'!F$1,'Исходные данные'!$A$1:$F$1,0))","v":0}]
[null,{"$f":"INDEX('Исходные данные'!$A$2:$F$586,ROW(A102),MATCH('Как надо'!B$1,'Исходные данные'!$A$1:$F$1,0))","v":"ПЕРВЫЙ КАНАЛ ЕВРАЗИЯ/ЕВРАЗИЯ/ОРТ-КАЗ"},{"$f":"INDEX('Исходные данные'!$A$2:$F$586,ROW(B102),MATCH('Как надо'!C$1,'Исходные данные'!$A$1:$F$1,0))","v":"2013-01-01"},{"$f":"INDEX('Исходные данные'!$A$2:$F$586,ROW(C102),MATCH('Как надо'!D$1,'Исходные данные'!$A$1:$F$1,0))","v":"Ролик"},{"$f":"INDEX('Исходные данные'!$A$2:$F$586,ROW(D102),MATCH('Как надо'!E$1,'Исходные данные'!$A$1:$F$1,0))","v":"MARS"},{"$f":"INDEX('Исходные данные'!$A$2:$F$586,ROW(E102),MATCH('Как надо'!F$1,'Исходные данные'!$A$1:$F$1,0))","v":0}]
[null,{"$f":"INDEX('Исходные данные'!$A$2:$F$586,ROW(A103),MATCH('Как надо'!B$1,'Исходные данные'!$A$1:$F$1,0))","v":"ПЕРВЫЙ КАНАЛ ЕВРАЗИЯ/ЕВРАЗИЯ/ОРТ-КАЗ"},{"$f":"INDEX('Исходные данные'!$A$2:$F$586,ROW(B103),MATCH('Как надо'!C$1,'Исходные данные'!$A$1:$F$1,0))","v":"2013-01-01"},{"$f":"INDEX('Исходные данные'!$A$2:$F$586,ROW(C103),MATCH('Как надо'!D$1,'Исходные данные'!$A$1:$F$1,0))","v":"Ролик"},{"$f":"INDEX('Исходные данные'!$A$2:$F$586,ROW(D103),MATCH('Как надо'!E$1,'Исходные данные'!$A$1:$F$1,0))","v":"NESTLE"},{"$f":"INDEX('Исходные данные'!$A$2:$F$586,ROW(E103),MATCH('Как надо'!F$1,'Исходные данные'!$A$1:$F$1,0))","v":3.1}]
[null,{"$f":"INDEX('Исходные данные'!$A$2:$F$586,ROW(A104),MATCH('Как надо'!B$1,'Исходные данные'!$A$1:$F$1,0))","v":"ПЕРВЫЙ КАНАЛ ЕВРАЗИЯ/ЕВРАЗИЯ/ОРТ-КАЗ"},{"$f":"INDEX('Исходные данные'!$A$2:$F$586,ROW(B104),MATCH('Как надо'!C$1,'Исходные данные'!$A$1:$F$1,0))","v":"2013-01-01"},{"$f":"INDEX('Исходные данные'!$A$2:$F$586,ROW(C104),MATCH('Как надо'!D$1,'Исходные данные'!$A$1:$F$1,0))","v":"Ролик"},{"$f":"INDEX('Исходные данные'!$A$2:$F$586,ROW(D104),MATCH('Как надо'!E$1,'Исходные данные'!$A$1:$F$1,0))","v":"MARS"},{"$f":"INDEX('Исходные данные'!$A$2:$F$586,ROW(E104),MATCH('Как надо'!F$1,'Исходные данные'!$A$1:$F$1,0))","v":0.9}]
[null,{"$f":"INDEX('Исходные данные'!$A$2:$F$586,ROW(A105),MATCH('Как надо'!B$1,'Исходные данные'!$A$1:$F$1,0))","v":"ПЕРВЫЙ КАНАЛ ЕВРАЗИЯ/ЕВРАЗИЯ/ОРТ-КАЗ"},{"$f":"INDEX('Исходные данные'!$A$2:$F$586,ROW(B105),MATCH('Как надо'!C$1,'Исходные данные'!$A$1:$F$1,0))","v":"2013-01-01"},{"$f":"INDEX('Исходные данные'!$A$2:$F$586,ROW(C105),MATCH('Как надо'!D$1,'Исходные данные'!$A$1:$F$1,0))","v":"Ролик"},{"$f":"INDEX('Исходные данные'!$A$2:$F$586,ROW(D105),MATCH('Как надо'!E$1,'Исходные данные'!$A$1:$F$1,0))","v":"MARS"},{"$f":"INDEX('Исходные данные'!$A$2:$F$586,ROW(E105),MATCH('Как надо'!F$1,'Исходные данные'!$A$1:$F$1,0))","v":2.7}]
[null,{"$f":"INDEX('Исходные данные'!$A$2:$F$586,ROW(A106),MATCH('Как надо'!B$1,'Исходные данные'!$A$1:$F$1,0))","v":"ПЕРВЫЙ КАНАЛ ЕВРАЗИЯ/ЕВРАЗИЯ/ОРТ-КАЗ"},{"$f":"INDEX('Исходные данные'!$A$2:$F$586,ROW(B106),MATCH('Как надо'!C$1,'Исходные данные'!$A$1:$F$1,0))","v":"2013-01-01"},{"$f":"INDEX('Исходные данные'!$A$2:$F$586,ROW(C106),MATCH('Как надо'!D$1,'Исходные данные'!$A$1:$F$1,0))","v":"Ролик"},{"$f":"INDEX('Исходные данные'!$A$2:$F$586,ROW(D106),MATCH('Как надо'!E$1,'Исходные данные'!$A$1:$F$1,0))","v":"NESTLE"},{"$f":"INDEX('Исходные данные'!$A$2:$F$586,ROW(E106),MATCH('Как надо'!F$1,'Исходные данные'!$A$1:$F$1,0))","v":3.4}]
[null,{"$f":"INDEX('Исходные данные'!$A$2:$F$586,ROW(A107),MATCH('Как надо'!B$1,'Исходные данные'!$A$1:$F$1,0))","v":"ПЕРВЫЙ КАНАЛ ЕВРАЗИЯ/ЕВРАЗИЯ/ОРТ-КАЗ"},{"$f":"INDEX('Исходные данные'!$A$2:$F$586,ROW(B107),MATCH('Как надо'!C$1,'Исходные данные'!$A$1:$F$1,0))","v":"2013-01-01"},{"$f":"INDEX('Исходные данные'!$A$2:$F$586,ROW(C107),MATCH('Как надо'!D$1,'Исходные данные'!$A$1:$F$1,0))","v":"Ролик"},{"$f":"INDEX('Исходные данные'!$A$2:$F$586,ROW(D107),MATCH('Как надо'!E$1,'Исходные данные'!$A$1:$F$1,0))","v":"MARS"},{"$f":"INDEX('Исходные данные'!$A$2:$F$586,ROW(E107),MATCH('Как надо'!F$1,'Исходные данные'!$A$1:$F$1,0))","v":6.1}]
[null,{"$f":"INDEX('Исходные данные'!$A$2:$F$586,ROW(A108),MATCH('Как надо'!B$1,'Исходные данные'!$A$1:$F$1,0))","v":"ПЕРВЫЙ КАНАЛ ЕВРАЗИЯ/ЕВРАЗИЯ/ОРТ-КАЗ"},{"$f":"INDEX('Исходные данные'!$A$2:$F$586,ROW(B108),MATCH('Как надо'!C$1,'Исходные данные'!$A$1:$F$1,0))","v":"2013-01-01"},{"$f":"INDEX('Исходные данные'!$A$2:$F$586,ROW(C108),MATCH('Как надо'!D$1,'Исходные данные'!$A$1:$F$1,0))","v":"Ролик"},{"$f":"INDEX('Исходные данные'!$A$2:$F$586,ROW(D108),MATCH('Как надо'!E$1,'Исходные данные'!$A$1:$F$1,0))","v":"MARS"},{"$f":"INDEX('Исходные данные'!$A$2:$F$586,ROW(E108),MATCH('Как надо'!F$1,'Исходные данные'!$A$1:$F$1,0))","v":1.3}]
[null,{"$f":"INDEX('Исходные данные'!$A$2:$F$586,ROW(A109),MATCH('Как надо'!B$1,'Исходные данные'!$A$1:$F$1,0))","v":"НТК"},{"$f":"INDEX('Исходные данные'!$A$2:$F$586,ROW(B109),MATCH('Как надо'!C$1,'Исходные данные'!$A$1:$F$1,0))","v":"2013-01-01"},{"$f":"INDEX('Исходные данные'!$A$2:$F$586,ROW(C109),MATCH('Как надо'!D$1,'Исходные данные'!$A$1:$F$1,0))","v":"Ролик"},{"$f":"INDEX('Исходные данные'!$A$2:$F$586,ROW(D109),MATCH('Как надо'!E$1,'Исходные данные'!$A$1:$F$1,0))","v":"КРАФТ ФУДС КАЗАХСТАН"},{"$f":"INDEX('Исходные данные'!$A$2:$F$586,ROW(E109),MATCH('Как надо'!F$1,'Исходные данные'!$A$1:$F$1,0))","v":2.5}]
[null,{"$f":"INDEX('Исходные данные'!$A$2:$F$586,ROW(A110),MATCH('Как надо'!B$1,'Исходные данные'!$A$1:$F$1,0))","v":"НТК"},{"$f":"INDEX('Исходные данные'!$A$2:$F$586,ROW(B110),MATCH('Как надо'!C$1,'Исходные данные'!$A$1:$F$1,0))","v":"2013-01-01"},{"$f":"INDEX('Исходные данные'!$A$2:$F$586,ROW(C110),MATCH('Как надо'!D$1,'Исходные данные'!$A$1:$F$1,0))","v":"Ролик"},{"$f":"INDEX('Исходные данные'!$A$2:$F$586,ROW(D110),MATCH('Как надо'!E$1,'Исходные данные'!$A$1:$F$1,0))","v":"NESTLE"},{"$f":"INDEX('Исходные данные'!$A$2:$F$586,ROW(E110),MATCH('Как надо'!F$1,'Исходные данные'!$A$1:$F$1,0))","v":0.4}]
[null,{"$f":"INDEX('Исходные данные'!$A$2:$F$586,ROW(A111),MATCH('Как надо'!B$1,'Исходные данные'!$A$1:$F$1,0))","v":"НТК"},{"$f":"INDEX('Исходные данные'!$A$2:$F$586,ROW(B111),MATCH('Как надо'!C$1,'Исходные данные'!$A$1:$F$1,0))","v":"2013-01-01"},{"$f":"INDEX('Исходные данные'!$A$2:$F$586,ROW(C111),MATCH('Как надо'!D$1,'Исходные данные'!$A$1:$F$1,0))","v":"Ролик"},{"$f":"INDEX('Исходные данные'!$A$2:$F$586,ROW(D111),MATCH('Как надо'!E$1,'Исходные данные'!$A$1:$F$1,0))","v":"MARS"},{"$f":"INDEX('Исходные данные'!$A$2:$F$586,ROW(E111),MATCH('Как надо'!F$1,'Исходные данные'!$A$1:$F$1,0))","v":5.2}]
[null,{"$f":"INDEX('Исходные данные'!$A$2:$F$586,ROW(A112),MATCH('Как надо'!B$1,'Исходные данные'!$A$1:$F$1,0))","v":"НТК"},{"$f":"INDEX('Исходные данные'!$A$2:$F$586,ROW(B112),MATCH('Как надо'!C$1,'Исходные данные'!$A$1:$F$1,0))","v":"2013-01-01"},{"$f":"INDEX('Исходные данные'!$A$2:$F$586,ROW(C112),MATCH('Как надо'!D$1,'Исходные данные'!$A$1:$F$1,0))","v":"Ролик"},{"$f":"INDEX('Исходные данные'!$A$2:$F$586,ROW(D112),MATCH('Как надо'!E$1,'Исходные данные'!$A$1:$F$1,0))","v":"MARS"},{"$f":"INDEX('Исходные данные'!$A$2:$F$586,ROW(E112),MATCH('Как надо'!F$1,'Исходные данные'!$A$1:$F$1,0))","v":5.2}]
[null,{"$f":"INDEX('Исходные данные'!$A$2:$F$586,ROW(A113),MATCH('Как надо'!B$1,'Исходные данные'!$A$1:$F$1,0))","v":"НТК"},{"$f":"INDEX('Исходные данные'!$A$2:$F$586,ROW(B113),MATCH('Как надо'!C$1,'Исходные данные'!$A$1:$F$1,0))","v":"2013-01-01"},{"$f":"INDEX('Исходные данные'!$A$2:$F$586,ROW(C113),MATCH('Как надо'!D$1,'Исходные данные'!$A$1:$F$1,0))","v":"Ролик"},{"$f":"INDEX('Исходные данные'!$A$2:$F$586,ROW(D113),MATCH('Как надо'!E$1,'Исходные данные'!$A$1:$F$1,0))","v":"NESTLE"},{"$f":"INDEX('Исходные данные'!$A$2:$F$586,ROW(E113),MATCH('Как надо'!F$1,'Исходные данные'!$A$1:$F$1,0))","v":3.4}]
[null,{"$f":"INDEX('Исходные данные'!$A$2:$F$586,ROW(A114),MATCH('Как надо'!B$1,'Исходные данные'!$A$1:$F$1,0))","v":"НТК"},{"$f":"INDEX('Исходные данные'!$A$2:$F$586,ROW(B114),MATCH('Как надо'!C$1,'Исходные данные'!$A$1:$F$1,0))","v":"2013-01-01"},{"$f":"INDEX('Исходные данные'!$A$2:$F$586,ROW(C114),MATCH('Как надо'!D$1,'Исходные данные'!$A$1:$F$1,0))","v":"Ролик"},{"$f":"INDEX('Исходные данные'!$A$2:$F$586,ROW(D114),MATCH('Как надо'!E$1,'Исходные данные'!$A$1:$F$1,0))","v":"MARS"},{"$f":"INDEX('Исходные данные'!$A$2:$F$586,ROW(E114),MATCH('Как надо'!F$1,'Исходные данные'!$A$1:$F$1,0))","v":0}]
[null,{"$f":"INDEX('Исходные данные'!$A$2:$F$586,ROW(A115),MATCH('Как надо'!B$1,'Исходные данные'!$A$1:$F$1,0))","v":"НТК"},{"$f":"INDEX('Исходные данные'!$A$2:$F$586,ROW(B115),MATCH('Как надо'!C$1,'Исходные данные'!$A$1:$F$1,0))","v":"2013-01-01"},{"$f":"INDEX('Исходные данные'!$A$2:$F$586,ROW(C115),MATCH('Как надо'!D$1,'Исходные данные'!$A$1:$F$1,0))","v":"Ролик"},{"$f":"INDEX('Исходные данные'!$A$2:$F$586,ROW(D115),MATCH('Как надо'!E$1,'Исходные данные'!$A$1:$F$1,0))","v":"NESTLE"},{"$f":"INDEX('Исходные данные'!$A$2:$F$586,ROW(E115),MATCH('Как надо'!F$1,'Исходные данные'!$A$1:$F$1,0))","v":0}]
[null,{"$f":"INDEX('Исходные данные'!$A$2:$F$586,ROW(A116),MATCH('Как надо'!B$1,'Исходные данные'!$A$1:$F$1,0))","v":"НТК"},{"$f":"INDEX('Исходные данные'!$A$2:$F$586,ROW(B116),MATCH('Как надо'!C$1,'Исходные данные'!$A$1:$F$1,0))","v":"2013-01-01"},{"$f":"INDEX('Исходные данные'!$A$2:$F$586,ROW(C116),MATCH('Как надо'!D$1,'Исходные данные'!$A$1:$F$1,0))","v":"Ролик"},{"$f":"INDEX('Исходные данные'!$A$2:$F$586,ROW(D116),MATCH('Как надо'!E$1,'Исходные данные'!$A$1:$F$1,0))","v":"КРАФТ ФУДС КАЗАХСТАН"},{"$f":"INDEX('Исходные данные'!$A$2:$F$586,ROW(E116),MATCH('Как надо'!F$1,'Исходные данные'!$A$1:$F$1,0))","v":0}]
[null,{"$f":"INDEX('Исходные данные'!$A$2:$F$586,ROW(A117),MATCH('Как надо'!B$1,'Исходные данные'!$A$1:$F$1,0))","v":"НТК"},{"$f":"INDEX('Исходные данные'!$A$2:$F$586,ROW(B117),MATCH('Как надо'!C$1,'Исходные данные'!$A$1:$F$1,0))","v":"2013-01-01"},{"$f":"INDEX('Исходные данные'!$A$2:$F$586,ROW(C117),MATCH('Как надо'!D$1,'Исходные данные'!$A$1:$F$1,0))","v":"Ролик"},{"$f":"INDEX('Исходные данные'!$A$2:$F$586,ROW(D117),MATCH('Как надо'!E$1,'Исходные данные'!$A$1:$F$1,0))","v":"MARS"},{"$f":"INDEX('Исходные данные'!$A$2:$F$586,ROW(E117),MATCH('Как надо'!F$1,'Исходные данные'!$A$1:$F$1,0))","v":0}]
[null,{"$f":"INDEX('Исходные данные'!$A$2:$F$586,ROW(A118),MATCH('Как надо'!B$1,'Исходные данные'!$A$1:$F$1,0))","v":"НТК"},{"$f":"INDEX('Исходные данные'!$A$2:$F$586,ROW(B118),MATCH('Как надо'!C$1,'Исходные данные'!$A$1:$F$1,0))","v":"2013-01-01"},{"$f":"INDEX('Исходные данные'!$A$2:$F$586,ROW(C118),MATCH('Как надо'!D$1,'Исходные данные'!$A$1:$F$1,0))","v":"Ролик"},{"$f":"INDEX('Исходные данные'!$A$2:$F$586,ROW(D118),MATCH('Как надо'!E$1,'Исходные данные'!$A$1:$F$1,0))","v":"NESTLE"},{"$f":"INDEX('Исходные данные'!$A$2:$F$586,ROW(E118),MATCH('Как надо'!F$1,'Исходные данные'!$A$1:$F$1,0))","v":0}]
[null,{"$f":"INDEX('Исходные данные'!$A$2:$F$586,ROW(A119),MATCH('Как надо'!B$1,'Исходные данные'!$A$1:$F$1,0))","v":"НТК"},{"$f":"INDEX('Исходные данные'!$A$2:$F$586,ROW(B119),MATCH('Как надо'!C$1,'Исходные данные'!$A$1:$F$1,0))","v":"2013-01-01"},{"$f":"INDEX('Исходные данные'!$A$2:$F$586,ROW(C119),MATCH('Как надо'!D$1,'Исходные данные'!$A$1:$F$1,0))","v":"Ролик"},{"$f":"INDEX('Исходные данные'!$A$2:$F$586,ROW(D119),MATCH('Как надо'!E$1,'Исходные данные'!$A$1:$F$1,0))","v":"MARS"},{"$f":"INDEX('Исходные данные'!$A$2:$F$586,ROW(E119),MATCH('Как надо'!F$1,'Исходные данные'!$A$1:$F$1,0))","v":0.5}]
[null,{"$f":"INDEX('Исходные данные'!$A$2:$F$586,ROW(A120),MATCH('Как надо'!B$1,'Исходные данные'!$A$1:$F$1,0))","v":"НТК"},{"$f":"INDEX('Исходные данные'!$A$2:$F$586,ROW(B120),MATCH('Как надо'!C$1,'Исходные данные'!$A$1:$F$1,0))","v":"2013-01-01"},{"$f":"INDEX('Исходные данные'!$A$2:$F$586,ROW(C120),MATCH('Как надо'!D$1,'Исходные данные'!$A$1:$F$1,0))","v":"Ролик"},{"$f":"INDEX('Исходные данные'!$A$2:$F$586,ROW(D120),MATCH('Как надо'!E$1,'Исходные данные'!$A$1:$F$1,0))","v":"MARS"},{"$f":"INDEX('Исходные данные'!$A$2:$F$586,ROW(E120),MATCH('Как надо'!F$1,'Исходные данные'!$A$1:$F$1,0))","v":3.9}]
[null,{"$f":"INDEX('Исходные данные'!$A$2:$F$586,ROW(A121),MATCH('Как надо'!B$1,'Исходные данные'!$A$1:$F$1,0))","v":"НТК"},{"$f":"INDEX('Исходные данные'!$A$2:$F$586,ROW(B121),MATCH('Как надо'!C$1,'Исходные данные'!$A$1:$F$1,0))","v":"2013-01-01"},{"$f":"INDEX('Исходные данные'!$A$2:$F$586,ROW(C121),MATCH('Как надо'!D$1,'Исходные данные'!$A$1:$F$1,0))","v":"Ролик"},{"$f":"INDEX('Исходные данные'!$A$2:$F$586,ROW(D121),MATCH('Как надо'!E$1,'Исходные данные'!$A$1:$F$1,0))","v":"MARS"},{"$f":"INDEX('Исходные данные'!$A$2:$F$586,ROW(E121),MATCH('Как надо'!F$1,'Исходные данные'!$A$1:$F$1,0))","v":5.0999999999999996}]
[null,{"$f":"INDEX('Исходные данные'!$A$2:$F$586,ROW(A122),MATCH('Как надо'!B$1,'Исходные данные'!$A$1:$F$1,0))","v":"НТК"},{"$f":"INDEX('Исходные данные'!$A$2:$F$586,ROW(B122),MATCH('Как надо'!C$1,'Исходные данные'!$A$1:$F$1,0))","v":"2013-01-01"},{"$f":"INDEX('Исходные данные'!$A$2:$F$586,ROW(C122),MATCH('Как надо'!D$1,'Исходные данные'!$A$1:$F$1,0))","v":"Ролик"},{"$f":"INDEX('Исходные данные'!$A$2:$F$586,ROW(D122),MATCH('Как надо'!E$1,'Исходные данные'!$A$1:$F$1,0))","v":"КРАФТ ФУДС КАЗАХСТАН"},{"$f":"INDEX('Исходные данные'!$A$2:$F$586,ROW(E122),MATCH('Как надо'!F$1,'Исходные данные'!$A$1:$F$1,0))","v":5.0999999999999996}]
[null,{"$f":"INDEX('Исходные данные'!$A$2:$F$586,ROW(A123),MATCH('Как надо'!B$1,'Исходные данные'!$A$1:$F$1,0))","v":"НТК"},{"$f":"INDEX('Исходные данные'!$A$2:$F$586,ROW(B123),MATCH('Как надо'!C$1,'Исходные данные'!$A$1:$F$1,0))","v":"2013-01-01"},{"$f":"INDEX('Исходные данные'!$A$2:$F$586,ROW(C123),MATCH('Как надо'!D$1,'Исходные данные'!$A$1:$F$1,0))","v":"Ролик"},{"$f":"INDEX('Исходные данные'!$A$2:$F$586,ROW(D123),MATCH('Как надо'!E$1,'Исходные данные'!$A$1:$F$1,0))","v":"MARS"},{"$f":"INDEX('Исходные данные'!$A$2:$F$586,ROW(E123),MATCH('Как надо'!F$1,'Исходные данные'!$A$1:$F$1,0))","v":1.6}]
[null,{"$f":"INDEX('Исходные данные'!$A$2:$F$586,ROW(A124),MATCH('Как надо'!B$1,'Исходные данные'!$A$1:$F$1,0))","v":"НТК"},{"$f":"INDEX('Исходные данные'!$A$2:$F$586,ROW(B124),MATCH('Как надо'!C$1,'Исходные данные'!$A$1:$F$1,0))","v":"2013-01-01"},{"$f":"INDEX('Исходные данные'!$A$2:$F$586,ROW(C124),MATCH('Как надо'!D$1,'Исходные данные'!$A$1:$F$1,0))","v":"Ролик"},{"$f":"INDEX('Исходные данные'!$A$2:$F$586,ROW(D124),MATCH('Как надо'!E$1,'Исходные данные'!$A$1:$F$1,0))","v":"MARS"},{"$f":"INDEX('Исходные данные'!$A$2:$F$586,ROW(E124),MATCH('Как надо'!F$1,'Исходные данные'!$A$1:$F$1,0))","v":1.6}]
[null,{"$f":"INDEX('Исходные данные'!$A$2:$F$586,ROW(A125),MATCH('Как надо'!B$1,'Исходные данные'!$A$1:$F$1,0))","v":"НТК"},{"$f":"INDEX('Исходные данные'!$A$2:$F$586,ROW(B125),MATCH('Как надо'!C$1,'Исходные данные'!$A$1:$F$1,0))","v":"2013-01-01"},{"$f":"INDEX('Исходные данные'!$A$2:$F$586,ROW(C125),MATCH('Как надо'!D$1,'Исходные данные'!$A$1:$F$1,0))","v":"Ролик"},{"$f":"INDEX('Исходные данные'!$A$2:$F$586,ROW(D125),MATCH('Как надо'!E$1,'Исходные данные'!$A$1:$F$1,0))","v":"NESTLE"},{"$f":"INDEX('Исходные данные'!$A$2:$F$586,ROW(E125),MATCH('Как надо'!F$1,'Исходные данные'!$A$1:$F$1,0))","v":5}]
[null,{"$f":"INDEX('Исходные данные'!$A$2:$F$586,ROW(A126),MATCH('Как надо'!B$1,'Исходные данные'!$A$1:$F$1,0))","v":"НТК"},{"$f":"INDEX('Исходные данные'!$A$2:$F$586,ROW(B126),MATCH('Как надо'!C$1,'Исходные данные'!$A$1:$F$1,0))","v":"2013-01-01"},{"$f":"INDEX('Исходные данные'!$A$2:$F$586,ROW(C126),MATCH('Как надо'!D$1,'Исходные данные'!$A$1:$F$1,0))","v":"Ролик"},{"$f":"INDEX('Исходные данные'!$A$2:$F$586,ROW(D126),MATCH('Как надо'!E$1,'Исходные данные'!$A$1:$F$1,0))","v":"NESTLE"},{"$f":"INDEX('Исходные данные'!$A$2:$F$586,ROW(E126),MATCH('Как надо'!F$1,'Исходные данные'!$A$1:$F$1,0))","v":2.9}]
[null,{"$f":"INDEX('Исходные данные'!$A$2:$F$586,ROW(A127),MATCH('Как надо'!B$1,'Исходные данные'!$A$1:$F$1,0))","v":"НТК"},{"$f":"INDEX('Исходные данные'!$A$2:$F$586,ROW(B127),MATCH('Как надо'!C$1,'Исходные данные'!$A$1:$F$1,0))","v":"2013-01-01"},{"$f":"INDEX('Исходные данные'!$A$2:$F$586,ROW(C127),MATCH('Как надо'!D$1,'Исходные данные'!$A$1:$F$1,0))","v":"Ролик"},{"$f":"INDEX('Исходные данные'!$A$2:$F$586,ROW(D127),MATCH('Как надо'!E$1,'Исходные данные'!$A$1:$F$1,0))","v":"MARS"},{"$f":"INDEX('Исходные данные'!$A$2:$F$586,ROW(E127),MATCH('Как надо'!F$1,'Исходные данные'!$A$1:$F$1,0))","v":0}]
[null,{"$f":"INDEX('Исходные данные'!$A$2:$F$586,ROW(A128),MATCH('Как надо'!B$1,'Исходные данные'!$A$1:$F$1,0))","v":"НТК"},{"$f":"INDEX('Исходные данные'!$A$2:$F$586,ROW(B128),MATCH('Как надо'!C$1,'Исходные данные'!$A$1:$F$1,0))","v":"2013-01-01"},{"$f":"INDEX('Исходные данные'!$A$2:$F$586,ROW(C128),MATCH('Как надо'!D$1,'Исходные данные'!$A$1:$F$1,0))","v":"Ролик"},{"$f":"INDEX('Исходные данные'!$A$2:$F$586,ROW(D128),MATCH('Как надо'!E$1,'Исходные данные'!$A$1:$F$1,0))","v":"КРАФТ ФУДС КАЗАХСТАН"},{"$f":"INDEX('Исходные данные'!$A$2:$F$586,ROW(E128),MATCH('Как надо'!F$1,'Исходные данные'!$A$1:$F$1,0))","v":0}]
[null,{"$f":"INDEX('Исходные данные'!$A$2:$F$586,ROW(A129),MATCH('Как надо'!B$1,'Исходные данные'!$A$1:$F$1,0))","v":"НТК"},{"$f":"INDEX('Исходные данные'!$A$2:$F$586,ROW(B129),MATCH('Как надо'!C$1,'Исходные данные'!$A$1:$F$1,0))","v":"2013-01-01"},{"$f":"INDEX('Исходные данные'!$A$2:$F$586,ROW(C129),MATCH('Как надо'!D$1,'Исходные данные'!$A$1:$F$1,0))","v":"Ролик"},{"$f":"INDEX('Исходные данные'!$A$2:$F$586,ROW(D129),MATCH('Как надо'!E$1,'Исходные данные'!$A$1:$F$1,0))","v":"MARS"},{"$f":"INDEX('Исходные данные'!$A$2:$F$586,ROW(E129),MATCH('Как надо'!F$1,'Исходные данные'!$A$1:$F$1,0))","v":0}]
[null,{"$f":"INDEX('Исходные данные'!$A$2:$F$586,ROW(A130),MATCH('Как надо'!B$1,'Исходные данные'!$A$1:$F$1,0))","v":"НТК"},{"$f":"INDEX('Исходные данные'!$A$2:$F$586,ROW(B130),MATCH('Как надо'!C$1,'Исходные данные'!$A$1:$F$1,0))","v":"2013-01-01"},{"$f":"INDEX('Исходные данные'!$A$2:$F$586,ROW(C130),MATCH('Как надо'!D$1,'Исходные данные'!$A$1:$F$1,0))","v":"Ролик"},{"$f":"INDEX('Исходные данные'!$A$2:$F$586,ROW(D130),MATCH('Как надо'!E$1,'Исходные данные'!$A$1:$F$1,0))","v":"MARS"},{"$f":"INDEX('Исходные данные'!$A$2:$F$586,ROW(E130),MATCH('Как надо'!F$1,'Исходные данные'!$A$1:$F$1,0))","v":0}]
[null,{"$f":"INDEX('Исходные данные'!$A$2:$F$586,ROW(A131),MATCH('Как надо'!B$1,'Исходные данные'!$A$1:$F$1,0))","v":"АСТАНА"},{"$f":"INDEX('Исходные данные'!$A$2:$F$586,ROW(B131),MATCH('Как надо'!C$1,'Исходные данные'!$A$1:$F$1,0))","v":"2013-01-01"},{"$f":"INDEX('Исходные данные'!$A$2:$F$586,ROW(C131),MATCH('Как надо'!D$1,'Исходные данные'!$A$1:$F$1,0))","v":"Ролик"},{"$f":"INDEX('Исходные данные'!$A$2:$F$586,ROW(D131),MATCH('Как надо'!E$1,'Исходные данные'!$A$1:$F$1,0))","v":"MARS"},{"$f":"INDEX('Исходные данные'!$A$2:$F$586,ROW(E131),MATCH('Как надо'!F$1,'Исходные данные'!$A$1:$F$1,0))","v":0}]
[null,{"$f":"INDEX('Исходные данные'!$A$2:$F$586,ROW(A132),MATCH('Как надо'!B$1,'Исходные данные'!$A$1:$F$1,0))","v":"АСТАНА"},{"$f":"INDEX('Исходные данные'!$A$2:$F$586,ROW(B132),MATCH('Как надо'!C$1,'Исходные данные'!$A$1:$F$1,0))","v":"2013-01-01"},{"$f":"INDEX('Исходные данные'!$A$2:$F$586,ROW(C132),MATCH('Как надо'!D$1,'Исходные данные'!$A$1:$F$1,0))","v":"Ролик"},{"$f":"INDEX('Исходные данные'!$A$2:$F$586,ROW(D132),MATCH('Как надо'!E$1,'Исходные данные'!$A$1:$F$1,0))","v":"MARS"},{"$f":"INDEX('Исходные данные'!$A$2:$F$586,ROW(E132),MATCH('Как надо'!F$1,'Исходные данные'!$A$1:$F$1,0))","v":0}]
[null,{"$f":"INDEX('Исходные данные'!$A$2:$F$586,ROW(A133),MATCH('Как надо'!B$1,'Исходные данные'!$A$1:$F$1,0))","v":"СЕДЬМОЙ КАНАЛ"},{"$f":"INDEX('Исходные данные'!$A$2:$F$586,ROW(B133),MATCH('Как надо'!C$1,'Исходные данные'!$A$1:$F$1,0))","v":"2013-01-01"},{"$f":"INDEX('Исходные данные'!$A$2:$F$586,ROW(C133),MATCH('Как надо'!D$1,'Исходные данные'!$A$1:$F$1,0))","v":"Ролик"},{"$f":"INDEX('Исходные данные'!$A$2:$F$586,ROW(D133),MATCH('Как надо'!E$1,'Исходные данные'!$A$1:$F$1,0))","v":"КРАФТ ФУДС КАЗАХСТАН"},{"$f":"INDEX('Исходные данные'!$A$2:$F$586,ROW(E133),MATCH('Как надо'!F$1,'Исходные данные'!$A$1:$F$1,0))","v":1.6}]
[null,{"$f":"INDEX('Исходные данные'!$A$2:$F$586,ROW(A134),MATCH('Как надо'!B$1,'Исходные данные'!$A$1:$F$1,0))","v":"СЕДЬМОЙ КАНАЛ"},{"$f":"INDEX('Исходные данные'!$A$2:$F$586,ROW(B134),MATCH('Как надо'!C$1,'Исходные данные'!$A$1:$F$1,0))","v":"2013-01-01"},{"$f":"INDEX('Исходные данные'!$A$2:$F$586,ROW(C134),MATCH('Как надо'!D$1,'Исходные данные'!$A$1:$F$1,0))","v":"Ролик"},{"$f":"INDEX('Исходные данные'!$A$2:$F$586,ROW(D134),MATCH('Как надо'!E$1,'Исходные данные'!$A$1:$F$1,0))","v":"NESTLE"},{"$f":"INDEX('Исходные данные'!$A$2:$F$586,ROW(E134),MATCH('Как надо'!F$1,'Исходные данные'!$A$1:$F$1,0))","v":7.7}]
[null,{"$f":"INDEX('Исходные данные'!$A$2:$F$586,ROW(A135),MATCH('Как надо'!B$1,'Исходные данные'!$A$1:$F$1,0))","v":"СЕДЬМОЙ КАНАЛ"},{"$f":"INDEX('Исходные данные'!$A$2:$F$586,ROW(B135),MATCH('Как надо'!C$1,'Исходные данные'!$A$1:$F$1,0))","v":"2013-01-01"},{"$f":"INDEX('Исходные данные'!$A$2:$F$586,ROW(C135),MATCH('Как надо'!D$1,'Исходные данные'!$A$1:$F$1,0))","v":"Ролик"},{"$f":"INDEX('Исходные данные'!$A$2:$F$586,ROW(D135),MATCH('Как надо'!E$1,'Исходные данные'!$A$1:$F$1,0))","v":"КРАФТ ФУДС КАЗАХСТАН"},{"$f":"INDEX('Исходные данные'!$A$2:$F$586,ROW(E135),MATCH('Как надо'!F$1,'Исходные данные'!$A$1:$F$1,0))","v":8.6}]
[null,{"$f":"INDEX('Исходные данные'!$A$2:$F$586,ROW(A136),MATCH('Как надо'!B$1,'Исходные данные'!$A$1:$F$1,0))","v":"СЕДЬМОЙ КАНАЛ"},{"$f":"INDEX('Исходные данные'!$A$2:$F$586,ROW(B136),MATCH('Как надо'!C$1,'Исходные данные'!$A$1:$F$1,0))","v":"2013-01-01"},{"$f":"INDEX('Исходные данные'!$A$2:$F$586,ROW(C136),MATCH('Как надо'!D$1,'Исходные данные'!$A$1:$F$1,0))","v":"Ролик"},{"$f":"INDEX('Исходные данные'!$A$2:$F$586,ROW(D136),MATCH('Как надо'!E$1,'Исходные данные'!$A$1:$F$1,0))","v":"MARS"},{"$f":"INDEX('Исходные данные'!$A$2:$F$586,ROW(E136),MATCH('Как надо'!F$1,'Исходные данные'!$A$1:$F$1,0))","v":2.4}]
[null,{"$f":"INDEX('Исходные данные'!$A$2:$F$586,ROW(A137),MATCH('Как надо'!B$1,'Исходные данные'!$A$1:$F$1,0))","v":"СЕДЬМОЙ КАНАЛ"},{"$f":"INDEX('Исходные данные'!$A$2:$F$586,ROW(B137),MATCH('Как надо'!C$1,'Исходные данные'!$A$1:$F$1,0))","v":"2013-01-01"},{"$f":"INDEX('Исходные данные'!$A$2:$F$586,ROW(C137),MATCH('Как надо'!D$1,'Исходные данные'!$A$1:$F$1,0))","v":"Ролик"},{"$f":"INDEX('Исходные данные'!$A$2:$F$586,ROW(D137),MATCH('Как надо'!E$1,'Исходные данные'!$A$1:$F$1,0))","v":"MARS"},{"$f":"INDEX('Исходные данные'!$A$2:$F$586,ROW(E137),MATCH('Как надо'!F$1,'Исходные данные'!$A$1:$F$1,0))","v":6.2}]
[null,{"$f":"INDEX('Исходные данные'!$A$2:$F$586,ROW(A138),MATCH('Как надо'!B$1,'Исходные данные'!$A$1:$F$1,0))","v":"СЕДЬМОЙ КАНАЛ"},{"$f":"INDEX('Исходные данные'!$A$2:$F$586,ROW(B138),MATCH('Как надо'!C$1,'Исходные данные'!$A$1:$F$1,0))","v":"2013-01-01"},{"$f":"INDEX('Исходные данные'!$A$2:$F$586,ROW(C138),MATCH('Как надо'!D$1,'Исходные данные'!$A$1:$F$1,0))","v":"Ролик"},{"$f":"INDEX('Исходные данные'!$A$2:$F$586,ROW(D138),MATCH('Как надо'!E$1,'Исходные данные'!$A$1:$F$1,0))","v":"NESTLE"},{"$f":"INDEX('Исходные данные'!$A$2:$F$586,ROW(E138),MATCH('Как надо'!F$1,'Исходные данные'!$A$1:$F$1,0))","v":1.8}]
[null,{"$f":"INDEX('Исходные данные'!$A$2:$F$586,ROW(A139),MATCH('Как надо'!B$1,'Исходные данные'!$A$1:$F$1,0))","v":"СЕДЬМОЙ КАНАЛ"},{"$f":"INDEX('Исходные данные'!$A$2:$F$586,ROW(B139),MATCH('Как надо'!C$1,'Исходные данные'!$A$1:$F$1,0))","v":"2013-01-01"},{"$f":"INDEX('Исходные данные'!$A$2:$F$586,ROW(C139),MATCH('Как надо'!D$1,'Исходные данные'!$A$1:$F$1,0))","v":"Ролик"},{"$f":"INDEX('Исходные данные'!$A$2:$F$586,ROW(D139),MATCH('Как надо'!E$1,'Исходные данные'!$A$1:$F$1,0))","v":"КРАФТ ФУДС КАЗАХСТАН"},{"$f":"INDEX('Исходные данные'!$A$2:$F$586,ROW(E139),MATCH('Как надо'!F$1,'Исходные данные'!$A$1:$F$1,0))","v":3.1}]
[null,{"$f":"INDEX('Исходные данные'!$A$2:$F$586,ROW(A140),MATCH('Как надо'!B$1,'Исходные данные'!$A$1:$F$1,0))","v":"КАЗАХСТАН"},{"$f":"INDEX('Исходные данные'!$A$2:$F$586,ROW(B140),MATCH('Как надо'!C$1,'Исходные данные'!$A$1:$F$1,0))","v":"2013-01-02"},{"$f":"INDEX('Исходные данные'!$A$2:$F$586,ROW(C140),MATCH('Как надо'!D$1,'Исходные данные'!$A$1:$F$1,0))","v":"Ролик"},{"$f":"INDEX('Исходные данные'!$A$2:$F$586,ROW(D140),MATCH('Как надо'!E$1,'Исходные данные'!$A$1:$F$1,0))","v":"КРАФТ ФУДС КАЗАХСТАН"},{"$f":"INDEX('Исходные данные'!$A$2:$F$586,ROW(E140),MATCH('Как надо'!F$1,'Исходные данные'!$A$1:$F$1,0))","v":2.9}]
[null,{"$f":"INDEX('Исходные данные'!$A$2:$F$586,ROW(A141),MATCH('Как надо'!B$1,'Исходные данные'!$A$1:$F$1,0))","v":"КАЗАХСТАН"},{"$f":"INDEX('Исходные данные'!$A$2:$F$586,ROW(B141),MATCH('Как надо'!C$1,'Исходные данные'!$A$1:$F$1,0))","v":"2013-01-02"},{"$f":"INDEX('Исходные данные'!$A$2:$F$586,ROW(C141),MATCH('Как надо'!D$1,'Исходные данные'!$A$1:$F$1,0))","v":"Ролик"},{"$f":"INDEX('Исходные данные'!$A$2:$F$586,ROW(D141),MATCH('Как надо'!E$1,'Исходные данные'!$A$1:$F$1,0))","v":"КРАФТ ФУДС КАЗАХСТАН"},{"$f":"INDEX('Исходные данные'!$A$2:$F$586,ROW(E141),MATCH('Как надо'!F$1,'Исходные данные'!$A$1:$F$1,0))","v":0}]
[null,{"$f":"INDEX('Исходные данные'!$A$2:$F$586,ROW(A142),MATCH('Как надо'!B$1,'Исходные данные'!$A$1:$F$1,0))","v":"КАЗАХСТАН"},{"$f":"INDEX('Исходные данные'!$A$2:$F$586,ROW(B142),MATCH('Как надо'!C$1,'Исходные данные'!$A$1:$F$1,0))","v":"2013-01-02"},{"$f":"INDEX('Исходные данные'!$A$2:$F$586,ROW(C142),MATCH('Как надо'!D$1,'Исходные данные'!$A$1:$F$1,0))","v":"Ролик"},{"$f":"INDEX('Исходные данные'!$A$2:$F$586,ROW(D142),MATCH('Как надо'!E$1,'Исходные данные'!$A$1:$F$1,0))","v":"КРАФТ ФУДС КАЗАХСТАН"},{"$f":"INDEX('Исходные данные'!$A$2:$F$586,ROW(E142),MATCH('Как надо'!F$1,'Исходные данные'!$A$1:$F$1,0))","v":1.7}]
[null,{"$f":"INDEX('Исходные данные'!$A$2:$F$586,ROW(A143),MATCH('Как надо'!B$1,'Исходные данные'!$A$1:$F$1,0))","v":"КАЗАХСТАН"},{"$f":"INDEX('Исходные данные'!$A$2:$F$586,ROW(B143),MATCH('Как надо'!C$1,'Исходные данные'!$A$1:$F$1,0))","v":"2013-01-02"},{"$f":"INDEX('Исходные данные'!$A$2:$F$586,ROW(C143),MATCH('Как надо'!D$1,'Исходные данные'!$A$1:$F$1,0))","v":"Ролик"},{"$f":"INDEX('Исходные данные'!$A$2:$F$586,ROW(D143),MATCH('Как надо'!E$1,'Исходные данные'!$A$1:$F$1,0))","v":"КРАФТ ФУДС КАЗАХСТАН"},{"$f":"INDEX('Исходные данные'!$A$2:$F$586,ROW(E143),MATCH('Как надо'!F$1,'Исходные данные'!$A$1:$F$1,0))","v":0}]
[null,{"$f":"INDEX('Исходные данные'!$A$2:$F$586,ROW(A144),MATCH('Как надо'!B$1,'Исходные данные'!$A$1:$F$1,0))","v":"31 КАНАЛ"},{"$f":"INDEX('Исходные данные'!$A$2:$F$586,ROW(B144),MATCH('Как надо'!C$1,'Исходные данные'!$A$1:$F$1,0))","v":"2013-01-02"},{"$f":"INDEX('Исходные данные'!$A$2:$F$586,ROW(C144),MATCH('Как надо'!D$1,'Исходные данные'!$A$1:$F$1,0))","v":"Ролик"},{"$f":"INDEX('Исходные данные'!$A$2:$F$586,ROW(D144),MATCH('Как надо'!E$1,'Исходные данные'!$A$1:$F$1,0))","v":"КРАФТ ФУДС КАЗАХСТАН"},{"$f":"INDEX('Исходные данные'!$A$2:$F$586,ROW(E144),MATCH('Как надо'!F$1,'Исходные данные'!$A$1:$F$1,0))","v":2}]
[null,{"$f":"INDEX('Исходные данные'!$A$2:$F$586,ROW(A145),MATCH('Как надо'!B$1,'Исходные данные'!$A$1:$F$1,0))","v":"31 КАНАЛ"},{"$f":"INDEX('Исходные данные'!$A$2:$F$586,ROW(B145),MATCH('Как надо'!C$1,'Исходные данные'!$A$1:$F$1,0))","v":"2013-01-02"},{"$f":"INDEX('Исходные данные'!$A$2:$F$586,ROW(C145),MATCH('Как надо'!D$1,'Исходные данные'!$A$1:$F$1,0))","v":"Ролик"},{"$f":"INDEX('Исходные данные'!$A$2:$F$586,ROW(D145),MATCH('Как надо'!E$1,'Исходные данные'!$A$1:$F$1,0))","v":"NESTLE"},{"$f":"INDEX('Исходные данные'!$A$2:$F$586,ROW(E145),MATCH('Как надо'!F$1,'Исходные данные'!$A$1:$F$1,0))","v":9.1999999999999993}]
[null,{"$f":"INDEX('Исходные данные'!$A$2:$F$586,ROW(A146),MATCH('Как надо'!B$1,'Исходные данные'!$A$1:$F$1,0))","v":"31 КАНАЛ"},{"$f":"INDEX('Исходные данные'!$A$2:$F$586,ROW(B146),MATCH('Как надо'!C$1,'Исходные данные'!$A$1:$F$1,0))","v":"2013-01-02"},{"$f":"INDEX('Исходные данные'!$A$2:$F$586,ROW(C146),MATCH('Как надо'!D$1,'Исходные данные'!$A$1:$F$1,0))","v":"Ролик"},{"$f":"INDEX('Исходные данные'!$A$2:$F$586,ROW(D146),MATCH('Как надо'!E$1,'Исходные данные'!$A$1:$F$1,0))","v":"NESTLE"},{"$f":"INDEX('Исходные данные'!$A$2:$F$586,ROW(E146),MATCH('Как надо'!F$1,'Исходные данные'!$A$1:$F$1,0))","v":4.5999999999999996}]
[null,{"$f":"INDEX('Исходные данные'!$A$2:$F$586,ROW(A147),MATCH('Как надо'!B$1,'Исходные данные'!$A$1:$F$1,0))","v":"31 КАНАЛ"},{"$f":"INDEX('Исходные данные'!$A$2:$F$586,ROW(B147),MATCH('Как надо'!C$1,'Исходные данные'!$A$1:$F$1,0))","v":"2013-01-02"},{"$f":"INDEX('Исходные данные'!$A$2:$F$586,ROW(C147),MATCH('Как надо'!D$1,'Исходные данные'!$A$1:$F$1,0))","v":"Ролик"},{"$f":"INDEX('Исходные данные'!$A$2:$F$586,ROW(D147),MATCH('Как надо'!E$1,'Исходные данные'!$A$1:$F$1,0))","v":"NESTLE"},{"$f":"INDEX('Исходные данные'!$A$2:$F$586,ROW(E147),MATCH('Как надо'!F$1,'Исходные данные'!$A$1:$F$1,0))","v":0}]
[null,{"$f":"INDEX('Исходные данные'!$A$2:$F$586,ROW(A148),MATCH('Как надо'!B$1,'Исходные данные'!$A$1:$F$1,0))","v":"31 КАНАЛ"},{"$f":"INDEX('Исходные данные'!$A$2:$F$586,ROW(B148),MATCH('Как надо'!C$1,'Исходные данные'!$A$1:$F$1,0))","v":"2013-01-02"},{"$f":"INDEX('Исходные данные'!$A$2:$F$586,ROW(C148),MATCH('Как надо'!D$1,'Исходные данные'!$A$1:$F$1,0))","v":"Ролик"},{"$f":"INDEX('Исходные данные'!$A$2:$F$586,ROW(D148),MATCH('Как надо'!E$1,'Исходные данные'!$A$1:$F$1,0))","v":"NESTLE"},{"$f":"INDEX('Исходные данные'!$A$2:$F$586,ROW(E148),MATCH('Как надо'!F$1,'Исходные данные'!$A$1:$F$1,0))","v":7.7}]
[null,{"$f":"INDEX('Исходные данные'!$A$2:$F$586,ROW(A149),MATCH('Как надо'!B$1,'Исходные данные'!$A$1:$F$1,0))","v":"31 КАНАЛ"},{"$f":"INDEX('Исходные данные'!$A$2:$F$586,ROW(B149),MATCH('Как надо'!C$1,'Исходные данные'!$A$1:$F$1,0))","v":"2013-01-02"},{"$f":"INDEX('Исходные данные'!$A$2:$F$586,ROW(C149),MATCH('Как надо'!D$1,'Исходные данные'!$A$1:$F$1,0))","v":"Ролик"},{"$f":"INDEX('Исходные данные'!$A$2:$F$586,ROW(D149),MATCH('Как надо'!E$1,'Исходные данные'!$A$1:$F$1,0))","v":"MARS"},{"$f":"INDEX('Исходные данные'!$A$2:$F$586,ROW(E149),MATCH('Как надо'!F$1,'Исходные данные'!$A$1:$F$1,0))","v":10.1}]
[null,{"$f":"INDEX('Исходные данные'!$A$2:$F$586,ROW(A150),MATCH('Как надо'!B$1,'Исходные данные'!$A$1:$F$1,0))","v":"31 КАНАЛ"},{"$f":"INDEX('Исходные данные'!$A$2:$F$586,ROW(B150),MATCH('Как надо'!C$1,'Исходные данные'!$A$1:$F$1,0))","v":"2013-01-02"},{"$f":"INDEX('Исходные данные'!$A$2:$F$586,ROW(C150),MATCH('Как надо'!D$1,'Исходные данные'!$A$1:$F$1,0))","v":"Ролик"},{"$f":"INDEX('Исходные данные'!$A$2:$F$586,ROW(D150),MATCH('Как надо'!E$1,'Исходные данные'!$A$1:$F$1,0))","v":"MARS"},{"$f":"INDEX('Исходные данные'!$A$2:$F$586,ROW(E150),MATCH('Как надо'!F$1,'Исходные данные'!$A$1:$F$1,0))","v":13.3}]
[null,{"$f":"INDEX('Исходные данные'!$A$2:$F$586,ROW(A151),MATCH('Как надо'!B$1,'Исходные данные'!$A$1:$F$1,0))","v":"31 КАНАЛ"},{"$f":"INDEX('Исходные данные'!$A$2:$F$586,ROW(B151),MATCH('Как надо'!C$1,'Исходные данные'!$A$1:$F$1,0))","v":"2013-01-02"},{"$f":"INDEX('Исходные данные'!$A$2:$F$586,ROW(C151),MATCH('Как надо'!D$1,'Исходные данные'!$A$1:$F$1,0))","v":"Ролик"},{"$f":"INDEX('Исходные данные'!$A$2:$F$586,ROW(D151),MATCH('Как надо'!E$1,'Исходные данные'!$A$1:$F$1,0))","v":"NESTLE"},{"$f":"INDEX('Исходные данные'!$A$2:$F$586,ROW(E151),MATCH('Как надо'!F$1,'Исходные данные'!$A$1:$F$1,0))","v":16}]
[null,{"$f":"INDEX('Исходные данные'!$A$2:$F$586,ROW(A152),MATCH('Как надо'!B$1,'Исходные данные'!$A$1:$F$1,0))","v":"31 КАНАЛ"},{"$f":"INDEX('Исходные данные'!$A$2:$F$586,ROW(B152),MATCH('Как надо'!C$1,'Исходные данные'!$A$1:$F$1,0))","v":"2013-01-02"},{"$f":"INDEX('Исходные данные'!$A$2:$F$586,ROW(C152),MATCH('Как надо'!D$1,'Исходные данные'!$A$1:$F$1,0))","v":"Ролик"},{"$f":"INDEX('Исходные данные'!$A$2:$F$586,ROW(D152),MATCH('Как надо'!E$1,'Исходные данные'!$A$1:$F$1,0))","v":"КРАФТ ФУДС КАЗАХСТАН"},{"$f":"INDEX('Исходные данные'!$A$2:$F$586,ROW(E152),MATCH('Как надо'!F$1,'Исходные данные'!$A$1:$F$1,0))","v":14.8}]
[null,{"$f":"INDEX('Исходные данные'!$A$2:$F$586,ROW(A153),MATCH('Как надо'!B$1,'Исходные данные'!$A$1:$F$1,0))","v":"КТК"},{"$f":"INDEX('Исходные данные'!$A$2:$F$586,ROW(B153),MATCH('Как надо'!C$1,'Исходные данные'!$A$1:$F$1,0))","v":"2013-01-02"},{"$f":"INDEX('Исходные данные'!$A$2:$F$586,ROW(C153),MATCH('Как надо'!D$1,'Исходные данные'!$A$1:$F$1,0))","v":"Ролик"},{"$f":"INDEX('Исходные данные'!$A$2:$F$586,ROW(D153),MATCH('Как надо'!E$1,'Исходные данные'!$A$1:$F$1,0))","v":"MARS"},{"$f":"INDEX('Исходные данные'!$A$2:$F$586,ROW(E153),MATCH('Как надо'!F$1,'Исходные данные'!$A$1:$F$1,0))","v":2.8}]
[null,{"$f":"INDEX('Исходные данные'!$A$2:$F$586,ROW(A154),MATCH('Как надо'!B$1,'Исходные данные'!$A$1:$F$1,0))","v":"КТК"},{"$f":"INDEX('Исходные данные'!$A$2:$F$586,ROW(B154),MATCH('Как надо'!C$1,'Исходные данные'!$A$1:$F$1,0))","v":"2013-01-02"},{"$f":"INDEX('Исходные данные'!$A$2:$F$586,ROW(C154),MATCH('Как надо'!D$1,'Исходные данные'!$A$1:$F$1,0))","v":"Ролик"},{"$f":"INDEX('Исходные данные'!$A$2:$F$586,ROW(D154),MATCH('Как надо'!E$1,'Исходные данные'!$A$1:$F$1,0))","v":"NESTLE"},{"$f":"INDEX('Исходные данные'!$A$2:$F$586,ROW(E154),MATCH('Как надо'!F$1,'Исходные данные'!$A$1:$F$1,0))","v":4.5999999999999996}]
[null,{"$f":"INDEX('Исходные данные'!$A$2:$F$586,ROW(A155),MATCH('Как надо'!B$1,'Исходные данные'!$A$1:$F$1,0))","v":"КТК"},{"$f":"INDEX('Исходные данные'!$A$2:$F$586,ROW(B155),MATCH('Как надо'!C$1,'Исходные данные'!$A$1:$F$1,0))","v":"2013-01-02"},{"$f":"INDEX('Исходные данные'!$A$2:$F$586,ROW(C155),MATCH('Как надо'!D$1,'Исходные данные'!$A$1:$F$1,0))","v":"Ролик"},{"$f":"INDEX('Исходные данные'!$A$2:$F$586,ROW(D155),MATCH('Как надо'!E$1,'Исходные данные'!$A$1:$F$1,0))","v":"NESTLE"},{"$f":"INDEX('Исходные данные'!$A$2:$F$586,ROW(E155),MATCH('Как надо'!F$1,'Исходные данные'!$A$1:$F$1,0))","v":2.9}]
[null,{"$f":"INDEX('Исходные данные'!$A$2:$F$586,ROW(A156),MATCH('Как надо'!B$1,'Исходные данные'!$A$1:$F$1,0))","v":"КТК"},{"$f":"INDEX('Исходные данные'!$A$2:$F$586,ROW(B156),MATCH('Как надо'!C$1,'Исходные данные'!$A$1:$F$1,0))","v":"2013-01-02"},{"$f":"INDEX('Исходные данные'!$A$2:$F$586,ROW(C156),MATCH('Как надо'!D$1,'Исходные данные'!$A$1:$F$1,0))","v":"Ролик"},{"$f":"INDEX('Исходные данные'!$A$2:$F$586,ROW(D156),MATCH('Как надо'!E$1,'Исходные данные'!$A$1:$F$1,0))","v":"NESTLE"},{"$f":"INDEX('Исходные данные'!$A$2:$F$586,ROW(E156),MATCH('Как надо'!F$1,'Исходные данные'!$A$1:$F$1,0))","v":6.7}]
[null,{"$f":"INDEX('Исходные данные'!$A$2:$F$586,ROW(A157),MATCH('Как надо'!B$1,'Исходные данные'!$A$1:$F$1,0))","v":"КТК"},{"$f":"INDEX('Исходные данные'!$A$2:$F$586,ROW(B157),MATCH('Как надо'!C$1,'Исходные данные'!$A$1:$F$1,0))","v":"2013-01-02"},{"$f":"INDEX('Исходные данные'!$A$2:$F$586,ROW(C157),MATCH('Как надо'!D$1,'Исходные данные'!$A$1:$F$1,0))","v":"Ролик"},{"$f":"INDEX('Исходные данные'!$A$2:$F$586,ROW(D157),MATCH('Как надо'!E$1,'Исходные данные'!$A$1:$F$1,0))","v":"MARS"},{"$f":"INDEX('Исходные данные'!$A$2:$F$586,ROW(E157),MATCH('Как надо'!F$1,'Исходные данные'!$A$1:$F$1,0))","v":1.7}]
[null,{"$f":"INDEX('Исходные данные'!$A$2:$F$586,ROW(A158),MATCH('Как надо'!B$1,'Исходные данные'!$A$1:$F$1,0))","v":"КТК"},{"$f":"INDEX('Исходные данные'!$A$2:$F$586,ROW(B158),MATCH('Как надо'!C$1,'Исходные данные'!$A$1:$F$1,0))","v":"2013-01-02"},{"$f":"INDEX('Исходные данные'!$A$2:$F$586,ROW(C158),MATCH('Как надо'!D$1,'Исходные данные'!$A$1:$F$1,0))","v":"Ролик"},{"$f":"INDEX('Исходные данные'!$A$2:$F$586,ROW(D158),MATCH('Как надо'!E$1,'Исходные данные'!$A$1:$F$1,0))","v":"NESTLE"},{"$f":"INDEX('Исходные данные'!$A$2:$F$586,ROW(E158),MATCH('Как надо'!F$1,'Исходные данные'!$A$1:$F$1,0))","v":0}]
[null,{"$f":"INDEX('Исходные данные'!$A$2:$F$586,ROW(A159),MATCH('Как надо'!B$1,'Исходные данные'!$A$1:$F$1,0))","v":"КТК"},{"$f":"INDEX('Исходные данные'!$A$2:$F$586,ROW(B159),MATCH('Как надо'!C$1,'Исходные данные'!$A$1:$F$1,0))","v":"2013-01-02"},{"$f":"INDEX('Исходные данные'!$A$2:$F$586,ROW(C159),MATCH('Как надо'!D$1,'Исходные данные'!$A$1:$F$1,0))","v":"Ролик"},{"$f":"INDEX('Исходные данные'!$A$2:$F$586,ROW(D159),MATCH('Как надо'!E$1,'Исходные данные'!$A$1:$F$1,0))","v":"NESTLE"},{"$f":"INDEX('Исходные данные'!$A$2:$F$586,ROW(E159),MATCH('Как надо'!F$1,'Исходные данные'!$A$1:$F$1,0))","v":5.0999999999999996}]
[null,{"$f":"INDEX('Исходные данные'!$A$2:$F$586,ROW(A160),MATCH('Как надо'!B$1,'Исходные данные'!$A$1:$F$1,0))","v":"КТК"},{"$f":"INDEX('Исходные данные'!$A$2:$F$586,ROW(B160),MATCH('Как надо'!C$1,'Исходные данные'!$A$1:$F$1,0))","v":"2013-01-02"},{"$f":"INDEX('Исходные данные'!$A$2:$F$586,ROW(C160),MATCH('Как надо'!D$1,'Исходные данные'!$A$1:$F$1,0))","v":"Ролик"},{"$f":"INDEX('Исходные данные'!$A$2:$F$586,ROW(D160),MATCH('Как надо'!E$1,'Исходные данные'!$A$1:$F$1,0))","v":"NESTLE"},{"$f":"INDEX('Исходные данные'!$A$2:$F$586,ROW(E160),MATCH('Как надо'!F$1,'Исходные данные'!$A$1:$F$1,0))","v":4.0999999999999996}]
[null,{"$f":"INDEX('Исходные данные'!$A$2:$F$586,ROW(A161),MATCH('Как надо'!B$1,'Исходные данные'!$A$1:$F$1,0))","v":"КТК"},{"$f":"INDEX('Исходные данные'!$A$2:$F$586,ROW(B161),MATCH('Как надо'!C$1,'Исходные данные'!$A$1:$F$1,0))","v":"2013-01-02"},{"$f":"INDEX('Исходные данные'!$A$2:$F$586,ROW(C161),MATCH('Как надо'!D$1,'Исходные данные'!$A$1:$F$1,0))","v":"Ролик"},{"$f":"INDEX('Исходные данные'!$A$2:$F$586,ROW(D161),MATCH('Как надо'!E$1,'Исходные данные'!$A$1:$F$1,0))","v":"MARS"},{"$f":"INDEX('Исходные данные'!$A$2:$F$586,ROW(E161),MATCH('Как надо'!F$1,'Исходные данные'!$A$1:$F$1,0))","v":4.4000000000000004}]
[null,{"$f":"INDEX('Исходные данные'!$A$2:$F$586,ROW(A162),MATCH('Как надо'!B$1,'Исходные данные'!$A$1:$F$1,0))","v":"КТК"},{"$f":"INDEX('Исходные данные'!$A$2:$F$586,ROW(B162),MATCH('Как надо'!C$1,'Исходные данные'!$A$1:$F$1,0))","v":"2013-01-02"},{"$f":"INDEX('Исходные данные'!$A$2:$F$586,ROW(C162),MATCH('Как надо'!D$1,'Исходные данные'!$A$1:$F$1,0))","v":"Ролик"},{"$f":"INDEX('Исходные данные'!$A$2:$F$586,ROW(D162),MATCH('Как надо'!E$1,'Исходные данные'!$A$1:$F$1,0))","v":"MARS"},{"$f":"INDEX('Исходные данные'!$A$2:$F$586,ROW(E162),MATCH('Как надо'!F$1,'Исходные данные'!$A$1:$F$1,0))","v":0.4}]
[null,{"$f":"INDEX('Исходные данные'!$A$2:$F$586,ROW(A163),MATCH('Как надо'!B$1,'Исходные данные'!$A$1:$F$1,0))","v":"КТК"},{"$f":"INDEX('Исходные данные'!$A$2:$F$586,ROW(B163),MATCH('Как надо'!C$1,'Исходные данные'!$A$1:$F$1,0))","v":"2013-01-02"},{"$f":"INDEX('Исходные данные'!$A$2:$F$586,ROW(C163),MATCH('Как надо'!D$1,'Исходные данные'!$A$1:$F$1,0))","v":"Ролик"},{"$f":"INDEX('Исходные данные'!$A$2:$F$586,ROW(D163),MATCH('Как надо'!E$1,'Исходные данные'!$A$1:$F$1,0))","v":"MARS"},{"$f":"INDEX('Исходные данные'!$A$2:$F$586,ROW(E163),MATCH('Как надо'!F$1,'Исходные данные'!$A$1:$F$1,0))","v":1.7}]
[null,{"$f":"INDEX('Исходные данные'!$A$2:$F$586,ROW(A164),MATCH('Как надо'!B$1,'Исходные данные'!$A$1:$F$1,0))","v":"ПЕРВЫЙ КАНАЛ ЕВРАЗИЯ/ЕВРАЗИЯ/ОРТ-КАЗ"},{"$f":"INDEX('Исходные данные'!$A$2:$F$586,ROW(B164),MATCH('Как надо'!C$1,'Исходные данные'!$A$1:$F$1,0))","v":"2013-01-02"},{"$f":"INDEX('Исходные данные'!$A$2:$F$586,ROW(C164),MATCH('Как надо'!D$1,'Исходные данные'!$A$1:$F$1,0))","v":"Ролик"},{"$f":"INDEX('Исходные данные'!$A$2:$F$586,ROW(D164),MATCH('Как надо'!E$1,'Исходные данные'!$A$1:$F$1,0))","v":"MARS"},{"$f":"INDEX('Исходные данные'!$A$2:$F$586,ROW(E164),MATCH('Как надо'!F$1,'Исходные данные'!$A$1:$F$1,0))","v":12.5}]
[null,{"$f":"INDEX('Исходные данные'!$A$2:$F$586,ROW(A165),MATCH('Как надо'!B$1,'Исходные данные'!$A$1:$F$1,0))","v":"ПЕРВЫЙ КАНАЛ ЕВРАЗИЯ/ЕВРАЗИЯ/ОРТ-КАЗ"},{"$f":"INDEX('Исходные данные'!$A$2:$F$586,ROW(B165),MATCH('Как надо'!C$1,'Исходные данные'!$A$1:$F$1,0))","v":"2013-01-02"},{"$f":"INDEX('Исходные данные'!$A$2:$F$586,ROW(C165),MATCH('Как надо'!D$1,'Исходные данные'!$A$1:$F$1,0))","v":"Ролик"},{"$f":"INDEX('Исходные данные'!$A$2:$F$586,ROW(D165),MATCH('Как надо'!E$1,'Исходные данные'!$A$1:$F$1,0))","v":"NESTLE"},{"$f":"INDEX('Исходные данные'!$A$2:$F$586,ROW(E165),MATCH('Как надо'!F$1,'Исходные данные'!$A$1:$F$1,0))","v":2.4}]
[null,{"$f":"INDEX('Исходные данные'!$A$2:$F$586,ROW(A166),MATCH('Как надо'!B$1,'Исходные данные'!$A$1:$F$1,0))","v":"ПЕРВЫЙ КАНАЛ ЕВРАЗИЯ/ЕВРАЗИЯ/ОРТ-КАЗ"},{"$f":"INDEX('Исходные данные'!$A$2:$F$586,ROW(B166),MATCH('Как надо'!C$1,'Исходные данные'!$A$1:$F$1,0))","v":"2013-01-02"},{"$f":"INDEX('Исходные данные'!$A$2:$F$586,ROW(C166),MATCH('Как надо'!D$1,'Исходные данные'!$A$1:$F$1,0))","v":"Ролик"},{"$f":"INDEX('Исходные данные'!$A$2:$F$586,ROW(D166),MATCH('Как надо'!E$1,'Исходные данные'!$A$1:$F$1,0))","v":"NESTLE"},{"$f":"INDEX('Исходные данные'!$A$2:$F$586,ROW(E166),MATCH('Как надо'!F$1,'Исходные данные'!$A$1:$F$1,0))","v":4.7}]
[null,{"$f":"INDEX('Исходные данные'!$A$2:$F$586,ROW(A167),MATCH('Как надо'!B$1,'Исходные данные'!$A$1:$F$1,0))","v":"ПЕРВЫЙ КАНАЛ ЕВРАЗИЯ/ЕВРАЗИЯ/ОРТ-КАЗ"},{"$f":"INDEX('Исходные данные'!$A$2:$F$586,ROW(B167),MATCH('Как надо'!C$1,'Исходные данные'!$A$1:$F$1,0))","v":"2013-01-02"},{"$f":"INDEX('Исходные данные'!$A$2:$F$586,ROW(C167),MATCH('Как надо'!D$1,'Исходные данные'!$A$1:$F$1,0))","v":"Ролик"},{"$f":"INDEX('Исходные данные'!$A$2:$F$586,ROW(D167),MATCH('Как надо'!E$1,'Исходные данные'!$A$1:$F$1,0))","v":"MARS"},{"$f":"INDEX('Исходные данные'!$A$2:$F$586,ROW(E167),MATCH('Как надо'!F$1,'Исходные данные'!$A$1:$F$1,0))","v":5.3}]
[null,{"$f":"INDEX('Исходные данные'!$A$2:$F$586,ROW(A168),MATCH('Как надо'!B$1,'Исходные данные'!$A$1:$F$1,0))","v":"ПЕРВЫЙ КАНАЛ ЕВРАЗИЯ/ЕВРАЗИЯ/ОРТ-КАЗ"},{"$f":"INDEX('Исходные данные'!$A$2:$F$586,ROW(B168),MATCH('Как надо'!C$1,'Исходные данные'!$A$1:$F$1,0))","v":"2013-01-02"},{"$f":"INDEX('Исходные данные'!$A$2:$F$586,ROW(C168),MATCH('Как надо'!D$1,'Исходные данные'!$A$1:$F$1,0))","v":"Ролик"},{"$f":"INDEX('Исходные данные'!$A$2:$F$586,ROW(D168),MATCH('Как надо'!E$1,'Исходные данные'!$A$1:$F$1,0))","v":"КРАФТ ФУДС КАЗАХСТАН"},{"$f":"INDEX('Исходные данные'!$A$2:$F$586,ROW(E168),MATCH('Как надо'!F$1,'Исходные данные'!$A$1:$F$1,0))","v":4.0999999999999996}]
[null,{"$f":"INDEX('Исходные данные'!$A$2:$F$586,ROW(A169),MATCH('Как надо'!B$1,'Исходные данные'!$A$1:$F$1,0))","v":"ПЕРВЫЙ КАНАЛ ЕВРАЗИЯ/ЕВРАЗИЯ/ОРТ-КАЗ"},{"$f":"INDEX('Исходные данные'!$A$2:$F$586,ROW(B169),MATCH('Как надо'!C$1,'Исходные данные'!$A$1:$F$1,0))","v":"2013-01-02"},{"$f":"INDEX('Исходные данные'!$A$2:$F$586,ROW(C169),MATCH('Как надо'!D$1,'Исходные данные'!$A$1:$F$1,0))","v":"Ролик"},{"$f":"INDEX('Исходные данные'!$A$2:$F$586,ROW(D169),MATCH('Как надо'!E$1,'Исходные данные'!$A$1:$F$1,0))","v":"MARS"},{"$f":"INDEX('Исходные данные'!$A$2:$F$586,ROW(E169),MATCH('Как надо'!F$1,'Исходные данные'!$A$1:$F$1,0))","v":12.7}]
[null,{"$f":"INDEX('Исходные данные'!$A$2:$F$586,ROW(A170),MATCH('Как надо'!B$1,'Исходные данные'!$A$1:$F$1,0))","v":"ПЕРВЫЙ КАНАЛ ЕВРАЗИЯ/ЕВРАЗИЯ/ОРТ-КАЗ"},{"$f":"INDEX('Исходные данные'!$A$2:$F$586,ROW(B170),MATCH('Как надо'!C$1,'Исходные данные'!$A$1:$F$1,0))","v":"2013-01-02"},{"$f":"INDEX('Исходные данные'!$A$2:$F$586,ROW(C170),MATCH('Как надо'!D$1,'Исходные данные'!$A$1:$F$1,0))","v":"Ролик"},{"$f":"INDEX('Исходные данные'!$A$2:$F$586,ROW(D170),MATCH('Как надо'!E$1,'Исходные данные'!$A$1:$F$1,0))","v":"MARS"},{"$f":"INDEX('Исходные данные'!$A$2:$F$586,ROW(E170),MATCH('Как надо'!F$1,'Исходные данные'!$A$1:$F$1,0))","v":7.4}]
[null,{"$f":"INDEX('Исходные данные'!$A$2:$F$586,ROW(A171),MATCH('Как надо'!B$1,'Исходные данные'!$A$1:$F$1,0))","v":"ПЕРВЫЙ КАНАЛ ЕВРАЗИЯ/ЕВРАЗИЯ/ОРТ-КАЗ"},{"$f":"INDEX('Исходные данные'!$A$2:$F$586,ROW(B171),MATCH('Как надо'!C$1,'Исходные данные'!$A$1:$F$1,0))","v":"2013-01-02"},{"$f":"INDEX('Исходные данные'!$A$2:$F$586,ROW(C171),MATCH('Как надо'!D$1,'Исходные данные'!$A$1:$F$1,0))","v":"Ролик"},{"$f":"INDEX('Исходные данные'!$A$2:$F$586,ROW(D171),MATCH('Как надо'!E$1,'Исходные данные'!$A$1:$F$1,0))","v":"MARS"},{"$f":"INDEX('Исходные данные'!$A$2:$F$586,ROW(E171),MATCH('Как надо'!F$1,'Исходные данные'!$A$1:$F$1,0))","v":11.4}]
[null,{"$f":"INDEX('Исходные данные'!$A$2:$F$586,ROW(A172),MATCH('Как надо'!B$1,'Исходные данные'!$A$1:$F$1,0))","v":"ПЕРВЫЙ КАНАЛ ЕВРАЗИЯ/ЕВРАЗИЯ/ОРТ-КАЗ"},{"$f":"INDEX('Исходные данные'!$A$2:$F$586,ROW(B172),MATCH('Как надо'!C$1,'Исходные данные'!$A$1:$F$1,0))","v":"2013-01-02"},{"$f":"INDEX('Исходные данные'!$A$2:$F$586,ROW(C172),MATCH('Как надо'!D$1,'Исходные данные'!$A$1:$F$1,0))","v":"Ролик"},{"$f":"INDEX('Исходные данные'!$A$2:$F$586,ROW(D172),MATCH('Как надо'!E$1,'Исходные данные'!$A$1:$F$1,0))","v":"MARS"},{"$f":"INDEX('Исходные данные'!$A$2:$F$586,ROW(E172),MATCH('Как надо'!F$1,'Исходные данные'!$A$1:$F$1,0))","v":7.4}]
[null,{"$f":"INDEX('Исходные данные'!$A$2:$F$586,ROW(A173),MATCH('Как надо'!B$1,'Исходные данные'!$A$1:$F$1,0))","v":"ПЕРВЫЙ КАНАЛ ЕВРАЗИЯ/ЕВРАЗИЯ/ОРТ-КАЗ"},{"$f":"INDEX('Исходные данные'!$A$2:$F$586,ROW(B173),MATCH('Как надо'!C$1,'Исходные данные'!$A$1:$F$1,0))","v":"2013-01-02"},{"$f":"INDEX('Исходные данные'!$A$2:$F$586,ROW(C173),MATCH('Как надо'!D$1,'Исходные данные'!$A$1:$F$1,0))","v":"Ролик"},{"$f":"INDEX('Исходные данные'!$A$2:$F$586,ROW(D173),MATCH('Как надо'!E$1,'Исходные данные'!$A$1:$F$1,0))","v":"NESTLE"},{"$f":"INDEX('Исходные данные'!$A$2:$F$586,ROW(E173),MATCH('Как надо'!F$1,'Исходные данные'!$A$1:$F$1,0))","v":4.8}]
[null,{"$f":"INDEX('Исходные данные'!$A$2:$F$586,ROW(A174),MATCH('Как надо'!B$1,'Исходные данные'!$A$1:$F$1,0))","v":"ПЕРВЫЙ КАНАЛ ЕВРАЗИЯ/ЕВРАЗИЯ/ОРТ-КАЗ"},{"$f":"INDEX('Исходные данные'!$A$2:$F$586,ROW(B174),MATCH('Как надо'!C$1,'Исходные данные'!$A$1:$F$1,0))","v":"2013-01-02"},{"$f":"INDEX('Исходные данные'!$A$2:$F$586,ROW(C174),MATCH('Как надо'!D$1,'Исходные данные'!$A$1:$F$1,0))","v":"Ролик"},{"$f":"INDEX('Исходные данные'!$A$2:$F$586,ROW(D174),MATCH('Как надо'!E$1,'Исходные данные'!$A$1:$F$1,0))","v":"MARS"},{"$f":"INDEX('Исходные данные'!$A$2:$F$586,ROW(E174),MATCH('Как надо'!F$1,'Исходные данные'!$A$1:$F$1,0))","v":4}]
[null,{"$f":"INDEX('Исходные данные'!$A$2:$F$586,ROW(A175),MATCH('Как надо'!B$1,'Исходные данные'!$A$1:$F$1,0))","v":"ПЕРВЫЙ КАНАЛ ЕВРАЗИЯ/ЕВРАЗИЯ/ОРТ-КАЗ"},{"$f":"INDEX('Исходные данные'!$A$2:$F$586,ROW(B175),MATCH('Как надо'!C$1,'Исходные данные'!$A$1:$F$1,0))","v":"2013-01-02"},{"$f":"INDEX('Исходные данные'!$A$2:$F$586,ROW(C175),MATCH('Как надо'!D$1,'Исходные данные'!$A$1:$F$1,0))","v":"Ролик"},{"$f":"INDEX('Исходные данные'!$A$2:$F$586,ROW(D175),MATCH('Как надо'!E$1,'Исходные данные'!$A$1:$F$1,0))","v":"MARS"},{"$f":"INDEX('Исходные данные'!$A$2:$F$586,ROW(E175),MATCH('Как надо'!F$1,'Исходные данные'!$A$1:$F$1,0))","v":1.7}]
[null,{"$f":"INDEX('Исходные данные'!$A$2:$F$586,ROW(A176),MATCH('Как надо'!B$1,'Исходные данные'!$A$1:$F$1,0))","v":"НТК"},{"$f":"INDEX('Исходные данные'!$A$2:$F$586,ROW(B176),MATCH('Как надо'!C$1,'Исходные данные'!$A$1:$F$1,0))","v":"2013-01-02"},{"$f":"INDEX('Исходные данные'!$A$2:$F$586,ROW(C176),MATCH('Как надо'!D$1,'Исходные данные'!$A$1:$F$1,0))","v":"Ролик"},{"$f":"INDEX('Исходные данные'!$A$2:$F$586,ROW(D176),MATCH('Как надо'!E$1,'Исходные данные'!$A$1:$F$1,0))","v":"NESTLE"},{"$f":"INDEX('Исходные данные'!$A$2:$F$586,ROW(E176),MATCH('Как надо'!F$1,'Исходные данные'!$A$1:$F$1,0))","v":0}]
[null,{"$f":"INDEX('Исходные данные'!$A$2:$F$586,ROW(A177),MATCH('Как надо'!B$1,'Исходные данные'!$A$1:$F$1,0))","v":"НТК"},{"$f":"INDEX('Исходные данные'!$A$2:$F$586,ROW(B177),MATCH('Как надо'!C$1,'Исходные данные'!$A$1:$F$1,0))","v":"2013-01-02"},{"$f":"INDEX('Исходные данные'!$A$2:$F$586,ROW(C177),MATCH('Как надо'!D$1,'Исходные данные'!$A$1:$F$1,0))","v":"Ролик"},{"$f":"INDEX('Исходные данные'!$A$2:$F$586,ROW(D177),MATCH('Как надо'!E$1,'Исходные данные'!$A$1:$F$1,0))","v":"NESTLE"},{"$f":"INDEX('Исходные данные'!$A$2:$F$586,ROW(E177),MATCH('Как надо'!F$1,'Исходные данные'!$A$1:$F$1,0))","v":4.8}]
[null,{"$f":"INDEX('Исходные данные'!$A$2:$F$586,ROW(A178),MATCH('Как надо'!B$1,'Исходные данные'!$A$1:$F$1,0))","v":"НТК"},{"$f":"INDEX('Исходные данные'!$A$2:$F$586,ROW(B178),MATCH('Как надо'!C$1,'Исходные данные'!$A$1:$F$1,0))","v":"2013-01-02"},{"$f":"INDEX('Исходные данные'!$A$2:$F$586,ROW(C178),MATCH('Как надо'!D$1,'Исходные данные'!$A$1:$F$1,0))","v":"Ролик"},{"$f":"INDEX('Исходные данные'!$A$2:$F$586,ROW(D178),MATCH('Как надо'!E$1,'Исходные данные'!$A$1:$F$1,0))","v":"NESTLE"},{"$f":"INDEX('Исходные данные'!$A$2:$F$586,ROW(E178),MATCH('Как надо'!F$1,'Исходные данные'!$A$1:$F$1,0))","v":4.8}]
[null,{"$f":"INDEX('Исходные данные'!$A$2:$F$586,ROW(A179),MATCH('Как надо'!B$1,'Исходные данные'!$A$1:$F$1,0))","v":"НТК"},{"$f":"INDEX('Исходные данные'!$A$2:$F$586,ROW(B179),MATCH('Как надо'!C$1,'Исходные данные'!$A$1:$F$1,0))","v":"2013-01-02"},{"$f":"INDEX('Исходные данные'!$A$2:$F$586,ROW(C179),MATCH('Как надо'!D$1,'Исходные данные'!$A$1:$F$1,0))","v":"Ролик"},{"$f":"INDEX('Исходные данные'!$A$2:$F$586,ROW(D179),MATCH('Как надо'!E$1,'Исходные данные'!$A$1:$F$1,0))","v":"КРАФТ ФУДС КАЗАХСТАН"},{"$f":"INDEX('Исходные данные'!$A$2:$F$586,ROW(E179),MATCH('Как надо'!F$1,'Исходные данные'!$A$1:$F$1,0))","v":1.9}]
[null,{"$f":"INDEX('Исходные данные'!$A$2:$F$586,ROW(A180),MATCH('Как надо'!B$1,'Исходные данные'!$A$1:$F$1,0))","v":"НТК"},{"$f":"INDEX('Исходные данные'!$A$2:$F$586,ROW(B180),MATCH('Как надо'!C$1,'Исходные данные'!$A$1:$F$1,0))","v":"2013-01-02"},{"$f":"INDEX('Исходные данные'!$A$2:$F$586,ROW(C180),MATCH('Как надо'!D$1,'Исходные данные'!$A$1:$F$1,0))","v":"Ролик"},{"$f":"INDEX('Исходные данные'!$A$2:$F$586,ROW(D180),MATCH('Как надо'!E$1,'Исходные данные'!$A$1:$F$1,0))","v":"MARS"},{"$f":"INDEX('Исходные данные'!$A$2:$F$586,ROW(E180),MATCH('Как надо'!F$1,'Исходные данные'!$A$1:$F$1,0))","v":3.4}]
[null,{"$f":"INDEX('Исходные данные'!$A$2:$F$586,ROW(A181),MATCH('Как надо'!B$1,'Исходные данные'!$A$1:$F$1,0))","v":"НТК"},{"$f":"INDEX('Исходные данные'!$A$2:$F$586,ROW(B181),MATCH('Как надо'!C$1,'Исходные данные'!$A$1:$F$1,0))","v":"2013-01-02"},{"$f":"INDEX('Исходные данные'!$A$2:$F$586,ROW(C181),MATCH('Как надо'!D$1,'Исходные данные'!$A$1:$F$1,0))","v":"Ролик"},{"$f":"INDEX('Исходные данные'!$A$2:$F$586,ROW(D181),MATCH('Как надо'!E$1,'Исходные данные'!$A$1:$F$1,0))","v":"КРАФТ ФУДС КАЗАХСТАН"},{"$f":"INDEX('Исходные данные'!$A$2:$F$586,ROW(E181),MATCH('Как надо'!F$1,'Исходные данные'!$A$1:$F$1,0))","v":3.4}]
[null,{"$f":"INDEX('Исходные данные'!$A$2:$F$586,ROW(A182),MATCH('Как надо'!B$1,'Исходные данные'!$A$1:$F$1,0))","v":"НТК"},{"$f":"INDEX('Исходные данные'!$A$2:$F$586,ROW(B182),MATCH('Как надо'!C$1,'Исходные данные'!$A$1:$F$1,0))","v":"2013-01-02"},{"$f":"INDEX('Исходные данные'!$A$2:$F$586,ROW(C182),MATCH('Как надо'!D$1,'Исходные данные'!$A$1:$F$1,0))","v":"Ролик"},{"$f":"INDEX('Исходные данные'!$A$2:$F$586,ROW(D182),MATCH('Как надо'!E$1,'Исходные данные'!$A$1:$F$1,0))","v":"MARS"},{"$f":"INDEX('Исходные данные'!$A$2:$F$586,ROW(E182),MATCH('Как надо'!F$1,'Исходные данные'!$A$1:$F$1,0))","v":1.3}]
[null,{"$f":"INDEX('Исходные данные'!$A$2:$F$586,ROW(A183),MATCH('Как надо'!B$1,'Исходные данные'!$A$1:$F$1,0))","v":"НТК"},{"$f":"INDEX('Исходные данные'!$A$2:$F$586,ROW(B183),MATCH('Как надо'!C$1,'Исходные данные'!$A$1:$F$1,0))","v":"2013-01-02"},{"$f":"INDEX('Исходные данные'!$A$2:$F$586,ROW(C183),MATCH('Как надо'!D$1,'Исходные данные'!$A$1:$F$1,0))","v":"Ролик"},{"$f":"INDEX('Исходные данные'!$A$2:$F$586,ROW(D183),MATCH('Как надо'!E$1,'Исходные данные'!$A$1:$F$1,0))","v":"NESTLE"},{"$f":"INDEX('Исходные данные'!$A$2:$F$586,ROW(E183),MATCH('Как надо'!F$1,'Исходные данные'!$A$1:$F$1,0))","v":0}]
[null,{"$f":"INDEX('Исходные данные'!$A$2:$F$586,ROW(A184),MATCH('Как надо'!B$1,'Исходные данные'!$A$1:$F$1,0))","v":"НТК"},{"$f":"INDEX('Исходные данные'!$A$2:$F$586,ROW(B184),MATCH('Как надо'!C$1,'Исходные данные'!$A$1:$F$1,0))","v":"2013-01-02"},{"$f":"INDEX('Исходные данные'!$A$2:$F$586,ROW(C184),MATCH('Как надо'!D$1,'Исходные данные'!$A$1:$F$1,0))","v":"Ролик"},{"$f":"INDEX('Исходные данные'!$A$2:$F$586,ROW(D184),MATCH('Как надо'!E$1,'Исходные данные'!$A$1:$F$1,0))","v":"NESTLE"},{"$f":"INDEX('Исходные данные'!$A$2:$F$586,ROW(E184),MATCH('Как надо'!F$1,'Исходные данные'!$A$1:$F$1,0))","v":1}]
[null,{"$f":"INDEX('Исходные данные'!$A$2:$F$586,ROW(A185),MATCH('Как надо'!B$1,'Исходные данные'!$A$1:$F$1,0))","v":"НТК"},{"$f":"INDEX('Исходные данные'!$A$2:$F$586,ROW(B185),MATCH('Как надо'!C$1,'Исходные данные'!$A$1:$F$1,0))","v":"2013-01-02"},{"$f":"INDEX('Исходные данные'!$A$2:$F$586,ROW(C185),MATCH('Как надо'!D$1,'Исходные данные'!$A$1:$F$1,0))","v":"Ролик"},{"$f":"INDEX('Исходные данные'!$A$2:$F$586,ROW(D185),MATCH('Как надо'!E$1,'Исходные данные'!$A$1:$F$1,0))","v":"MARS"},{"$f":"INDEX('Исходные данные'!$A$2:$F$586,ROW(E185),MATCH('Как надо'!F$1,'Исходные данные'!$A$1:$F$1,0))","v":4}]
[null,{"$f":"INDEX('Исходные данные'!$A$2:$F$586,ROW(A186),MATCH('Как надо'!B$1,'Исходные данные'!$A$1:$F$1,0))","v":"НТК"},{"$f":"INDEX('Исходные данные'!$A$2:$F$586,ROW(B186),MATCH('Как надо'!C$1,'Исходные данные'!$A$1:$F$1,0))","v":"2013-01-02"},{"$f":"INDEX('Исходные данные'!$A$2:$F$586,ROW(C186),MATCH('Как надо'!D$1,'Исходные данные'!$A$1:$F$1,0))","v":"Ролик"},{"$f":"INDEX('Исходные данные'!$A$2:$F$586,ROW(D186),MATCH('Как надо'!E$1,'Исходные данные'!$A$1:$F$1,0))","v":"MARS"},{"$f":"INDEX('Исходные данные'!$A$2:$F$586,ROW(E186),MATCH('Как надо'!F$1,'Исходные данные'!$A$1:$F$1,0))","v":4.8}]
[null,{"$f":"INDEX('Исходные данные'!$A$2:$F$586,ROW(A187),MATCH('Как надо'!B$1,'Исходные данные'!$A$1:$F$1,0))","v":"НТК"},{"$f":"INDEX('Исходные данные'!$A$2:$F$586,ROW(B187),MATCH('Как надо'!C$1,'Исходные данные'!$A$1:$F$1,0))","v":"2013-01-02"},{"$f":"INDEX('Исходные данные'!$A$2:$F$586,ROW(C187),MATCH('Как надо'!D$1,'Исходные данные'!$A$1:$F$1,0))","v":"Ролик"},{"$f":"INDEX('Исходные данные'!$A$2:$F$586,ROW(D187),MATCH('Как надо'!E$1,'Исходные данные'!$A$1:$F$1,0))","v":"NESTLE"},{"$f":"INDEX('Исходные данные'!$A$2:$F$586,ROW(E187),MATCH('Как надо'!F$1,'Исходные данные'!$A$1:$F$1,0))","v":1.7}]
[null,{"$f":"INDEX('Исходные данные'!$A$2:$F$586,ROW(A188),MATCH('Как надо'!B$1,'Исходные данные'!$A$1:$F$1,0))","v":"НТК"},{"$f":"INDEX('Исходные данные'!$A$2:$F$586,ROW(B188),MATCH('Как надо'!C$1,'Исходные данные'!$A$1:$F$1,0))","v":"2013-01-02"},{"$f":"INDEX('Исходные данные'!$A$2:$F$586,ROW(C188),MATCH('Как надо'!D$1,'Исходные данные'!$A$1:$F$1,0))","v":"Ролик"},{"$f":"INDEX('Исходные данные'!$A$2:$F$586,ROW(D188),MATCH('Как надо'!E$1,'Исходные данные'!$A$1:$F$1,0))","v":"NESTLE"},{"$f":"INDEX('Исходные данные'!$A$2:$F$586,ROW(E188),MATCH('Как надо'!F$1,'Исходные данные'!$A$1:$F$1,0))","v":0}]
[null,{"$f":"INDEX('Исходные данные'!$A$2:$F$586,ROW(A189),MATCH('Как надо'!B$1,'Исходные данные'!$A$1:$F$1,0))","v":"НТК"},{"$f":"INDEX('Исходные данные'!$A$2:$F$586,ROW(B189),MATCH('Как надо'!C$1,'Исходные данные'!$A$1:$F$1,0))","v":"2013-01-02"},{"$f":"INDEX('Исходные данные'!$A$2:$F$586,ROW(C189),MATCH('Как надо'!D$1,'Исходные данные'!$A$1:$F$1,0))","v":"Ролик"},{"$f":"INDEX('Исходные данные'!$A$2:$F$586,ROW(D189),MATCH('Как надо'!E$1,'Исходные данные'!$A$1:$F$1,0))","v":"КРАФТ ФУДС КАЗАХСТАН"},{"$f":"INDEX('Исходные данные'!$A$2:$F$586,ROW(E189),MATCH('Как надо'!F$1,'Исходные данные'!$A$1:$F$1,0))","v":0.8}]
[null,{"$f":"INDEX('Исходные данные'!$A$2:$F$586,ROW(A190),MATCH('Как надо'!B$1,'Исходные данные'!$A$1:$F$1,0))","v":"НТК"},{"$f":"INDEX('Исходные данные'!$A$2:$F$586,ROW(B190),MATCH('Как надо'!C$1,'Исходные данные'!$A$1:$F$1,0))","v":"2013-01-02"},{"$f":"INDEX('Исходные данные'!$A$2:$F$586,ROW(C190),MATCH('Как надо'!D$1,'Исходные данные'!$A$1:$F$1,0))","v":"Ролик"},{"$f":"INDEX('Исходные данные'!$A$2:$F$586,ROW(D190),MATCH('Как надо'!E$1,'Исходные данные'!$A$1:$F$1,0))","v":"MARS"},{"$f":"INDEX('Исходные данные'!$A$2:$F$586,ROW(E190),MATCH('Как надо'!F$1,'Исходные данные'!$A$1:$F$1,0))","v":1.2}]
[null,{"$f":"INDEX('Исходные данные'!$A$2:$F$586,ROW(A191),MATCH('Как надо'!B$1,'Исходные данные'!$A$1:$F$1,0))","v":"НТК"},{"$f":"INDEX('Исходные данные'!$A$2:$F$586,ROW(B191),MATCH('Как надо'!C$1,'Исходные данные'!$A$1:$F$1,0))","v":"2013-01-02"},{"$f":"INDEX('Исходные данные'!$A$2:$F$586,ROW(C191),MATCH('Как надо'!D$1,'Исходные данные'!$A$1:$F$1,0))","v":"Ролик"},{"$f":"INDEX('Исходные данные'!$A$2:$F$586,ROW(D191),MATCH('Как надо'!E$1,'Исходные данные'!$A$1:$F$1,0))","v":"MARS"},{"$f":"INDEX('Исходные данные'!$A$2:$F$586,ROW(E191),MATCH('Как надо'!F$1,'Исходные данные'!$A$1:$F$1,0))","v":4.0999999999999996}]
[null,{"$f":"INDEX('Исходные данные'!$A$2:$F$586,ROW(A192),MATCH('Как надо'!B$1,'Исходные данные'!$A$1:$F$1,0))","v":"НТК"},{"$f":"INDEX('Исходные данные'!$A$2:$F$586,ROW(B192),MATCH('Как надо'!C$1,'Исходные данные'!$A$1:$F$1,0))","v":"2013-01-02"},{"$f":"INDEX('Исходные данные'!$A$2:$F$586,ROW(C192),MATCH('Как надо'!D$1,'Исходные данные'!$A$1:$F$1,0))","v":"Ролик"},{"$f":"INDEX('Исходные данные'!$A$2:$F$586,ROW(D192),MATCH('Как надо'!E$1,'Исходные данные'!$A$1:$F$1,0))","v":"NESTLE"},{"$f":"INDEX('Исходные данные'!$A$2:$F$586,ROW(E192),MATCH('Как надо'!F$1,'Исходные данные'!$A$1:$F$1,0))","v":3.5}]
[null,{"$f":"INDEX('Исходные данные'!$A$2:$F$586,ROW(A193),MATCH('Как надо'!B$1,'Исходные данные'!$A$1:$F$1,0))","v":"НТК"},{"$f":"INDEX('Исходные данные'!$A$2:$F$586,ROW(B193),MATCH('Как надо'!C$1,'Исходные данные'!$A$1:$F$1,0))","v":"2013-01-02"},{"$f":"INDEX('Исходные данные'!$A$2:$F$586,ROW(C193),MATCH('Как надо'!D$1,'Исходные данные'!$A$1:$F$1,0))","v":"Ролик"},{"$f":"INDEX('Исходные данные'!$A$2:$F$586,ROW(D193),MATCH('Как надо'!E$1,'Исходные данные'!$A$1:$F$1,0))","v":"NESTLE"},{"$f":"INDEX('Исходные данные'!$A$2:$F$586,ROW(E193),MATCH('Как надо'!F$1,'Исходные данные'!$A$1:$F$1,0))","v":0.4}]
[null,{"$f":"INDEX('Исходные данные'!$A$2:$F$586,ROW(A194),MATCH('Как надо'!B$1,'Исходные данные'!$A$1:$F$1,0))","v":"НТК"},{"$f":"INDEX('Исходные данные'!$A$2:$F$586,ROW(B194),MATCH('Как надо'!C$1,'Исходные данные'!$A$1:$F$1,0))","v":"2013-01-02"},{"$f":"INDEX('Исходные данные'!$A$2:$F$586,ROW(C194),MATCH('Как надо'!D$1,'Исходные данные'!$A$1:$F$1,0))","v":"Ролик"},{"$f":"INDEX('Исходные данные'!$A$2:$F$586,ROW(D194),MATCH('Как надо'!E$1,'Исходные данные'!$A$1:$F$1,0))","v":"MARS"},{"$f":"INDEX('Исходные данные'!$A$2:$F$586,ROW(E194),MATCH('Как надо'!F$1,'Исходные данные'!$A$1:$F$1,0))","v":0.9}]
[null,{"$f":"INDEX('Исходные данные'!$A$2:$F$586,ROW(A195),MATCH('Как надо'!B$1,'Исходные данные'!$A$1:$F$1,0))","v":"НТК"},{"$f":"INDEX('Исходные данные'!$A$2:$F$586,ROW(B195),MATCH('Как надо'!C$1,'Исходные данные'!$A$1:$F$1,0))","v":"2013-01-02"},{"$f":"INDEX('Исходные данные'!$A$2:$F$586,ROW(C195),MATCH('Как надо'!D$1,'Исходные данные'!$A$1:$F$1,0))","v":"Ролик"},{"$f":"INDEX('Исходные данные'!$A$2:$F$586,ROW(D195),MATCH('Как надо'!E$1,'Исходные данные'!$A$1:$F$1,0))","v":"MARS"},{"$f":"INDEX('Исходные данные'!$A$2:$F$586,ROW(E195),MATCH('Как надо'!F$1,'Исходные данные'!$A$1:$F$1,0))","v":5}]
[null,{"$f":"INDEX('Исходные данные'!$A$2:$F$586,ROW(A196),MATCH('Как надо'!B$1,'Исходные данные'!$A$1:$F$1,0))","v":"НТК"},{"$f":"INDEX('Исходные данные'!$A$2:$F$586,ROW(B196),MATCH('Как надо'!C$1,'Исходные данные'!$A$1:$F$1,0))","v":"2013-01-02"},{"$f":"INDEX('Исходные данные'!$A$2:$F$586,ROW(C196),MATCH('Как надо'!D$1,'Исходные данные'!$A$1:$F$1,0))","v":"Ролик"},{"$f":"INDEX('Исходные данные'!$A$2:$F$586,ROW(D196),MATCH('Как надо'!E$1,'Исходные данные'!$A$1:$F$1,0))","v":"MARS"},{"$f":"INDEX('Исходные данные'!$A$2:$F$586,ROW(E196),MATCH('Как надо'!F$1,'Исходные данные'!$A$1:$F$1,0))","v":1.2}]
[null,{"$f":"INDEX('Исходные данные'!$A$2:$F$586,ROW(A197),MATCH('Как надо'!B$1,'Исходные данные'!$A$1:$F$1,0))","v":"НТК"},{"$f":"INDEX('Исходные данные'!$A$2:$F$586,ROW(B197),MATCH('Как надо'!C$1,'Исходные данные'!$A$1:$F$1,0))","v":"2013-01-02"},{"$f":"INDEX('Исходные данные'!$A$2:$F$586,ROW(C197),MATCH('Как надо'!D$1,'Исходные данные'!$A$1:$F$1,0))","v":"Ролик"},{"$f":"INDEX('Исходные данные'!$A$2:$F$586,ROW(D197),MATCH('Как надо'!E$1,'Исходные данные'!$A$1:$F$1,0))","v":"MARS"},{"$f":"INDEX('Исходные данные'!$A$2:$F$586,ROW(E197),MATCH('Как надо'!F$1,'Исходные данные'!$A$1:$F$1,0))","v":2.5}]
[null,{"$f":"INDEX('Исходные данные'!$A$2:$F$586,ROW(A198),MATCH('Как надо'!B$1,'Исходные данные'!$A$1:$F$1,0))","v":"НТК"},{"$f":"INDEX('Исходные данные'!$A$2:$F$586,ROW(B198),MATCH('Как надо'!C$1,'Исходные данные'!$A$1:$F$1,0))","v":"2013-01-02"},{"$f":"INDEX('Исходные данные'!$A$2:$F$586,ROW(C198),MATCH('Как надо'!D$1,'Исходные данные'!$A$1:$F$1,0))","v":"Ролик"},{"$f":"INDEX('Исходные данные'!$A$2:$F$586,ROW(D198),MATCH('Как надо'!E$1,'Исходные данные'!$A$1:$F$1,0))","v":"MARS"},{"$f":"INDEX('Исходные данные'!$A$2:$F$586,ROW(E198),MATCH('Как надо'!F$1,'Исходные данные'!$A$1:$F$1,0))","v":0}]
[null,{"$f":"INDEX('Исходные данные'!$A$2:$F$586,ROW(A199),MATCH('Как надо'!B$1,'Исходные данные'!$A$1:$F$1,0))","v":"НТК"},{"$f":"INDEX('Исходные данные'!$A$2:$F$586,ROW(B199),MATCH('Как надо'!C$1,'Исходные данные'!$A$1:$F$1,0))","v":"2013-01-02"},{"$f":"INDEX('Исходные данные'!$A$2:$F$586,ROW(C199),MATCH('Как надо'!D$1,'Исходные данные'!$A$1:$F$1,0))","v":"Ролик"},{"$f":"INDEX('Исходные данные'!$A$2:$F$586,ROW(D199),MATCH('Как надо'!E$1,'Исходные данные'!$A$1:$F$1,0))","v":"MARS"},{"$f":"INDEX('Исходные данные'!$A$2:$F$586,ROW(E199),MATCH('Как надо'!F$1,'Исходные данные'!$A$1:$F$1,0))","v":0}]
[null,{"$f":"INDEX('Исходные данные'!$A$2:$F$586,ROW(A200),MATCH('Как надо'!B$1,'Исходные данные'!$A$1:$F$1,0))","v":"НТК"},{"$f":"INDEX('Исходные данные'!$A$2:$F$586,ROW(B200),MATCH('Как надо'!C$1,'Исходные данные'!$A$1:$F$1,0))","v":"2013-01-02"},{"$f":"INDEX('Исходные данные'!$A$2:$F$586,ROW(C200),MATCH('Как надо'!D$1,'Исходные данные'!$A$1:$F$1,0))","v":"Ролик"},{"$f":"INDEX('Исходные данные'!$A$2:$F$586,ROW(D200),MATCH('Как надо'!E$1,'Исходные данные'!$A$1:$F$1,0))","v":"КРАФТ ФУДС КАЗАХСТАН"},{"$f":"INDEX('Исходные данные'!$A$2:$F$586,ROW(E200),MATCH('Как надо'!F$1,'Исходные данные'!$A$1:$F$1,0))","v":1.2}]
[null,{"$f":"INDEX('Исходные данные'!$A$2:$F$586,ROW(A201),MATCH('Как надо'!B$1,'Исходные данные'!$A$1:$F$1,0))","v":"АСТАНА"},{"$f":"INDEX('Исходные данные'!$A$2:$F$586,ROW(B201),MATCH('Как надо'!C$1,'Исходные данные'!$A$1:$F$1,0))","v":"2013-01-02"},{"$f":"INDEX('Исходные данные'!$A$2:$F$586,ROW(C201),MATCH('Как надо'!D$1,'Исходные данные'!$A$1:$F$1,0))","v":"Ролик"},{"$f":"INDEX('Исходные данные'!$A$2:$F$586,ROW(D201),MATCH('Как надо'!E$1,'Исходные данные'!$A$1:$F$1,0))","v":"MARS"},{"$f":"INDEX('Исходные данные'!$A$2:$F$586,ROW(E201),MATCH('Как надо'!F$1,'Исходные данные'!$A$1:$F$1,0))","v":0.9}]
[null,{"$f":"INDEX('Исходные данные'!$A$2:$F$586,ROW(A202),MATCH('Как надо'!B$1,'Исходные данные'!$A$1:$F$1,0))","v":"АСТАНА"},{"$f":"INDEX('Исходные данные'!$A$2:$F$586,ROW(B202),MATCH('Как надо'!C$1,'Исходные данные'!$A$1:$F$1,0))","v":"2013-01-02"},{"$f":"INDEX('Исходные данные'!$A$2:$F$586,ROW(C202),MATCH('Как надо'!D$1,'Исходные данные'!$A$1:$F$1,0))","v":"Ролик"},{"$f":"INDEX('Исходные данные'!$A$2:$F$586,ROW(D202),MATCH('Как надо'!E$1,'Исходные данные'!$A$1:$F$1,0))","v":"MARS"},{"$f":"INDEX('Исходные данные'!$A$2:$F$586,ROW(E202),MATCH('Как надо'!F$1,'Исходные данные'!$A$1:$F$1,0))","v":1}]
[null,{"$f":"INDEX('Исходные данные'!$A$2:$F$586,ROW(A203),MATCH('Как надо'!B$1,'Исходные данные'!$A$1:$F$1,0))","v":"СЕДЬМОЙ КАНАЛ"},{"$f":"INDEX('Исходные данные'!$A$2:$F$586,ROW(B203),MATCH('Как надо'!C$1,'Исходные данные'!$A$1:$F$1,0))","v":"2013-01-02"},{"$f":"INDEX('Исходные данные'!$A$2:$F$586,ROW(C203),MATCH('Как надо'!D$1,'Исходные данные'!$A$1:$F$1,0))","v":"Ролик"},{"$f":"INDEX('Исходные данные'!$A$2:$F$586,ROW(D203),MATCH('Как надо'!E$1,'Исходные данные'!$A$1:$F$1,0))","v":"NESTLE"},{"$f":"INDEX('Исходные данные'!$A$2:$F$586,ROW(E203),MATCH('Как надо'!F$1,'Исходные данные'!$A$1:$F$1,0))","v":0}]
[null,{"$f":"INDEX('Исходные данные'!$A$2:$F$586,ROW(A204),MATCH('Как надо'!B$1,'Исходные данные'!$A$1:$F$1,0))","v":"СЕДЬМОЙ КАНАЛ"},{"$f":"INDEX('Исходные данные'!$A$2:$F$586,ROW(B204),MATCH('Как надо'!C$1,'Исходные данные'!$A$1:$F$1,0))","v":"2013-01-02"},{"$f":"INDEX('Исходные данные'!$A$2:$F$586,ROW(C204),MATCH('Как надо'!D$1,'Исходные данные'!$A$1:$F$1,0))","v":"Ролик"},{"$f":"INDEX('Исходные данные'!$A$2:$F$586,ROW(D204),MATCH('Как надо'!E$1,'Исходные данные'!$A$1:$F$1,0))","v":"КРАФТ ФУДС КАЗАХСТАН"},{"$f":"INDEX('Исходные данные'!$A$2:$F$586,ROW(E204),MATCH('Как надо'!F$1,'Исходные данные'!$A$1:$F$1,0))","v":1.5}]
[null,{"$f":"INDEX('Исходные данные'!$A$2:$F$586,ROW(A205),MATCH('Как надо'!B$1,'Исходные данные'!$A$1:$F$1,0))","v":"СЕДЬМОЙ КАНАЛ"},{"$f":"INDEX('Исходные данные'!$A$2:$F$586,ROW(B205),MATCH('Как надо'!C$1,'Исходные данные'!$A$1:$F$1,0))","v":"2013-01-02"},{"$f":"INDEX('Исходные данные'!$A$2:$F$586,ROW(C205),MATCH('Как надо'!D$1,'Исходные данные'!$A$1:$F$1,0))","v":"Ролик"},{"$f":"INDEX('Исходные данные'!$A$2:$F$586,ROW(D205),MATCH('Как надо'!E$1,'Исходные данные'!$A$1:$F$1,0))","v":"КРАФТ ФУДС КАЗАХСТАН"},{"$f":"INDEX('Исходные данные'!$A$2:$F$586,ROW(E205),MATCH('Как надо'!F$1,'Исходные данные'!$A$1:$F$1,0))","v":0.4}]
[null,{"$f":"INDEX('Исходные данные'!$A$2:$F$586,ROW(A206),MATCH('Как надо'!B$1,'Исходные данные'!$A$1:$F$1,0))","v":"СЕДЬМОЙ КАНАЛ"},{"$f":"INDEX('Исходные данные'!$A$2:$F$586,ROW(B206),MATCH('Как надо'!C$1,'Исходные данные'!$A$1:$F$1,0))","v":"2013-01-02"},{"$f":"INDEX('Исходные данные'!$A$2:$F$586,ROW(C206),MATCH('Как надо'!D$1,'Исходные данные'!$A$1:$F$1,0))","v":"Ролик"},{"$f":"INDEX('Исходные данные'!$A$2:$F$586,ROW(D206),MATCH('Как надо'!E$1,'Исходные данные'!$A$1:$F$1,0))","v":"NESTLE"},{"$f":"INDEX('Исходные данные'!$A$2:$F$586,ROW(E206),MATCH('Как надо'!F$1,'Исходные данные'!$A$1:$F$1,0))","v":3.9}]
[null,{"$f":"INDEX('Исходные данные'!$A$2:$F$586,ROW(A207),MATCH('Как надо'!B$1,'Исходные данные'!$A$1:$F$1,0))","v":"СЕДЬМОЙ КАНАЛ"},{"$f":"INDEX('Исходные данные'!$A$2:$F$586,ROW(B207),MATCH('Как надо'!C$1,'Исходные данные'!$A$1:$F$1,0))","v":"2013-01-02"},{"$f":"INDEX('Исходные данные'!$A$2:$F$586,ROW(C207),MATCH('Как надо'!D$1,'Исходные данные'!$A$1:$F$1,0))","v":"Ролик"},{"$f":"INDEX('Исходные данные'!$A$2:$F$586,ROW(D207),MATCH('Как надо'!E$1,'Исходные данные'!$A$1:$F$1,0))","v":"MARS"},{"$f":"INDEX('Исходные данные'!$A$2:$F$586,ROW(E207),MATCH('Как надо'!F$1,'Исходные данные'!$A$1:$F$1,0))","v":3.6}]
[null,{"$f":"INDEX('Исходные данные'!$A$2:$F$586,ROW(A208),MATCH('Как надо'!B$1,'Исходные данные'!$A$1:$F$1,0))","v":"СЕДЬМОЙ КАНАЛ"},{"$f":"INDEX('Исходные данные'!$A$2:$F$586,ROW(B208),MATCH('Как надо'!C$1,'Исходные данные'!$A$1:$F$1,0))","v":"2013-01-02"},{"$f":"INDEX('Исходные данные'!$A$2:$F$586,ROW(C208),MATCH('Как надо'!D$1,'Исходные данные'!$A$1:$F$1,0))","v":"Ролик"},{"$f":"INDEX('Исходные данные'!$A$2:$F$586,ROW(D208),MATCH('Как надо'!E$1,'Исходные данные'!$A$1:$F$1,0))","v":"MARS"},{"$f":"INDEX('Исходные данные'!$A$2:$F$586,ROW(E208),MATCH('Как надо'!F$1,'Исходные данные'!$A$1:$F$1,0))","v":8.1}]
[null,{"$f":"INDEX('Исходные данные'!$A$2:$F$586,ROW(A209),MATCH('Как надо'!B$1,'Исходные данные'!$A$1:$F$1,0))","v":"СЕДЬМОЙ КАНАЛ"},{"$f":"INDEX('Исходные данные'!$A$2:$F$586,ROW(B209),MATCH('Как надо'!C$1,'Исходные данные'!$A$1:$F$1,0))","v":"2013-01-02"},{"$f":"INDEX('Исходные данные'!$A$2:$F$586,ROW(C209),MATCH('Как надо'!D$1,'Исходные данные'!$A$1:$F$1,0))","v":"Ролик"},{"$f":"INDEX('Исходные данные'!$A$2:$F$586,ROW(D209),MATCH('Как надо'!E$1,'Исходные данные'!$A$1:$F$1,0))","v":"КРАФТ ФУДС КАЗАХСТАН"},{"$f":"INDEX('Исходные данные'!$A$2:$F$586,ROW(E209),MATCH('Как надо'!F$1,'Исходные данные'!$A$1:$F$1,0))","v":3}]
[null,{"$f":"INDEX('Исходные данные'!$A$2:$F$586,ROW(A210),MATCH('Как надо'!B$1,'Исходные данные'!$A$1:$F$1,0))","v":"КАЗАХСТАН"},{"$f":"INDEX('Исходные данные'!$A$2:$F$586,ROW(B210),MATCH('Как надо'!C$1,'Исходные данные'!$A$1:$F$1,0))","v":"2013-01-03"},{"$f":"INDEX('Исходные данные'!$A$2:$F$586,ROW(C210),MATCH('Как надо'!D$1,'Исходные данные'!$A$1:$F$1,0))","v":"Ролик"},{"$f":"INDEX('Исходные данные'!$A$2:$F$586,ROW(D210),MATCH('Как надо'!E$1,'Исходные данные'!$A$1:$F$1,0))","v":"КРАФТ ФУДС КАЗАХСТАН"},{"$f":"INDEX('Исходные данные'!$A$2:$F$586,ROW(E210),MATCH('Как надо'!F$1,'Исходные данные'!$A$1:$F$1,0))","v":0}]
[null,{"$f":"INDEX('Исходные данные'!$A$2:$F$586,ROW(A211),MATCH('Как надо'!B$1,'Исходные данные'!$A$1:$F$1,0))","v":"КАЗАХСТАН"},{"$f":"INDEX('Исходные данные'!$A$2:$F$586,ROW(B211),MATCH('Как надо'!C$1,'Исходные данные'!$A$1:$F$1,0))","v":"2013-01-03"},{"$f":"INDEX('Исходные данные'!$A$2:$F$586,ROW(C211),MATCH('Как надо'!D$1,'Исходные данные'!$A$1:$F$1,0))","v":"Ролик"},{"$f":"INDEX('Исходные данные'!$A$2:$F$586,ROW(D211),MATCH('Как надо'!E$1,'Исходные данные'!$A$1:$F$1,0))","v":"КРАФТ ФУДС КАЗАХСТАН"},{"$f":"INDEX('Исходные данные'!$A$2:$F$586,ROW(E211),MATCH('Как надо'!F$1,'Исходные данные'!$A$1:$F$1,0))","v":0}]
[null,{"$f":"INDEX('Исходные данные'!$A$2:$F$586,ROW(A212),MATCH('Как надо'!B$1,'Исходные данные'!$A$1:$F$1,0))","v":"КАЗАХСТАН"},{"$f":"INDEX('Исходные данные'!$A$2:$F$586,ROW(B212),MATCH('Как надо'!C$1,'Исходные данные'!$A$1:$F$1,0))","v":"2013-01-03"},{"$f":"INDEX('Исходные данные'!$A$2:$F$586,ROW(C212),MATCH('Как надо'!D$1,'Исходные данные'!$A$1:$F$1,0))","v":"Ролик"},{"$f":"INDEX('Исходные данные'!$A$2:$F$586,ROW(D212),MATCH('Как надо'!E$1,'Исходные данные'!$A$1:$F$1,0))","v":"КРАФТ ФУДС КАЗАХСТАН"},{"$f":"INDEX('Исходные данные'!$A$2:$F$586,ROW(E212),MATCH('Как надо'!F$1,'Исходные данные'!$A$1:$F$1,0))","v":0}]
[null,{"$f":"INDEX('Исходные данные'!$A$2:$F$586,ROW(A213),MATCH('Как надо'!B$1,'Исходные данные'!$A$1:$F$1,0))","v":"31 КАНАЛ"},{"$f":"INDEX('Исходные данные'!$A$2:$F$586,ROW(B213),MATCH('Как надо'!C$1,'Исходные данные'!$A$1:$F$1,0))","v":"2013-01-03"},{"$f":"INDEX('Исходные данные'!$A$2:$F$586,ROW(C213),MATCH('Как надо'!D$1,'Исходные данные'!$A$1:$F$1,0))","v":"Ролик"},{"$f":"INDEX('Исходные данные'!$A$2:$F$586,ROW(D213),MATCH('Как надо'!E$1,'Исходные данные'!$A$1:$F$1,0))","v":"NESTLE"},{"$f":"INDEX('Исходные данные'!$A$2:$F$586,ROW(E213),MATCH('Как надо'!F$1,'Исходные данные'!$A$1:$F$1,0))","v":6.2}]
[null,{"$f":"INDEX('Исходные данные'!$A$2:$F$586,ROW(A214),MATCH('Как надо'!B$1,'Исходные данные'!$A$1:$F$1,0))","v":"31 КАНАЛ"},{"$f":"INDEX('Исходные данные'!$A$2:$F$586,ROW(B214),MATCH('Как надо'!C$1,'Исходные данные'!$A$1:$F$1,0))","v":"2013-01-03"},{"$f":"INDEX('Исходные данные'!$A$2:$F$586,ROW(C214),MATCH('Как надо'!D$1,'Исходные данные'!$A$1:$F$1,0))","v":"Ролик"},{"$f":"INDEX('Исходные данные'!$A$2:$F$586,ROW(D214),MATCH('Как надо'!E$1,'Исходные данные'!$A$1:$F$1,0))","v":"NESTLE"},{"$f":"INDEX('Исходные данные'!$A$2:$F$586,ROW(E214),MATCH('Как надо'!F$1,'Исходные данные'!$A$1:$F$1,0))","v":2.2999999999999998}]
[null,{"$f":"INDEX('Исходные данные'!$A$2:$F$586,ROW(A215),MATCH('Как надо'!B$1,'Исходные данные'!$A$1:$F$1,0))","v":"31 КАНАЛ"},{"$f":"INDEX('Исходные данные'!$A$2:$F$586,ROW(B215),MATCH('Как надо'!C$1,'Исходные данные'!$A$1:$F$1,0))","v":"2013-01-03"},{"$f":"INDEX('Исходные данные'!$A$2:$F$586,ROW(C215),MATCH('Как надо'!D$1,'Исходные данные'!$A$1:$F$1,0))","v":"Ролик"},{"$f":"INDEX('Исходные данные'!$A$2:$F$586,ROW(D215),MATCH('Как надо'!E$1,'Исходные данные'!$A$1:$F$1,0))","v":"NESTLE"},{"$f":"INDEX('Исходные данные'!$A$2:$F$586,ROW(E215),MATCH('Как надо'!F$1,'Исходные данные'!$A$1:$F$1,0))","v":2}]
[null,{"$f":"INDEX('Исходные данные'!$A$2:$F$586,ROW(A216),MATCH('Как надо'!B$1,'Исходные данные'!$A$1:$F$1,0))","v":"31 КАНАЛ"},{"$f":"INDEX('Исходные данные'!$A$2:$F$586,ROW(B216),MATCH('Как надо'!C$1,'Исходные данные'!$A$1:$F$1,0))","v":"2013-01-03"},{"$f":"INDEX('Исходные данные'!$A$2:$F$586,ROW(C216),MATCH('Как надо'!D$1,'Исходные данные'!$A$1:$F$1,0))","v":"Ролик"},{"$f":"INDEX('Исходные данные'!$A$2:$F$586,ROW(D216),MATCH('Как надо'!E$1,'Исходные данные'!$A$1:$F$1,0))","v":"КРАФТ ФУДС КАЗАХСТАН"},{"$f":"INDEX('Исходные данные'!$A$2:$F$586,ROW(E216),MATCH('Как надо'!F$1,'Исходные данные'!$A$1:$F$1,0))","v":8.4}]
[null,{"$f":"INDEX('Исходные данные'!$A$2:$F$586,ROW(A217),MATCH('Как надо'!B$1,'Исходные данные'!$A$1:$F$1,0))","v":"31 КАНАЛ"},{"$f":"INDEX('Исходные данные'!$A$2:$F$586,ROW(B217),MATCH('Как надо'!C$1,'Исходные данные'!$A$1:$F$1,0))","v":"2013-01-03"},{"$f":"INDEX('Исходные данные'!$A$2:$F$586,ROW(C217),MATCH('Как надо'!D$1,'Исходные данные'!$A$1:$F$1,0))","v":"Ролик"},{"$f":"INDEX('Исходные данные'!$A$2:$F$586,ROW(D217),MATCH('Как надо'!E$1,'Исходные данные'!$A$1:$F$1,0))","v":"NESTLE"},{"$f":"INDEX('Исходные данные'!$A$2:$F$586,ROW(E217),MATCH('Как надо'!F$1,'Исходные данные'!$A$1:$F$1,0))","v":8.6}]
[null,{"$f":"INDEX('Исходные данные'!$A$2:$F$586,ROW(A218),MATCH('Как надо'!B$1,'Исходные данные'!$A$1:$F$1,0))","v":"31 КАНАЛ"},{"$f":"INDEX('Исходные данные'!$A$2:$F$586,ROW(B218),MATCH('Как надо'!C$1,'Исходные данные'!$A$1:$F$1,0))","v":"2013-01-03"},{"$f":"INDEX('Исходные данные'!$A$2:$F$586,ROW(C218),MATCH('Как надо'!D$1,'Исходные данные'!$A$1:$F$1,0))","v":"Ролик"},{"$f":"INDEX('Исходные данные'!$A$2:$F$586,ROW(D218),MATCH('Как надо'!E$1,'Исходные данные'!$A$1:$F$1,0))","v":"NESTLE"},{"$f":"INDEX('Исходные данные'!$A$2:$F$586,ROW(E218),MATCH('Как надо'!F$1,'Исходные данные'!$A$1:$F$1,0))","v":8}]
[null,{"$f":"INDEX('Исходные данные'!$A$2:$F$586,ROW(A219),MATCH('Как надо'!B$1,'Исходные данные'!$A$1:$F$1,0))","v":"31 КАНАЛ"},{"$f":"INDEX('Исходные данные'!$A$2:$F$586,ROW(B219),MATCH('Как надо'!C$1,'Исходные данные'!$A$1:$F$1,0))","v":"2013-01-03"},{"$f":"INDEX('Исходные данные'!$A$2:$F$586,ROW(C219),MATCH('Как надо'!D$1,'Исходные данные'!$A$1:$F$1,0))","v":"Ролик"},{"$f":"INDEX('Исходные данные'!$A$2:$F$586,ROW(D219),MATCH('Как надо'!E$1,'Исходные данные'!$A$1:$F$1,0))","v":"КРАФТ ФУДС КАЗАХСТАН"},{"$f":"INDEX('Исходные данные'!$A$2:$F$586,ROW(E219),MATCH('Как надо'!F$1,'Исходные данные'!$A$1:$F$1,0))","v":14.1}]
[null,{"$f":"INDEX('Исходные данные'!$A$2:$F$586,ROW(A220),MATCH('Как надо'!B$1,'Исходные данные'!$A$1:$F$1,0))","v":"31 КАНАЛ"},{"$f":"INDEX('Исходные данные'!$A$2:$F$586,ROW(B220),MATCH('Как надо'!C$1,'Исходные данные'!$A$1:$F$1,0))","v":"2013-01-03"},{"$f":"INDEX('Исходные данные'!$A$2:$F$586,ROW(C220),MATCH('Как надо'!D$1,'Исходные данные'!$A$1:$F$1,0))","v":"Ролик"},{"$f":"INDEX('Исходные данные'!$A$2:$F$586,ROW(D220),MATCH('Как надо'!E$1,'Исходные данные'!$A$1:$F$1,0))","v":"КРАФТ ФУДС КАЗАХСТАН"},{"$f":"INDEX('Исходные данные'!$A$2:$F$586,ROW(E220),MATCH('Как надо'!F$1,'Исходные данные'!$A$1:$F$1,0))","v":4.8}]
[null,{"$f":"INDEX('Исходные данные'!$A$2:$F$586,ROW(A221),MATCH('Как надо'!B$1,'Исходные данные'!$A$1:$F$1,0))","v":"КТК"},{"$f":"INDEX('Исходные данные'!$A$2:$F$586,ROW(B221),MATCH('Как надо'!C$1,'Исходные данные'!$A$1:$F$1,0))","v":"2013-01-03"},{"$f":"INDEX('Исходные данные'!$A$2:$F$586,ROW(C221),MATCH('Как надо'!D$1,'Исходные данные'!$A$1:$F$1,0))","v":"Ролик"},{"$f":"INDEX('Исходные данные'!$A$2:$F$586,ROW(D221),MATCH('Как надо'!E$1,'Исходные данные'!$A$1:$F$1,0))","v":"MARS"},{"$f":"INDEX('Исходные данные'!$A$2:$F$586,ROW(E221),MATCH('Как надо'!F$1,'Исходные данные'!$A$1:$F$1,0))","v":0}]